Workbook

Sheet D
A1: ='R'!A2 -> 1 | C1: الرصيد | D1: الرتبه | E1: التاريخ مترحل من فاتوره | F1: كود الموظف مترحل | G1: كود المنتج مترحل | H1: الكميه مترحل من hgthj,vi | I1: اسم الصنف | J1: اسم الموظف | K1: السعر | L1: g | M1: كرتين | N1: عبوات | P1: 1 | Q1: 2018-12-03
B2: =IF(F2="","",IF(COUNTIF(F$2:$F2,F2)-1=0,ROWS(F$2:$F2),"r")) -> 1 | C2: =IF(G2="","",IF(COUNTIF($G$2:G2,G2)-1=0,ROWS($G$2:G2),"r")) -> 1 | D2: =IF($A$1=F2,COUNTIF($F$2:F2,F2),"") -> 1 | E2: 2018-12-02 | F2: 1 | G2: 101 | H2: 54 | I2: =IF(G2<>"",VLOOKUP(G2,التكويد!$A$1:$D$201,2,0),"") -> صنف1 | J2: =IF(F2<>"",VLOOKUP(F2,الموظفين!$A$2:$B$2006,2,0),"") -> عميل1 | K2: =IF(G2<>"",VLOOKUP(G2,التكويد!$A$1:$D$201,4,0)*H2,"") -> 607.5 | L2: =IF(H2="","",IF(H2<0,"منصرف",IF(H2>0,"بيع"))) -> بيع | M2: =IF(G2<>"",VLOOKUP(G2,#REF!,6,0),"") ->  | N2: =IF(G2<>"",VLOOKUP(G2,#REF!,7,0),"") ->  | Q2: 2018-12-02 | R2: من
B3: =IF(F3="","",IF(COUNTIF(F$2:$F3,F3)-1=0,ROWS(F$2:$F3),"r")) -> r | C3: =IF(G3="","",IF(COUNTIF($G$2:G3,G3)-1=0,ROWS($G$2:G3),"r")) -> 2 | D3: =IF($A$1=F3,COUNTIF($F$2:F3,F3),"") -> 2 | E3: 2018-12-02 | F3: 1 | G3: 102 | H3: 27 | I3: =IF(G3<>"",VLOOKUP(G3,التكويد!$A$1:$D$201,2,0),"") -> صنف2 | J3: =IF(F3<>"",VLOOKUP(F3,الموظفين!$A$2:$B$2006,2,0),"") -> عميل1 | K3: =IF(G3<>"",VLOOKUP(G3,التكويد!$A$1:$D$201,4,0)*H3,"") -> 303.75 | L3: =IF(H3="","",IF(H3<0,"منصرف",IF(H3>0,"بيع"))) -> بيع | M3: =IF(G3<>"",VLOOKUP(G3,#REF!,6,0),"") ->  | N3: =IF(G3<>"",VLOOKUP(G3,#REF!,7,0),"") ->  | Q3: 2018-12-04 | R3: الي
B4: =IF(F4="","",IF(COUNTIF(F$2:$F4,F4)-1=0,ROWS(F$2:$F4),"r")) -> r | C4: =IF(G4="","",IF(COUNTIF($G$2:G4,G4)-1=0,ROWS($G$2:G4),"r")) -> 3 | D4: =IF($A$1=F4,COUNTIF($F$2:F4,F4),"") -> 3 | E4: 2018-12-02 | F4: 1 | G4: 105 | H4: 27 | I4: =IF(G4<>"",VLOOKUP(G4,التكويد!$A$1:$D$201,2,0),"") -> صنف5 | J4: =IF(F4<>"",VLOOKUP(F4,الموظفين!$A$2:$B$2006,2,0),"") -> عميل1 | K4: =IF(G4<>"",VLOOKUP(G4,التكويد!$A$1:$D$201,4,0)*H4,"") -> 243 | L4: بيع | M4: =IF(G4<>"",VLOOKUP(G4,#REF!,6,0),"") ->  | N4: =IF(G4<>"",VLOOKUP(G4,#REF!,7,0),"") -> 
B5: =IF(F5="","",IF(COUNTIF(F$2:$F5,F5)-1=0,ROWS(F$2:$F5),"r")) -> r | C5: =IF(G5="","",IF(COUNTIF($G$2:G5,G5)-1=0,ROWS($G$2:G5),"r")) -> 4 | D5: =IF($A$1=F5,COUNTIF($F$2:F5,F5),"") -> 4 | E5: 2018-12-02 | F5: 1 | G5: 107 | H5: 81 | I5: =IF(G5<>"",VLOOKUP(G5,التكويد!$A$1:$D$201,2,0),"") -> صنف7 | J5: =IF(F5<>"",VLOOKUP(F5,الموظفين!$A$2:$B$2006,2,0),"") -> عميل1 | K5: =IF(G5<>"",VLOOKUP(G5,التكويد!$A$1:$D$201,4,0)*H5,"") -> 241.785 | L5: بيع | M5: =IF(G5<>"",VLOOKUP(G5,#REF!,6,0),"") ->  | N5: =IF(G5<>"",VLOOKUP(G5,#REF!,7,0),"") ->  | Q5: =SUMIFS($K$2:$K$1653,$E$2:$E$1653,">="&$Q$2,$E$2:$E$1653,"<="&$Q$3) -> 2126.025
B6: =IF(F6="","",IF(COUNTIF(F$2:$F6,F6)-1=0,ROWS(F$2:$F6),"r")) -> r | C6: =IF(G6="","",IF(COUNTIF($G$2:G6,G6)-1=0,ROWS($G$2:G6),"r")) -> 5 | D6: =IF($A$1=F6,COUNTIF($F$2:F6,F6),"") -> 5 | E6: 2018-12-02 | F6: 1 | G6: 112 | H6: 6 | I6: =IF(G6<>"",VLOOKUP(G6,التكويد!$A$1:$D$201,2,0),"") -> صنف12 | J6: =IF(F6<>"",VLOOKUP(F6,الموظفين!$A$2:$B$2006,2,0),"") -> عميل1 | K6: =IF(G6<>"",VLOOKUP(G6,التكويد!$A$1:$D$201,4,0)*H6,"") -> 19.08 | L6: بيع | M6: =IF(G6<>"",VLOOKUP(G6,#REF!,6,0),"") ->  | N6: =IF(G6<>"",VLOOKUP(G6,#REF!,7,0),"") -> 
B7: =IF(F7="","",IF(COUNTIF(F$2:$F7,F7)-1=0,ROWS(F$2:$F7),"r")) -> r | C7: =IF(G7="","",IF(COUNTIF($G$2:G7,G7)-1=0,ROWS($G$2:G7),"r")) -> 6 | D7: =IF($A$1=F7,COUNTIF($F$2:F7,F7),"") -> 6 | E7: 2018-12-03 | F7: 1 | G7: 110 | H7: 6 | I7: =IF(G7<>"",VLOOKUP(G7,التكويد!$A$1:$D$201,2,0),"") -> صنف10 | J7: =IF(F7<>"",VLOOKUP(F7,الموظفين!$A$2:$B$2006,2,0),"") -> عميل1 | K7: =IF(G7<>"",VLOOKUP(G7,التكويد!$A$1:$D$201,4,0)*H7,"") -> 19.08 | L7: بيع | M7: =IF(G7<>"",VLOOKUP(G7,#REF!,6,0),"") ->  | N7: =IF(G7<>"",VLOOKUP(G7,#REF!,7,0),"") -> 
B8: =IF(F8="","",IF(COUNTIF(F$2:$F8,F8)-1=0,ROWS(F$2:$F8),"r")) -> r | C8: =IF(G8="","",IF(COUNTIF($G$2:G8,G8)-1=0,ROWS($G$2:G8),"r")) -> r | D8: =IF($A$1=F8,COUNTIF($F$2:F8,F8),"") -> 7 | E8: 2018-12-03 | F8: 1 | G8: 101 | H8: 6 | I8: =IF(G8<>"",VLOOKUP(G8,التكويد!$A$1:$D$201,2,0),"") -> صنف1 | J8: =IF(F8<>"",VLOOKUP(F8,الموظفين!$A$2:$B$2006,2,0),"") -> عميل1 | K8: =IF(G8<>"",VLOOKUP(G8,التكويد!$A$1:$D$201,4,0)*H8,"") -> 67.5 | L8: بيع | M8: =IF(G8<>"",VLOOKUP(G8,#REF!,6,0),"") ->  | N8: =IF(G8<>"",VLOOKUP(G8,#REF!,7,0),"") -> 
B9: =IF(F9="","",IF(COUNTIF(F$2:$F9,F9)-1=0,ROWS(F$2:$F9),"r")) -> r | C9: =IF(G9="","",IF(COUNTIF($G$2:G9,G9)-1=0,ROWS($G$2:G9),"r")) -> 8 | D9: =IF($A$1=F9,COUNTIF($F$2:F9,F9),"") -> 8 | E9: 2018-12-03 | F9: 1 | G9: 118 | H9: 9 | I9: =IF(G9<>"",VLOOKUP(G9,التكويد!$A$1:$D$201,2,0),"") -> صنف18 | J9: =IF(F9<>"",VLOOKUP(F9,الموظفين!$A$2:$B$2006,2,0),"") -> عميل1 | K9: =IF(G9<>"",VLOOKUP(G9,التكويد!$A$1:$D$201,4,0)*H9,"") -> 14.769 | L9: بيع | M9: =IF(G9<>"",VLOOKUP(G9,#REF!,6,0),"") ->  | N9: =IF(G9<>"",VLOOKUP(G9,#REF!,7,0),"") -> 
B10: =IF(F10="","",IF(COUNTIF(F$2:$F10,F10)-1=0,ROWS(F$2:$F10),"r")) -> r | C10: =IF(G10="","",IF(COUNTIF($G$2:G10,G10)-1=0,ROWS($G$2:G10),"r")) -> 9 | D10: =IF($A$1=F10,COUNTIF($F$2:F10,F10),"") -> 9 | E10: 2018-12-03 | F10: 1 | G10: 115 | H10: 9 | I10: =IF(G10<>"",VLOOKUP(G10,التكويد!$A$1:$D$201,2,0),"") -> صنف15 | J10: =IF(F10<>"",VLOOKUP(F10,الموظفين!$A$2:$B$2006,2,0),"") -> عميل1 | K10: =IF(G10<>"",VLOOKUP(G10,التكويد!$A$1:$D$201,4,0)*H10,"") -> 44.253 | L10: بيع | M10: =IF(G10<>"",VLOOKUP(G10,#REF!,6,0),"") ->  | N10: =IF(G10<>"",VLOOKUP(G10,#REF!,7,0),"") -> 
B11: =IF(F11="","",IF(COUNTIF(F$2:$F11,F11)-1=0,ROWS(F$2:$F11),"r")) -> r | C11: =IF(G11="","",IF(COUNTIF($G$2:G11,G11)-1=0,ROWS($G$2:G11),"r")) -> 10 | D11: =IF($A$1=F11,COUNTIF($F$2:F11,F11),"") -> 10 | E11: 2018-12-03 | F11: 1 | G11: 116 | H11: 9 | I11: =IF(G11<>"",VLOOKUP(G11,التكويد!$A$1:$D$201,2,0),"") -> صنف16 | J11: =IF(F11<>"",VLOOKUP(F11,الموظفين!$A$2:$B$2006,2,0),"") -> عميل1 | K11: =IF(G11<>"",VLOOKUP(G11,التكويد!$A$1:$D$201,4,0)*H11,"") -> 44.253 | L11: بيع | M11: =IF(G11<>"",VLOOKUP(G11,#REF!,6,0),"") ->  | N11: =IF(G11<>"",VLOOKUP(G11,#REF!,7,0),"") -> 
B12: =IF(F12="","",IF(COUNTIF(F$2:$F12,F12)-1=0,ROWS(F$2:$F12),"r")) -> r | C12: =IF(G12="","",IF(COUNTIF($G$2:G12,G12)-1=0,ROWS($G$2:G12),"r")) -> 11 | D12: =IF($A$1=F12,COUNTIF($F$2:F12,F12),"") -> 11 | E12: 2018-12-03 | F12: 1 | G12: 117 | H12: 9 | I12: =IF(G12<>"",VLOOKUP(G12,التكويد!$A$1:$D$201,2,0),"") -> صنف17 | J12: =IF(F12<>"",VLOOKUP(F12,الموظفين!$A$2:$B$2006,2,0),"") -> عميل1 | K12: =IF(G12<>"",VLOOKUP(G12,التكويد!$A$1:$D$201,4,0)*H12,"") -> 14.769 | L12: بيع | M12: =IF(G12<>"",VLOOKUP(G12,#REF!,6,0),"") ->  | N12: =IF(G12<>"",VLOOKUP(G12,#REF!,7,0),"") -> 
B13: =IF(F13="","",IF(COUNTIF(F$2:$F13,F13)-1=0,ROWS(F$2:$F13),"r")) -> r | C13: =IF(G13="","",IF(COUNTIF($G$2:G13,G13)-1=0,ROWS($G$2:G13),"r")) -> r | D13: =IF($A$1=F13,COUNTIF($F$2:F13,F13),"") -> 12 | E13: 2018-12-03 | F13: 1 | G13: 118 | H13: 27 | I13: =IF(G13<>"",VLOOKUP(G13,التكويد!$A$1:$D$201,2,0),"") -> صنف18 | J13: =IF(F13<>"",VLOOKUP(F13,الموظفين!$A$2:$B$2006,2,0),"") -> عميل1 | K13: 85.59 | L13: بيع | M13: =IF(G13<>"",VLOOKUP(G13,#REF!,6,0),"") ->  | N13: =IF(G13<>"",VLOOKUP(G13,#REF!,7,0),"") -> 
B14: =IF(F14="","",IF(COUNTIF(F$2:$F14,F14)-1=0,ROWS(F$2:$F14),"r")) -> r | C14: =IF(G14="","",IF(COUNTIF($G$2:G14,G14)-1=0,ROWS($G$2:G14),"r")) -> 13 | D14: =IF($A$1=F14,COUNTIF($F$2:F14,F14),"") -> 13 | E14: 2018-12-03 | F14: 1 | G14: 119 | H14: 54 | I14: =IF(G14<>"",VLOOKUP(G14,التكويد!$A$1:$D$201,2,0),"") -> صنف19 | J14: =IF(F14<>"",VLOOKUP(F14,الموظفين!$A$2:$B$2006,2,0),"") -> عميل1 | K14: 171.18 | L14: بيع | M14: =IF(G14<>"",VLOOKUP(G14,#REF!,6,0),"") ->  | N14: =IF(G14<>"",VLOOKUP(G14,#REF!,7,0),"") -> 
B15: =IF(F15="","",IF(COUNTIF(F$2:$F15,F15)-1=0,ROWS(F$2:$F15),"r")) -> r | C15: =IF(G15="","",IF(COUNTIF($G$2:G15,G15)-1=0,ROWS($G$2:G15),"r")) -> 14 | D15: =IF($A$1=F15,COUNTIF($F$2:F15,F15),"") -> 14 | E15: 2018-12-03 | F15: 1 | G15: 120 | H15: 25 | I15: =IF(G15<>"",VLOOKUP(G15,التكويد!$A$1:$D$201,2,0),"") -> صنف20 | J15: =IF(F15<>"",VLOOKUP(F15,الموظفين!$A$2:$B$2006,2,0),"") -> عميل1 | K15: =IF(G15<>"",VLOOKUP(G15,التكويد!$A$1:$D$201,4,0)*H15,"") -> 41.025 | L15: بيع | M15: =IF(G15<>"",VLOOKUP(G15,#REF!,6,0),"") ->  | N15: =IF(G15<>"",VLOOKUP(G15,#REF!,7,0),"") -> 
B16: =IF(F16="","",IF(COUNTIF(F$2:$F16,F16)-1=0,ROWS(F$2:$F16),"r")) -> r | C16: =IF(G16="","",IF(COUNTIF($G$2:G16,G16)-1=0,ROWS($G$2:G16),"r")) -> 15 | D16: =IF($A$1=F16,COUNTIF($F$2:F16,F16),"") -> 15 | E16: 2018-12-03 | F16: 1 | G16: 121 | H16: 21 | I16: =IF(G16<>"",VLOOKUP(G16,التكويد!$A$1:$D$201,2,0),"") -> صنف21 | J16: =IF(F16<>"",VLOOKUP(F16,الموظفين!$A$2:$B$2006,2,0),"") -> عميل1 | K16: =IF(G16<>"",VLOOKUP(G16,التكويد!$A$1:$D$201,4,0)*H16,"") -> 28.35 | L16: بيع | M16: =IF(G16<>"",VLOOKUP(G16,#REF!,6,0),"") ->  | N16: =IF(G16<>"",VLOOKUP(G16,#REF!,7,0),"") -> 
B17: =IF(F17="","",IF(COUNTIF(F$2:$F17,F17)-1=0,ROWS(F$2:$F17),"r")) -> r | C17: =IF(G17="","",IF(COUNTIF($G$2:G17,G17)-1=0,ROWS($G$2:G17),"r")) -> 16 | D17: =IF($A$1=F17,COUNTIF($F$2:F17,F17),"") -> 16 | E17: 2018-12-03 | F17: 1 | G17: 123 | H17: 25 | I17: =IF(G17<>"",VLOOKUP(G17,التكويد!$A$1:$D$201,2,0),"") -> صنف23 | J17: =IF(F17<>"",VLOOKUP(F17,الموظفين!$A$2:$B$2006,2,0),"") -> عميل1 | K17: =IF(G17<>"",VLOOKUP(G17,التكويد!$A$1:$D$201,4,0)*H17,"") -> 60.9375 | L17: بيع | M17: =IF(G17<>"",VLOOKUP(G17,#REF!,6,0),"") ->  | N17: =IF(G17<>"",VLOOKUP(G17,#REF!,7,0),"") -> 
B18: =IF(F18="","",IF(COUNTIF(F$2:$F18,F18)-1=0,ROWS(F$2:$F18),"r")) -> r | C18: =IF(G18="","",IF(COUNTIF($G$2:G18,G18)-1=0,ROWS($G$2:G18),"r")) -> 17 | D18: =IF($A$1=F18,COUNTIF($F$2:F18,F18),"") -> 17 | E18: 2018-12-03 | F18: 1 | G18: 124 | H18: 23 | I18: =IF(G18<>"",VLOOKUP(G18,التكويد!$A$1:$D$201,2,0),"") -> صنف24 | J18: =IF(F18<>"",VLOOKUP(F18,الموظفين!$A$2:$B$2006,2,0),"") -> عميل1 | K18: =IF(G18<>"",VLOOKUP(G18,التكويد!$A$1:$D$201,4,0)*H18,"") -> 56.0625 | L18: بيع | M18: =IF(G18<>"",VLOOKUP(G18,#REF!,6,0),"") ->  | N18: =IF(G18<>"",VLOOKUP(G18,#REF!,7,0),"") -> 
B19: =IF(F19="","",IF(COUNTIF(F$2:$F19,F19)-1=0,ROWS(F$2:$F19),"r")) -> r | C19: =IF(G19="","",IF(COUNTIF($G$2:G19,G19)-1=0,ROWS($G$2:G19),"r")) -> 18 | D19: =IF($A$1=F19,COUNTIF($F$2:F19,F19),"") -> 18 | E19: 2018-12-03 | F19: 1 | G19: 125 | H19: 12 | I19: =IF(G19<>"",VLOOKUP(G19,التكويد!$A$1:$D$201,2,0),"") -> صنف25 | J19: =IF(F19<>"",VLOOKUP(F19,الموظفين!$A$2:$B$2006,2,0),"") -> عميل1 | K19: =IF(G19<>"",VLOOKUP(G19,التكويد!$A$1:$D$201,4,0)*H19,"") -> 29.25 | L19: بيع | M19: =IF(G19<>"",VLOOKUP(G19,#REF!,6,0),"") ->  | N19: =IF(G19<>"",VLOOKUP(G19,#REF!,7,0),"") -> 
B20: =IF(F20="","",IF(COUNTIF(F$2:$F20,F20)-1=0,ROWS(F$2:$F20),"r")) -> r | C20: =IF(G20="","",IF(COUNTIF($G$2:G20,G20)-1=0,ROWS($G$2:G20),"r")) -> 19 | D20: =IF($A$1=F20,COUNTIF($F$2:F20,F20),"") -> 19 | E20: 2018-12-03 | F20: 1 | G20: 126 | H20: 13 | I20: =IF(G20<>"",VLOOKUP(G20,التكويد!$A$1:$D$201,2,0),"") -> صنف26 | J20: =IF(F20<>"",VLOOKUP(F20,الموظفين!$A$2:$B$2006,2,0),"") -> عميل1 | K20: =IF(G20<>"",VLOOKUP(G20,التكويد!$A$1:$D$201,4,0)*H20,"") -> 33.891 | L20: بيع | M20: =IF(G20<>"",VLOOKUP(G20,#REF!,6,0),"") ->  | N20: =IF(G20<>"",VLOOKUP(G20,#REF!,7,0),"") -> 
B21: =IF(F21="","",IF(COUNTIF(F$2:$F21,F21)-1=0,ROWS(F$2:$F21),"r")) ->  | C21: =IF(G21="","",IF(COUNTIF($G$2:G21,G21)-1=0,ROWS($G$2:G21),"r")) ->  | D21: =IF($A$1=F21,COUNTIF($F$2:F21,F21),"") ->  | I21: =IF(G21<>"",VLOOKUP(G21,التكويد!$A$1:$D$201,2,0),"") ->  | J21: =IF(F21<>"",VLOOKUP(F21,الموظفين!$A$2:$B$2006,2,0),"") ->  | K21: =IF(G21<>"",VLOOKUP(G21,التكويد!$A$1:$D$201,4,0)*H21,"") ->  | M21: =IF(G21<>"",VLOOKUP(G21,#REF!,6,0),"") ->  | N21: =IF(G21<>"",VLOOKUP(G21,#REF!,7,0),"") -> 
B22: =IF(F22="","",IF(COUNTIF(F$2:$F22,F22)-1=0,ROWS(F$2:$F22),"r")) ->  | C22: =IF(G22="","",IF(COUNTIF($G$2:G22,G22)-1=0,ROWS($G$2:G22),"r")) ->  | D22: =IF($A$1=F22,COUNTIF($F$2:F22,F22),"") ->  | I22: =IF(G22<>"",VLOOKUP(G22,التكويد!$A$1:$D$201,2,0),"") ->  | J22: =IF(F22<>"",VLOOKUP(F22,الموظفين!$A$2:$B$2006,2,0),"") ->  | K22: =IF(G22<>"",VLOOKUP(G22,التكويد!$A$1:$D$201,4,0)*H22,"") ->  | M22: =IF(G22<>"",VLOOKUP(G22,#REF!,6,0),"") ->  | N22: =IF(G22<>"",VLOOKUP(G22,#REF!,7,0),"") -> 
B23: =IF(F23="","",IF(COUNTIF(F$2:$F23,F23)-1=0,ROWS(F$2:$F23),"r")) ->  | C23: =IF(G23="","",IF(COUNTIF($G$2:G23,G23)-1=0,ROWS($G$2:G23),"r")) ->  | D23: =IF($A$1=F23,COUNTIF($F$2:F23,F23),"") ->  | I23: =IF(G23<>"",VLOOKUP(G23,التكويد!$A$1:$D$201,2,0),"") ->  | J23: =IF(F23<>"",VLOOKUP(F23,الموظفين!$A$2:$B$2006,2,0),"") ->  | K23: =IF(G23<>"",VLOOKUP(G23,التكويد!$A$1:$D$201,4,0)*H23,"") ->  | M23: =IF(G23<>"",VLOOKUP(G23,#REF!,6,0),"") ->  | N23: =IF(G23<>"",VLOOKUP(G23,#REF!,7,0),"") -> 
B24: =IF(F24="","",IF(COUNTIF(F$2:$F24,F24)-1=0,ROWS(F$2:$F24),"r")) ->  | C24: =IF(G24="","",IF(COUNTIF($G$2:G24,G24)-1=0,ROWS($G$2:G24),"r")) ->  | D24: =IF($A$1=F24,COUNTIF($F$2:F24,F24),"") ->  | I24: =IF(G24<>"",VLOOKUP(G24,التكويد!$A$1:$D$201,2,0),"") ->  | J24: =IF(F24<>"",VLOOKUP(F24,الموظفين!$A$2:$B$2006,2,0),"") ->  | K24: =IF(G24<>"",VLOOKUP(G24,التكويد!$A$1:$D$201,4,0)*H24,"") ->  | M24: =IF(G24<>"",VLOOKUP(G24,#REF!,6,0),"") ->  | N24: =IF(G24<>"",VLOOKUP(G24,#REF!,7,0),"") -> 
B25: =IF(F25="","",IF(COUNTIF(F$2:$F25,F25)-1=0,ROWS(F$2:$F25),"r")) ->  | C25: =IF(G25="","",IF(COUNTIF($G$2:G25,G25)-1=0,ROWS($G$2:G25),"r")) ->  | D25: =IF($A$1=F25,COUNTIF($F$2:F25,F25),"") ->  | I25: =IF(G25<>"",VLOOKUP(G25,التكويد!$A$1:$D$201,2,0),"") ->  | J25: =IF(F25<>"",VLOOKUP(F25,الموظفين!$A$2:$B$2006,2,0),"") ->  | K25: =IF(G25<>"",VLOOKUP(G25,التكويد!$A$1:$D$201,4,0)*H25,"") ->  | M25: =IF(G25<>"",VLOOKUP(G25,#REF!,6,0),"") ->  | N25: =IF(G25<>"",VLOOKUP(G25,#REF!,7,0),"") -> 
B26: =IF(F26="","",IF(COUNTIF(F$2:$F26,F26)-1=0,ROWS(F$2:$F26),"r")) ->  | C26: =IF(G26="","",IF(COUNTIF($G$2:G26,G26)-1=0,ROWS($G$2:G26),"r")) ->  | D26: =IF($A$1=F26,COUNTIF($F$2:F26,F26),"") ->  | I26: =IF(G26<>"",VLOOKUP(G26,التكويد!$A$1:$D$201,2,0),"") ->  | J26: =IF(F26<>"",VLOOKUP(F26,الموظفين!$A$2:$B$2006,2,0),"") ->  | K26: =IF(G26<>"",VLOOKUP(G26,التكويد!$A$1:$D$201,4,0)*H26,"") ->  | M26: =IF(G26<>"",VLOOKUP(G26,#REF!,6,0),"") ->  | N26: =IF(G26<>"",VLOOKUP(G26,#REF!,7,0),"") -> 
B27: =IF(F27="","",IF(COUNTIF(F$2:$F27,F27)-1=0,ROWS(F$2:$F27),"r")) ->  | C27: =IF(G27="","",IF(COUNTIF($G$2:G27,G27)-1=0,ROWS($G$2:G27),"r")) ->  | D27: =IF($A$1=F27,COUNTIF($F$2:F27,F27),"") ->  | I27: =IF(G27<>"",VLOOKUP(G27,التكويد!$A$1:$D$201,2,0),"") ->  | J27: =IF(F27<>"",VLOOKUP(F27,الموظفين!$A$2:$B$2006,2,0),"") ->  | K27: =IF(G27<>"",VLOOKUP(G27,التكويد!$A$1:$D$201,4,0)*H27,"") ->  | M27: =IF(G27<>"",VLOOKUP(G27,#REF!,6,0),"") ->  | N27: =IF(G27<>"",VLOOKUP(G27,#REF!,7,0),"") -> 
B28: =IF(F28="","",IF(COUNTIF(F$2:$F28,F28)-1=0,ROWS(F$2:$F28),"r")) ->  | C28: =IF(G28="","",IF(COUNTIF($G$2:G28,G28)-1=0,ROWS($G$2:G28),"r")) ->  | D28: =IF($A$1=F28,COUNTIF($F$2:F28,F28),"") ->  | I28: =IF(G28<>"",VLOOKUP(G28,التكويد!$A$1:$D$201,2,0),"") ->  | J28: =IF(F28<>"",VLOOKUP(F28,الموظفين!$A$2:$B$2006,2,0),"") ->  | K28: =IF(G28<>"",VLOOKUP(G28,التكويد!$A$1:$D$201,4,0)*H28,"") ->  | M28: =IF(G28<>"",VLOOKUP(G28,#REF!,6,0),"") ->  | N28: =IF(G28<>"",VLOOKUP(G28,#REF!,7,0),"") -> 
B29: =IF(F29="","",IF(COUNTIF(F$2:$F29,F29)-1=0,ROWS(F$2:$F29),"r")) ->  | C29: =IF(G29="","",IF(COUNTIF($G$2:G29,G29)-1=0,ROWS($G$2:G29),"r")) ->  | D29: =IF($A$1=F29,COUNTIF($F$2:F29,F29),"") ->  | I29: =IF(G29<>"",VLOOKUP(G29,التكويد!$A$1:$D$201,2,0),"") ->  | J29: =IF(F29<>"",VLOOKUP(F29,الموظفين!$A$2:$B$2006,2,0),"") ->  | K29: =IF(G29<>"",VLOOKUP(G29,التكويد!$A$1:$D$201,4,0)*H29,"") ->  | M29: =IF(G29<>"",VLOOKUP(G29,#REF!,6,0),"") ->  | N29: =IF(G29<>"",VLOOKUP(G29,#REF!,7,0),"") -> 
B30: =IF(F30="","",IF(COUNTIF(F$2:$F30,F30)-1=0,ROWS(F$2:$F30),"r")) ->  | C30: =IF(G30="","",IF(COUNTIF($G$2:G30,G30)-1=0,ROWS($G$2:G30),"r")) ->  | D30: =IF($A$1=F30,COUNTIF($F$2:F30,F30),"") ->  | I30: =IF(G30<>"",VLOOKUP(G30,التكويد!$A$1:$D$201,2,0),"") ->  | J30: =IF(F30<>"",VLOOKUP(F30,الموظفين!$A$2:$B$2006,2,0),"") ->  | K30: =IF(G30<>"",VLOOKUP(G30,التكويد!$A$1:$D$201,4,0)*H30,"") ->  | M30: =IF(G30<>"",VLOOKUP(G30,#REF!,6,0),"") ->  | N30: =IF(G30<>"",VLOOKUP(G30,#REF!,7,0),"") -> 
B31: =IF(F31="","",IF(COUNTIF(F$2:$F31,F31)-1=0,ROWS(F$2:$F31),"r")) ->  | C31: =IF(G31="","",IF(COUNTIF($G$2:G31,G31)-1=0,ROWS($G$2:G31),"r")) ->  | D31: =IF($A$1=F31,COUNTIF($F$2:F31,F31),"") ->  | I31: =IF(G31<>"",VLOOKUP(G31,التكويد!$A$1:$D$201,2,0),"") ->  | J31: =IF(F31<>"",VLOOKUP(F31,الموظفين!$A$2:$B$2006,2,0),"") ->  | K31: =IF(G31<>"",VLOOKUP(G31,التكويد!$A$1:$D$201,4,0)*H31,"") ->  | M31: =IF(G31<>"",VLOOKUP(G31,#REF!,6,0),"") ->  | N31: =IF(G31<>"",VLOOKUP(G31,#REF!,7,0),"") -> 
B32: =IF(F32="","",IF(COUNTIF(F$2:$F32,F32)-1=0,ROWS(F$2:$F32),"r")) ->  | C32: =IF(G32="","",IF(COUNTIF($G$2:G32,G32)-1=0,ROWS($G$2:G32),"r")) ->  | D32: =IF($A$1=F32,COUNTIF($F$2:F32,F32),"") ->  | I32: =IF(G32<>"",VLOOKUP(G32,التكويد!$A$1:$D$201,2,0),"") ->  | J32: =IF(F32<>"",VLOOKUP(F32,الموظفين!$A$2:$B$2006,2,0),"") ->  | K32: =IF(G32<>"",VLOOKUP(G32,التكويد!$A$1:$D$201,4,0)*H32,"") ->  | M32: =IF(G32<>"",VLOOKUP(G32,#REF!,6,0),"") ->  | N32: =IF(G32<>"",VLOOKUP(G32,#REF!,7,0),"") -> 
B33: =IF(F33="","",IF(COUNTIF(F$2:$F33,F33)-1=0,ROWS(F$2:$F33),"r")) ->  | C33: =IF(G33="","",IF(COUNTIF($G$2:G33,G33)-1=0,ROWS($G$2:G33),"r")) ->  | D33: =IF($A$1=F33,COUNTIF($F$2:F33,F33),"") ->  | I33: =IF(G33<>"",VLOOKUP(G33,التكويد!$A$1:$D$201,2,0),"") ->  | J33: =IF(F33<>"",VLOOKUP(F33,الموظفين!$A$2:$B$2006,2,0),"") ->  | K33: =IF(G33<>"",VLOOKUP(G33,التكويد!$A$1:$D$201,4,0)*H33,"") ->  | M33: =IF(G33<>"",VLOOKUP(G33,#REF!,6,0),"") ->  | N33: =IF(G33<>"",VLOOKUP(G33,#REF!,7,0),"") -> 
B34: =IF(F34="","",IF(COUNTIF(F$2:$F34,F34)-1=0,ROWS(F$2:$F34),"r")) ->  | C34: =IF(G34="","",IF(COUNTIF($G$2:G34,G34)-1=0,ROWS($G$2:G34),"r")) ->  | D34: =IF($A$1=F34,COUNTIF($F$2:F34,F34),"") ->  | I34: =IF(G34<>"",VLOOKUP(G34,التكويد!$A$1:$D$201,2,0),"") ->  | J34: =IF(F34<>"",VLOOKUP(F34,الموظفين!$A$2:$B$2006,2,0),"") ->  | K34: =IF(G34<>"",VLOOKUP(G34,التكويد!$A$1:$D$201,4,0)*H34,"") ->  | M34: =IF(G34<>"",VLOOKUP(G34,#REF!,6,0),"") ->  | N34: =IF(G34<>"",VLOOKUP(G34,#REF!,7,0),"") -> 
B35: =IF(F35="","",IF(COUNTIF(F$2:$F35,F35)-1=0,ROWS(F$2:$F35),"r")) ->  | C35: =IF(G35="","",IF(COUNTIF($G$2:G35,G35)-1=0,ROWS($G$2:G35),"r")) ->  | D35: =IF($A$1=F35,COUNTIF($F$2:F35,F35),"") ->  | I35: =IF(G35<>"",VLOOKUP(G35,التكويد!$A$1:$D$201,2,0),"") ->  | J35: =IF(F35<>"",VLOOKUP(F35,الموظفين!$A$2:$B$2006,2,0),"") ->  | K35: =IF(G35<>"",VLOOKUP(G35,التكويد!$A$1:$D$201,4,0)*H35,"") ->  | M35: =IF(G35<>"",VLOOKUP(G35,#REF!,6,0),"") ->  | N35: =IF(G35<>"",VLOOKUP(G35,#REF!,7,0),"") -> 
B36: =IF(F36="","",IF(COUNTIF(F$2:$F36,F36)-1=0,ROWS(F$2:$F36),"r")) ->  | C36: =IF(G36="","",IF(COUNTIF($G$2:G36,G36)-1=0,ROWS($G$2:G36),"r")) ->  | D36: =IF($A$1=F36,COUNTIF($F$2:F36,F36),"") ->  | I36: =IF(G36<>"",VLOOKUP(G36,التكويد!$A$1:$D$201,2,0),"") ->  | J36: =IF(F36<>"",VLOOKUP(F36,الموظفين!$A$2:$B$2006,2,0),"") ->  | K36: =IF(G36<>"",VLOOKUP(G36,التكويد!$A$1:$D$201,4,0)*H36,"") ->  | M36: =IF(G36<>"",VLOOKUP(G36,#REF!,6,0),"") ->  | N36: =IF(G36<>"",VLOOKUP(G36,#REF!,7,0),"") -> 
B37: =IF(F37="","",IF(COUNTIF(F$2:$F37,F37)-1=0,ROWS(F$2:$F37),"r")) ->  | C37: =IF(G37="","",IF(COUNTIF($G$2:G37,G37)-1=0,ROWS($G$2:G37),"r")) ->  | D37: =IF($A$1=F37,COUNTIF($F$2:F37,F37),"") ->  | I37: =IF(G37<>"",VLOOKUP(G37,التكويد!$A$1:$D$201,2,0),"") ->  | J37: =IF(F37<>"",VLOOKUP(F37,الموظفين!$A$2:$B$2006,2,0),"") ->  | K37: =IF(G37<>"",VLOOKUP(G37,التكويد!$A$1:$D$201,4,0)*H37,"") ->  | M37: =IF(G37<>"",VLOOKUP(G37,#REF!,6,0),"") ->  | N37: =IF(G37<>"",VLOOKUP(G37,#REF!,7,0),"") -> 
B38: =IF(F38="","",IF(COUNTIF(F$2:$F38,F38)-1=0,ROWS(F$2:$F38),"r")) ->  | C38: =IF(G38="","",IF(COUNTIF($G$2:G38,G38)-1=0,ROWS($G$2:G38),"r")) ->  | D38: =IF($A$1=F38,COUNTIF($F$2:F38,F38),"") ->  | I38: =IF(G38<>"",VLOOKUP(G38,التكويد!$A$1:$D$201,2,0),"") ->  | J38: =IF(F38<>"",VLOOKUP(F38,الموظفين!$A$2:$B$2006,2,0),"") ->  | K38: =IF(G38<>"",VLOOKUP(G38,التكويد!$A$1:$D$201,4,0)*H38,"") ->  | M38: =IF(G38<>"",VLOOKUP(G38,#REF!,6,0),"") ->  | N38: =IF(G38<>"",VLOOKUP(G38,#REF!,7,0),"") -> 
B39: =IF(F39="","",IF(COUNTIF(F$2:$F39,F39)-1=0,ROWS(F$2:$F39),"r")) ->  | C39: =IF(G39="","",IF(COUNTIF($G$2:G39,G39)-1=0,ROWS($G$2:G39),"r")) ->  | D39: =IF($A$1=F39,COUNTIF($F$2:F39,F39),"") ->  | I39: =IF(G39<>"",VLOOKUP(G39,التكويد!$A$1:$D$201,2,0),"") ->  | J39: =IF(F39<>"",VLOOKUP(F39,الموظفين!$A$2:$B$2006,2,0),"") ->  | K39: =IF(G39<>"",VLOOKUP(G39,التكويد!$A$1:$D$201,4,0)*H39,"") ->  | M39: =IF(G39<>"",VLOOKUP(G39,#REF!,6,0),"") ->  | N39: =IF(G39<>"",VLOOKUP(G39,#REF!,7,0),"") -> 
B40: =IF(F40="","",IF(COUNTIF(F$2:$F40,F40)-1=0,ROWS(F$2:$F40),"r")) ->  | C40: =IF(G40="","",IF(COUNTIF($G$2:G40,G40)-1=0,ROWS($G$2:G40),"r")) ->  | D40: =IF($A$1=F40,COUNTIF($F$2:F40,F40),"") ->  | I40: =IF(G40<>"",VLOOKUP(G40,التكويد!$A$1:$D$201,2,0),"") ->  | J40: =IF(F40<>"",VLOOKUP(F40,الموظفين!$A$2:$B$2006,2,0),"") ->  | K40: =IF(G40<>"",VLOOKUP(G40,التكويد!$A$1:$D$201,4,0)*H40,"") ->  | M40: =IF(G40<>"",VLOOKUP(G40,#REF!,6,0),"") ->  | N40: =IF(G40<>"",VLOOKUP(G40,#REF!,7,0),"") -> 
B41: =IF(F41="","",IF(COUNTIF(F$2:$F41,F41)-1=0,ROWS(F$2:$F41),"r")) ->  | C41: =IF(G41="","",IF(COUNTIF($G$2:G41,G41)-1=0,ROWS($G$2:G41),"r")) ->  | D41: =IF($A$1=F41,COUNTIF($F$2:F41,F41),"") ->  | I41: =IF(G41<>"",VLOOKUP(G41,التكويد!$A$1:$D$201,2,0),"") ->  | J41: =IF(F41<>"",VLOOKUP(F41,الموظفين!$A$2:$B$2006,2,0),"") ->  | K41: =IF(G41<>"",VLOOKUP(G41,التكويد!$A$1:$D$201,4,0)*H41,"") ->  | M41: =IF(G41<>"",VLOOKUP(G41,#REF!,6,0),"") ->  | N41: =IF(G41<>"",VLOOKUP(G41,#REF!,7,0),"") -> 
B42: =IF(F42="","",IF(COUNTIF(F$2:$F42,F42)-1=0,ROWS(F$2:$F42),"r")) ->  | C42: =IF(G42="","",IF(COUNTIF($G$2:G42,G42)-1=0,ROWS($G$2:G42),"r")) ->  | D42: =IF($A$1=F42,COUNTIF($F$2:F42,F42),"") ->  | I42: =IF(G42<>"",VLOOKUP(G42,التكويد!$A$1:$D$201,2,0),"") ->  | J42: =IF(F42<>"",VLOOKUP(F42,الموظفين!$A$2:$B$2006,2,0),"") ->  | K42: =IF(G42<>"",VLOOKUP(G42,التكويد!$A$1:$D$201,4,0)*H42,"") ->  | M42: =IF(G42<>"",VLOOKUP(G42,#REF!,6,0),"") ->  | N42: =IF(G42<>"",VLOOKUP(G42,#REF!,7,0),"") -> 
B43: =IF(F43="","",IF(COUNTIF(F$2:$F43,F43)-1=0,ROWS(F$2:$F43),"r")) ->  | C43: =IF(G43="","",IF(COUNTIF($G$2:G43,G43)-1=0,ROWS($G$2:G43),"r")) ->  | D43: =IF($A$1=F43,COUNTIF($F$2:F43,F43),"") ->  | I43: =IF(G43<>"",VLOOKUP(G43,التكويد!$A$1:$D$201,2,0),"") ->  | J43: =IF(F43<>"",VLOOKUP(F43,الموظفين!$A$2:$B$2006,2,0),"") ->  | K43: =IF(G43<>"",VLOOKUP(G43,التكويد!$A$1:$D$201,4,0)*H43,"") ->  | M43: =IF(G43<>"",VLOOKUP(G43,#REF!,6,0),"") ->  | N43: =IF(G43<>"",VLOOKUP(G43,#REF!,7,0),"") -> 
B44: =IF(F44="","",IF(COUNTIF(F$2:$F44,F44)-1=0,ROWS(F$2:$F44),"r")) ->  | C44: =IF(G44="","",IF(COUNTIF($G$2:G44,G44)-1=0,ROWS($G$2:G44),"r")) ->  | D44: =IF($A$1=F44,COUNTIF($F$2:F44,F44),"") ->  | I44: =IF(G44<>"",VLOOKUP(G44,التكويد!$A$1:$D$201,2,0),"") ->  | J44: =IF(F44<>"",VLOOKUP(F44,الموظفين!$A$2:$B$2006,2,0),"") ->  | K44: =IF(G44<>"",VLOOKUP(G44,التكويد!$A$1:$D$201,4,0)*H44,"") ->  | M44: =IF(G44<>"",VLOOKUP(G44,#REF!,6,0),"") ->  | N44: =IF(G44<>"",VLOOKUP(G44,#REF!,7,0),"") -> 
B45: =IF(F45="","",IF(COUNTIF(F$2:$F45,F45)-1=0,ROWS(F$2:$F45),"r")) ->  | C45: =IF(G45="","",IF(COUNTIF($G$2:G45,G45)-1=0,ROWS($G$2:G45),"r")) ->  | D45: =IF($A$1=F45,COUNTIF($F$2:F45,F45),"") ->  | I45: =IF(G45<>"",VLOOKUP(G45,التكويد!$A$1:$D$201,2,0),"") ->  | J45: =IF(F45<>"",VLOOKUP(F45,الموظفين!$A$2:$B$2006,2,0),"") ->  | K45: =IF(G45<>"",VLOOKUP(G45,التكويد!$A$1:$D$201,4,0)*H45,"") ->  | M45: =IF(G45<>"",VLOOKUP(G45,#REF!,6,0),"") ->  | N45: =IF(G45<>"",VLOOKUP(G45,#REF!,7,0),"") -> 
B46: =IF(F46="","",IF(COUNTIF(F$2:$F46,F46)-1=0,ROWS(F$2:$F46),"r")) ->  | C46: =IF(G46="","",IF(COUNTIF($G$2:G46,G46)-1=0,ROWS($G$2:G46),"r")) ->  | D46: =IF($A$1=F46,COUNTIF($F$2:F46,F46),"") ->  | I46: =IF(G46<>"",VLOOKUP(G46,التكويد!$A$1:$D$201,2,0),"") ->  | J46: =IF(F46<>"",VLOOKUP(F46,الموظفين!$A$2:$B$2006,2,0),"") ->  | K46: =IF(G46<>"",VLOOKUP(G46,التكويد!$A$1:$D$201,4,0)*H46,"") ->  | M46: =IF(G46<>"",VLOOKUP(G46,#REF!,6,0),"") ->  | N46: =IF(G46<>"",VLOOKUP(G46,#REF!,7,0),"") -> 
B47: =IF(F47="","",IF(COUNTIF(F$2:$F47,F47)-1=0,ROWS(F$2:$F47),"r")) ->  | C47: =IF(G47="","",IF(COUNTIF($G$2:G47,G47)-1=0,ROWS($G$2:G47),"r")) ->  | D47: =IF($A$1=F47,COUNTIF($F$2:F47,F47),"") ->  | I47: =IF(G47<>"",VLOOKUP(G47,التكويد!$A$1:$D$201,2,0),"") ->  | J47: =IF(F47<>"",VLOOKUP(F47,الموظفين!$A$2:$B$2006,2,0),"") ->  | K47: =IF(G47<>"",VLOOKUP(G47,التكويد!$A$1:$D$201,4,0)*H47,"") ->  | M47: =IF(G47<>"",VLOOKUP(G47,#REF!,6,0),"") ->  | N47: =IF(G47<>"",VLOOKUP(G47,#REF!,7,0),"") -> 
B48: =IF(F48="","",IF(COUNTIF(F$2:$F48,F48)-1=0,ROWS(F$2:$F48),"r")) ->  | C48: =IF(G48="","",IF(COUNTIF($G$2:G48,G48)-1=0,ROWS($G$2:G48),"r")) ->  | D48: =IF($A$1=F48,COUNTIF($F$2:F48,F48),"") ->  | I48: =IF(G48<>"",VLOOKUP(G48,التكويد!$A$1:$D$201,2,0),"") ->  | J48: =IF(F48<>"",VLOOKUP(F48,الموظفين!$A$2:$B$2006,2,0),"") ->  | K48: =IF(G48<>"",VLOOKUP(G48,التكويد!$A$1:$D$201,4,0)*H48,"") ->  | M48: =IF(G48<>"",VLOOKUP(G48,#REF!,6,0),"") ->  | N48: =IF(G48<>"",VLOOKUP(G48,#REF!,7,0),"") -> 
B49: =IF(F49="","",IF(COUNTIF(F$2:$F49,F49)-1=0,ROWS(F$2:$F49),"r")) ->  | C49: =IF(G49="","",IF(COUNTIF($G$2:G49,G49)-1=0,ROWS($G$2:G49),"r")) ->  | D49: =IF($A$1=F49,COUNTIF($F$2:F49,F49),"") ->  | I49: =IF(G49<>"",VLOOKUP(G49,التكويد!$A$1:$D$201,2,0),"") ->  | J49: =IF(F49<>"",VLOOKUP(F49,الموظفين!$A$2:$B$2006,2,0),"") ->  | K49: =IF(G49<>"",VLOOKUP(G49,التكويد!$A$1:$D$201,4,0)*H49,"") ->  | M49: =IF(G49<>"",VLOOKUP(G49,#REF!,6,0),"") ->  | N49: =IF(G49<>"",VLOOKUP(G49,#REF!,7,0),"") -> 
B50: =IF(F50="","",IF(COUNTIF(F$2:$F50,F50)-1=0,ROWS(F$2:$F50),"r")) ->  | C50: =IF(G50="","",IF(COUNTIF($G$2:G50,G50)-1=0,ROWS($G$2:G50),"r")) ->  | D50: =IF($A$1=F50,COUNTIF($F$2:F50,F50),"") ->  | I50: =IF(G50<>"",VLOOKUP(G50,التكويد!$A$1:$D$201,2,0),"") ->  | J50: =IF(F50<>"",VLOOKUP(F50,الموظفين!$A$2:$B$2006,2,0),"") ->  | K50: =IF(G50<>"",VLOOKUP(G50,التكويد!$A$1:$D$201,4,0)*H50,"") ->  | M50: =IF(G50<>"",VLOOKUP(G50,#REF!,6,0),"") ->  | N50: =IF(G50<>"",VLOOKUP(G50,#REF!,7,0),"") -> 
B51: =IF(F51="","",IF(COUNTIF(F$2:$F51,F51)-1=0,ROWS(F$2:$F51),"r")) ->  | C51: =IF(G51="","",IF(COUNTIF($G$2:G51,G51)-1=0,ROWS($G$2:G51),"r")) ->  | D51: =IF($A$1=F51,COUNTIF($F$2:F51,F51),"") ->  | I51: =IF(G51<>"",VLOOKUP(G51,التكويد!$A$1:$D$201,2,0),"") ->  | J51: =IF(F51<>"",VLOOKUP(F51,الموظفين!$A$2:$B$2006,2,0),"") ->  | K51: =IF(G51<>"",VLOOKUP(G51,التكويد!$A$1:$D$201,4,0)*H51,"") ->  | M51: =IF(G51<>"",VLOOKUP(G51,#REF!,6,0),"") ->  | N51: =IF(G51<>"",VLOOKUP(G51,#REF!,7,0),"") -> 
B52: =IF(F52="","",IF(COUNTIF(F$2:$F52,F52)-1=0,ROWS(F$2:$F52),"r")) ->  | C52: =IF(G52="","",IF(COUNTIF($G$2:G52,G52)-1=0,ROWS($G$2:G52),"r")) ->  | D52: =IF($A$1=F52,COUNTIF($F$2:F52,F52),"") ->  | I52: =IF(G52<>"",VLOOKUP(G52,التكويد!$A$1:$D$201,2,0),"") ->  | J52: =IF(F52<>"",VLOOKUP(F52,الموظفين!$A$2:$B$2006,2,0),"") ->  | K52: =IF(G52<>"",VLOOKUP(G52,التكويد!$A$1:$D$201,4,0)*H52,"") ->  | M52: =IF(G52<>"",VLOOKUP(G52,#REF!,6,0),"") ->  | N52: =IF(G52<>"",VLOOKUP(G52,#REF!,7,0),"") -> 
B53: =IF(F53="","",IF(COUNTIF(F$2:$F53,F53)-1=0,ROWS(F$2:$F53),"r")) ->  | C53: =IF(G53="","",IF(COUNTIF($G$2:G53,G53)-1=0,ROWS($G$2:G53),"r")) ->  | D53: =IF($A$1=F53,COUNTIF($F$2:F53,F53),"") ->  | I53: =IF(G53<>"",VLOOKUP(G53,التكويد!$A$1:$D$201,2,0),"") ->  | J53: =IF(F53<>"",VLOOKUP(F53,الموظفين!$A$2:$B$2006,2,0),"") ->  | K53: =IF(G53<>"",VLOOKUP(G53,التكويد!$A$1:$D$201,4,0)*H53,"") ->  | M53: =IF(G53<>"",VLOOKUP(G53,#REF!,6,0),"") ->  | N53: =IF(G53<>"",VLOOKUP(G53,#REF!,7,0),"") -> 
B54: =IF(F54="","",IF(COUNTIF(F$2:$F54,F54)-1=0,ROWS(F$2:$F54),"r")) ->  | C54: =IF(G54="","",IF(COUNTIF($G$2:G54,G54)-1=0,ROWS($G$2:G54),"r")) ->  | D54: =IF($A$1=F54,COUNTIF($F$2:F54,F54),"") ->  | I54: =IF(G54<>"",VLOOKUP(G54,التكويد!$A$1:$D$201,2,0),"") ->  | J54: =IF(F54<>"",VLOOKUP(F54,الموظفين!$A$2:$B$2006,2,0),"") ->  | K54: =IF(G54<>"",VLOOKUP(G54,التكويد!$A$1:$D$201,4,0)*H54,"") ->  | M54: =IF(G54<>"",VLOOKUP(G54,#REF!,6,0),"") ->  | N54: =IF(G54<>"",VLOOKUP(G54,#REF!,7,0),"") -> 
B55: =IF(F55="","",IF(COUNTIF(F$2:$F55,F55)-1=0,ROWS(F$2:$F55),"r")) ->  | C55: =IF(G55="","",IF(COUNTIF($G$2:G55,G55)-1=0,ROWS($G$2:G55),"r")) ->  | D55: =IF($A$1=F55,COUNTIF($F$2:F55,F55),"") ->  | I55: =IF(G55<>"",VLOOKUP(G55,التكويد!$A$1:$D$201,2,0),"") ->  | J55: =IF(F55<>"",VLOOKUP(F55,الموظفين!$A$2:$B$2006,2,0),"") ->  | K55: =IF(G55<>"",VLOOKUP(G55,التكويد!$A$1:$D$201,4,0)*H55,"") ->  | M55: =IF(G55<>"",VLOOKUP(G55,#REF!,6,0),"") ->  | N55: =IF(G55<>"",VLOOKUP(G55,#REF!,7,0),"") -> 
B56: =IF(F56="","",IF(COUNTIF(F$2:$F56,F56)-1=0,ROWS(F$2:$F56),"r")) ->  | C56: =IF(G56="","",IF(COUNTIF($G$2:G56,G56)-1=0,ROWS($G$2:G56),"r")) ->  | D56: =IF($A$1=F56,COUNTIF($F$2:F56,F56),"") ->  | I56: =IF(G56<>"",VLOOKUP(G56,التكويد!$A$1:$D$201,2,0),"") ->  | J56: =IF(F56<>"",VLOOKUP(F56,الموظفين!$A$2:$B$2006,2,0),"") ->  | K56: =IF(G56<>"",VLOOKUP(G56,التكويد!$A$1:$D$201,4,0)*H56,"") ->  | M56: =IF(G56<>"",VLOOKUP(G56,#REF!,6,0),"") ->  | N56: =IF(G56<>"",VLOOKUP(G56,#REF!,7,0),"") -> 
B57: =IF(F57="","",IF(COUNTIF(F$2:$F57,F57)-1=0,ROWS(F$2:$F57),"r")) ->  | C57: =IF(G57="","",IF(COUNTIF($G$2:G57,G57)-1=0,ROWS($G$2:G57),"r")) ->  | D57: =IF($A$1=F57,COUNTIF($F$2:F57,F57),"") ->  | I57: =IF(G57<>"",VLOOKUP(G57,التكويد!$A$1:$D$201,2,0),"") ->  | J57: =IF(F57<>"",VLOOKUP(F57,الموظفين!$A$2:$B$2006,2,0),"") ->  | K57: =IF(G57<>"",VLOOKUP(G57,التكويد!$A$1:$D$201,4,0)*H57,"") ->  | M57: =IF(G57<>"",VLOOKUP(G57,#REF!,6,0),"") ->  | N57: =IF(G57<>"",VLOOKUP(G57,#REF!,7,0),"") -> 
B58: =IF(F58="","",IF(COUNTIF(F$2:$F58,F58)-1=0,ROWS(F$2:$F58),"r")) ->  | C58: =IF(G58="","",IF(COUNTIF($G$2:G58,G58)-1=0,ROWS($G$2:G58),"r")) ->  | D58: =IF($A$1=F58,COUNTIF($F$2:F58,F58),"") ->  | I58: =IF(G58<>"",VLOOKUP(G58,التكويد!$A$1:$D$201,2,0),"") ->  | J58: =IF(F58<>"",VLOOKUP(F58,الموظفين!$A$2:$B$2006,2,0),"") ->  | K58: =IF(G58<>"",VLOOKUP(G58,التكويد!$A$1:$D$201,4,0)*H58,"") ->  | M58: =IF(G58<>"",VLOOKUP(G58,#REF!,6,0),"") ->  | N58: =IF(G58<>"",VLOOKUP(G58,#REF!,7,0),"") -> 
B59: =IF(F59="","",IF(COUNTIF(F$2:$F59,F59)-1=0,ROWS(F$2:$F59),"r")) ->  | C59: =IF(G59="","",IF(COUNTIF($G$2:G59,G59)-1=0,ROWS($G$2:G59),"r")) ->  | D59: =IF($A$1=F59,COUNTIF($F$2:F59,F59),"") ->  | I59: =IF(G59<>"",VLOOKUP(G59,التكويد!$A$1:$D$201,2,0),"") ->  | J59: =IF(F59<>"",VLOOKUP(F59,الموظفين!$A$2:$B$2006,2,0),"") ->  | K59: =IF(G59<>"",VLOOKUP(G59,التكويد!$A$1:$D$201,4,0)*H59,"") ->  | M59: =IF(G59<>"",VLOOKUP(G59,#REF!,6,0),"") ->  | N59: =IF(G59<>"",VLOOKUP(G59,#REF!,7,0),"") -> 
B60: =IF(F60="","",IF(COUNTIF(F$2:$F60,F60)-1=0,ROWS(F$2:$F60),"r")) ->  | C60: =IF(G60="","",IF(COUNTIF($G$2:G60,G60)-1=0,ROWS($G$2:G60),"r")) ->  | D60: =IF($A$1=F60,COUNTIF($F$2:F60,F60),"") ->  | I60: =IF(G60<>"",VLOOKUP(G60,التكويد!$A$1:$D$201,2,0),"") ->  | J60: =IF(F60<>"",VLOOKUP(F60,الموظفين!$A$2:$B$2006,2,0),"") ->  | K60: =IF(G60<>"",VLOOKUP(G60,التكويد!$A$1:$D$201,4,0)*H60,"") ->  | M60: =IF(G60<>"",VLOOKUP(G60,#REF!,6,0),"") ->  | N60: =IF(G60<>"",VLOOKUP(G60,#REF!,7,0),"") -> 
B61: =IF(F61="","",IF(COUNTIF(F$2:$F61,F61)-1=0,ROWS(F$2:$F61),"r")) ->  | C61: =IF(G61="","",IF(COUNTIF($G$2:G61,G61)-1=0,ROWS($G$2:G61),"r")) ->  | D61: =IF($A$1=F61,COUNTIF($F$2:F61,F61),"") ->  | I61: =IF(G61<>"",VLOOKUP(G61,التكويد!$A$1:$D$201,2,0),"") ->  | J61: =IF(F61<>"",VLOOKUP(F61,الموظفين!$A$2:$B$2006,2,0),"") ->  | K61: =IF(G61<>"",VLOOKUP(G61,التكويد!$A$1:$D$201,4,0)*H61,"") ->  | M61: =IF(G61<>"",VLOOKUP(G61,#REF!,6,0),"") ->  | N61: =IF(G61<>"",VLOOKUP(G61,#REF!,7,0),"") -> 
B62: =IF(F62="","",IF(COUNTIF(F$2:$F62,F62)-1=0,ROWS(F$2:$F62),"r")) ->  | C62: =IF(G62="","",IF(COUNTIF($G$2:G62,G62)-1=0,ROWS($G$2:G62),"r")) ->  | D62: =IF($A$1=F62,COUNTIF($F$2:F62,F62),"") ->  | I62: =IF(G62<>"",VLOOKUP(G62,التكويد!$A$1:$D$201,2,0),"") ->  | J62: =IF(F62<>"",VLOOKUP(F62,الموظفين!$A$2:$B$2006,2,0),"") ->  | K62: =IF(G62<>"",VLOOKUP(G62,التكويد!$A$1:$D$201,4,0)*H62,"") ->  | M62: =IF(G62<>"",VLOOKUP(G62,#REF!,6,0),"") ->  | N62: =IF(G62<>"",VLOOKUP(G62,#REF!,7,0),"") -> 
B63: =IF(F63="","",IF(COUNTIF(F$2:$F63,F63)-1=0,ROWS(F$2:$F63),"r")) ->  | C63: =IF(G63="","",IF(COUNTIF($G$2:G63,G63)-1=0,ROWS($G$2:G63),"r")) ->  | D63: =IF($A$1=F63,COUNTIF($F$2:F63,F63),"") ->  | I63: =IF(G63<>"",VLOOKUP(G63,التكويد!$A$1:$D$201,2,0),"") ->  | J63: =IF(F63<>"",VLOOKUP(F63,الموظفين!$A$2:$B$2006,2,0),"") ->  | K63: =IF(G63<>"",VLOOKUP(G63,التكويد!$A$1:$D$201,4,0)*H63,"") ->  | M63: =IF(G63<>"",VLOOKUP(G63,#REF!,6,0),"") ->  | N63: =IF(G63<>"",VLOOKUP(G63,#REF!,7,0),"") -> 
B64: =IF(F64="","",IF(COUNTIF(F$2:$F64,F64)-1=0,ROWS(F$2:$F64),"r")) ->  | C64: =IF(G64="","",IF(COUNTIF($G$2:G64,G64)-1=0,ROWS($G$2:G64),"r")) ->  | D64: =IF($A$1=F64,COUNTIF($F$2:F64,F64),"") ->  | I64: =IF(G64<>"",VLOOKUP(G64,التكويد!$A$1:$D$201,2,0),"") ->  | J64: =IF(F64<>"",VLOOKUP(F64,الموظفين!$A$2:$B$2006,2,0),"") ->  | K64: =IF(G64<>"",VLOOKUP(G64,التكويد!$A$1:$D$201,4,0)*H64,"") ->  | M64: =IF(G64<>"",VLOOKUP(G64,#REF!,6,0),"") ->  | N64: =IF(G64<>"",VLOOKUP(G64,#REF!,7,0),"") -> 
B65: =IF(F65="","",IF(COUNTIF(F$2:$F65,F65)-1=0,ROWS(F$2:$F65),"r")) ->  | C65: =IF(G65="","",IF(COUNTIF($G$2:G65,G65)-1=0,ROWS($G$2:G65),"r")) ->  | D65: =IF($A$1=F65,COUNTIF($F$2:F65,F65),"") ->  | I65: =IF(G65<>"",VLOOKUP(G65,التكويد!$A$1:$D$201,2,0),"") ->  | J65: =IF(F65<>"",VLOOKUP(F65,الموظفين!$A$2:$B$2006,2,0),"") ->  | K65: =IF(G65<>"",VLOOKUP(G65,التكويد!$A$1:$D$201,4,0)*H65,"") ->  | M65: =IF(G65<>"",VLOOKUP(G65,#REF!,6,0),"") ->  | N65: =IF(G65<>"",VLOOKUP(G65,#REF!,7,0),"") -> 
B66: =IF(F66="","",IF(COUNTIF(F$2:$F66,F66)-1=0,ROWS(F$2:$F66),"r")) ->  | C66: =IF(G66="","",IF(COUNTIF($G$2:G66,G66)-1=0,ROWS($G$2:G66),"r")) ->  | D66: =IF($A$1=F66,COUNTIF($F$2:F66,F66),"") ->  | I66: =IF(G66<>"",VLOOKUP(G66,التكويد!$A$1:$D$201,2,0),"") ->  | J66: =IF(F66<>"",VLOOKUP(F66,الموظفين!$A$2:$B$2006,2,0),"") ->  | K66: =IF(G66<>"",VLOOKUP(G66,التكويد!$A$1:$D$201,4,0)*H66,"") ->  | M66: =IF(G66<>"",VLOOKUP(G66,#REF!,6,0),"") ->  | N66: =IF(G66<>"",VLOOKUP(G66,#REF!,7,0),"") -> 
B67: =IF(F67="","",IF(COUNTIF(F$2:$F67,F67)-1=0,ROWS(F$2:$F67),"r")) ->  | C67: =IF(G67="","",IF(COUNTIF($G$2:G67,G67)-1=0,ROWS($G$2:G67),"r")) ->  | D67: =IF($A$1=F67,COUNTIF($F$2:F67,F67),"") ->  | I67: =IF(G67<>"",VLOOKUP(G67,التكويد!$A$1:$D$201,2,0),"") ->  | J67: =IF(F67<>"",VLOOKUP(F67,الموظفين!$A$2:$B$2006,2,0),"") ->  | K67: =IF(G67<>"",VLOOKUP(G67,التكويد!$A$1:$D$201,4,0)*H67,"") ->  | L67: =IF(H67="","",IF(H67<0,"منصرف",IF(H67>0,"بيع"))) ->  | M67: =IF(G67<>"",VLOOKUP(G67,#REF!,6,0),"") ->  | N67: =IF(G67<>"",VLOOKUP(G67,#REF!,7,0),"") -> 
B68: =IF(F68="","",IF(COUNTIF(F$2:$F68,F68)-1=0,ROWS(F$2:$F68),"r")) ->  | C68: =IF(G68="","",IF(COUNTIF($G$2:G68,G68)-1=0,ROWS($G$2:G68),"r")) ->  | D68: =IF($A$1=F68,COUNTIF($F$2:F68,F68),"") ->  | I68: =IF(G68<>"",VLOOKUP(G68,التكويد!$A$1:$D$201,2,0),"") ->  | J68: =IF(F68<>"",VLOOKUP(F68,الموظفين!$A$2:$B$2006,2,0),"") ->  | K68: =IF(G68<>"",VLOOKUP(G68,التكويد!$A$1:$D$201,4,0)*H68,"") ->  | M68: =IF(G68<>"",VLOOKUP(G68,#REF!,6,0),"") ->  | N68: =IF(G68<>"",VLOOKUP(G68,#REF!,7,0),"") -> 
B69: =IF(F69="","",IF(COUNTIF(F$2:$F69,F69)-1=0,ROWS(F$2:$F69),"r")) ->  | C69: =IF(G69="","",IF(COUNTIF($G$2:G69,G69)-1=0,ROWS($G$2:G69),"r")) ->  | D69: =IF($A$1=F69,COUNTIF($F$2:F69,F69),"") ->  | I69: =IF(G69<>"",VLOOKUP(G69,التكويد!$A$1:$D$201,2,0),"") ->  | J69: =IF(F69<>"",VLOOKUP(F69,الموظفين!$A$2:$B$2006,2,0),"") ->  | K69: =IF(G69<>"",VLOOKUP(G69,التكويد!$A$1:$D$201,4,0)*H69,"") ->  | M69: =IF(G69<>"",VLOOKUP(G69,#REF!,6,0),"") ->  | N69: =IF(G69<>"",VLOOKUP(G69,#REF!,7,0),"") -> 
B70: =IF(F70="","",IF(COUNTIF(F$2:$F70,F70)-1=0,ROWS(F$2:$F70),"r")) ->  | C70: =IF(G70="","",IF(COUNTIF($G$2:G70,G70)-1=0,ROWS($G$2:G70),"r")) ->  | D70: =IF($A$1=F70,COUNTIF($F$2:F70,F70),"") ->  | I70: =IF(G70<>"",VLOOKUP(G70,التكويد!$A$1:$D$201,2,0),"") ->  | J70: =IF(F70<>"",VLOOKUP(F70,الموظفين!$A$2:$B$2006,2,0),"") ->  | K70: =IF(G70<>"",VLOOKUP(G70,التكويد!$A$1:$D$201,4,0)*H70,"") ->  | M70: =IF(G70<>"",VLOOKUP(G70,#REF!,6,0),"") ->  | N70: =IF(G70<>"",VLOOKUP(G70,#REF!,7,0),"") -> 
B71: =IF(F71="","",IF(COUNTIF(F$2:$F71,F71)-1=0,ROWS(F$2:$F71),"r")) ->  | C71: =IF(G71="","",IF(COUNTIF($G$2:G71,G71)-1=0,ROWS($G$2:G71),"r")) ->  | D71: =IF($A$1=F71,COUNTIF($F$2:F71,F71),"") ->  | I71: =IF(G71<>"",VLOOKUP(G71,التكويد!$A$1:$D$201,2,0),"") ->  | J71: =IF(F71<>"",VLOOKUP(F71,الموظفين!$A$2:$B$2006,2,0),"") ->  | K71: =IF(G71<>"",VLOOKUP(G71,التكويد!$A$1:$D$201,4,0)*H71,"") ->  | M71: =IF(G71<>"",VLOOKUP(G71,#REF!,6,0),"") ->  | N71: =IF(G71<>"",VLOOKUP(G71,#REF!,7,0),"") -> 
B72: =IF(F72="","",IF(COUNTIF(F$2:$F72,F72)-1=0,ROWS(F$2:$F72),"r")) ->  | C72: =IF(G72="","",IF(COUNTIF($G$2:G72,G72)-1=0,ROWS($G$2:G72),"r")) ->  | D72: =IF($A$1=F72,COUNTIF($F$2:F72,F72),"") ->  | I72: =IF(G72<>"",VLOOKUP(G72,التكويد!$A$1:$D$201,2,0),"") ->  | J72: =IF(F72<>"",VLOOKUP(F72,الموظفين!$A$2:$B$2006,2,0),"") ->  | K72: =IF(G72<>"",VLOOKUP(G72,التكويد!$A$1:$D$201,4,0)*H72,"") ->  | M72: =IF(G72<>"",VLOOKUP(G72,#REF!,6,0),"") ->  | N72: =IF(G72<>"",VLOOKUP(G72,#REF!,7,0),"") -> 
B73: =IF(F73="","",IF(COUNTIF(F$2:$F73,F73)-1=0,ROWS(F$2:$F73),"r")) ->  | C73: =IF(G73="","",IF(COUNTIF($G$2:G73,G73)-1=0,ROWS($G$2:G73),"r")) ->  | D73: =IF($A$1=F73,COUNTIF($F$2:F73,F73),"") ->  | I73: =IF(G73<>"",VLOOKUP(G73,التكويد!$A$1:$D$201,2,0),"") ->  | J73: =IF(F73<>"",VLOOKUP(F73,الموظفين!$A$2:$B$2006,2,0),"") ->  | K73: =IF(G73<>"",VLOOKUP(G73,التكويد!$A$1:$D$201,4,0)*H73,"") ->  | M73: =IF(G73<>"",VLOOKUP(G73,#REF!,6,0),"") ->  | N73: =IF(G73<>"",VLOOKUP(G73,#REF!,7,0),"") -> 
B74: =IF(F74="","",IF(COUNTIF(F$2:$F74,F74)-1=0,ROWS(F$2:$F74),"r")) ->  | C74: =IF(G74="","",IF(COUNTIF($G$2:G74,G74)-1=0,ROWS($G$2:G74),"r")) ->  | D74: =IF($A$1=F74,COUNTIF($F$2:F74,F74),"") ->  | I74: =IF(G74<>"",VLOOKUP(G74,التكويد!$A$1:$D$201,2,0),"") ->  | J74: =IF(F74<>"",VLOOKUP(F74,الموظفين!$A$2:$B$2006,2,0),"") ->  | K74: =IF(G74<>"",VLOOKUP(G74,التكويد!$A$1:$D$201,4,0)*H74,"") ->  | M74: =IF(G74<>"",VLOOKUP(G74,#REF!,6,0),"") ->  | N74: =IF(G74<>"",VLOOKUP(G74,#REF!,7,0),"") -> 
B75: =IF(F75="","",IF(COUNTIF(F$2:$F75,F75)-1=0,ROWS(F$2:$F75),"r")) ->  | C75: =IF(G75="","",IF(COUNTIF($G$2:G75,G75)-1=0,ROWS($G$2:G75),"r")) ->  | D75: =IF($A$1=F75,COUNTIF($F$2:F75,F75),"") ->  | I75: =IF(G75<>"",VLOOKUP(G75,التكويد!$A$1:$D$201,2,0),"") ->  | J75: =IF(F75<>"",VLOOKUP(F75,الموظفين!$A$2:$B$2006,2,0),"") ->  | K75: =IF(G75<>"",VLOOKUP(G75,التكويد!$A$1:$D$201,4,0)*H75,"") ->  | M75: =IF(G75<>"",VLOOKUP(G75,#REF!,6,0),"") ->  | N75: =IF(G75<>"",VLOOKUP(G75,#REF!,7,0),"") -> 
B76: =IF(F76="","",IF(COUNTIF(F$2:$F76,F76)-1=0,ROWS(F$2:$F76),"r")) ->  | C76: =IF(G76="","",IF(COUNTIF($G$2:G76,G76)-1=0,ROWS($G$2:G76),"r")) ->  | D76: =IF($A$1=F76,COUNTIF($F$2:F76,F76),"") ->  | I76: =IF(G76<>"",VLOOKUP(G76,التكويد!$A$1:$D$201,2,0),"") ->  | J76: =IF(F76<>"",VLOOKUP(F76,الموظفين!$A$2:$B$2006,2,0),"") ->  | K76: =IF(G76<>"",VLOOKUP(G76,التكويد!$A$1:$D$201,4,0)*H76,"") ->  | M76: =IF(G76<>"",VLOOKUP(G76,#REF!,6,0),"") ->  | N76: =IF(G76<>"",VLOOKUP(G76,#REF!,7,0),"") -> 
B77: =IF(F77="","",IF(COUNTIF(F$2:$F77,F77)-1=0,ROWS(F$2:$F77),"r")) ->  | C77: =IF(G77="","",IF(COUNTIF($G$2:G77,G77)-1=0,ROWS($G$2:G77),"r")) ->  | D77: =IF($A$1=F77,COUNTIF($F$2:F77,F77),"") ->  | I77: =IF(G77<>"",VLOOKUP(G77,التكويد!$A$1:$D$201,2,0),"") ->  | J77: =IF(F77<>"",VLOOKUP(F77,الموظفين!$A$2:$B$2006,2,0),"") ->  | K77: =IF(G77<>"",VLOOKUP(G77,التكويد!$A$1:$D$201,4,0)*H77,"") ->  | M77: =IF(G77<>"",VLOOKUP(G77,#REF!,6,0),"") ->  | N77: =IF(G77<>"",VLOOKUP(G77,#REF!,7,0),"") -> 
B78: =IF(F78="","",IF(COUNTIF(F$2:$F78,F78)-1=0,ROWS(F$2:$F78),"r")) ->  | C78: =IF(G78="","",IF(COUNTIF($G$2:G78,G78)-1=0,ROWS($G$2:G78),"r")) ->  | D78: =IF($A$1=F78,COUNTIF($F$2:F78,F78),"") ->  | I78: =IF(G78<>"",VLOOKUP(G78,التكويد!$A$1:$D$201,2,0),"") ->  | J78: =IF(F78<>"",VLOOKUP(F78,الموظفين!$A$2:$B$2006,2,0),"") ->  | K78: =IF(G78<>"",VLOOKUP(G78,التكويد!$A$1:$D$201,4,0)*H78,"") ->  | M78: =IF(G78<>"",VLOOKUP(G78,#REF!,6,0),"") ->  | N78: =IF(G78<>"",VLOOKUP(G78,#REF!,7,0),"") -> 
B79: =IF(F79="","",IF(COUNTIF(F$2:$F79,F79)-1=0,ROWS(F$2:$F79),"r")) ->  | C79: =IF(G79="","",IF(COUNTIF($G$2:G79,G79)-1=0,ROWS($G$2:G79),"r")) ->  | D79: =IF($A$1=F79,COUNTIF($F$2:F79,F79),"") ->  | I79: =IF(G79<>"",VLOOKUP(G79,التكويد!$A$1:$D$201,2,0),"") ->  | J79: =IF(F79<>"",VLOOKUP(F79,الموظفين!$A$2:$B$2006,2,0),"") ->  | K79: =IF(G79<>"",VLOOKUP(G79,التكويد!$A$1:$D$201,4,0)*H79,"") ->  | M79: =IF(G79<>"",VLOOKUP(G79,#REF!,6,0),"") ->  | N79: =IF(G79<>"",VLOOKUP(G79,#REF!,7,0),"") -> 
B80: =IF(F80="","",IF(COUNTIF(F$2:$F80,F80)-1=0,ROWS(F$2:$F80),"r")) ->  | C80: =IF(G80="","",IF(COUNTIF($G$2:G80,G80)-1=0,ROWS($G$2:G80),"r")) ->  | D80: =IF($A$1=F80,COUNTIF($F$2:F80,F80),"") ->  | I80: =IF(G80<>"",VLOOKUP(G80,التكويد!$A$1:$D$201,2,0),"") ->  | J80: =IF(F80<>"",VLOOKUP(F80,الموظفين!$A$2:$B$2006,2,0),"") ->  | K80: =IF(G80<>"",VLOOKUP(G80,التكويد!$A$1:$D$201,4,0)*H80,"") ->  | M80: =IF(G80<>"",VLOOKUP(G80,#REF!,6,0),"") ->  | N80: =IF(G80<>"",VLOOKUP(G80,#REF!,7,0),"") -> 
B81: =IF(F81="","",IF(COUNTIF(F$2:$F81,F81)-1=0,ROWS(F$2:$F81),"r")) ->  | C81: =IF(G81="","",IF(COUNTIF($G$2:G81,G81)-1=0,ROWS($G$2:G81),"r")) ->  | D81: =IF($A$1=F81,COUNTIF($F$2:F81,F81),"") ->  | I81: =IF(G81<>"",VLOOKUP(G81,التكويد!$A$1:$D$201,2,0),"") ->  | J81: =IF(F81<>"",VLOOKUP(F81,الموظفين!$A$2:$B$2006,2,0),"") ->  | K81: =IF(G81<>"",VLOOKUP(G81,التكويد!$A$1:$D$201,4,0)*H81,"") ->  | M81: =IF(G81<>"",VLOOKUP(G81,#REF!,6,0),"") ->  | N81: =IF(G81<>"",VLOOKUP(G81,#REF!,7,0),"") -> 
B82: =IF(F82="","",IF(COUNTIF(F$2:$F82,F82)-1=0,ROWS(F$2:$F82),"r")) ->  | C82: =IF(G82="","",IF(COUNTIF($G$2:G82,G82)-1=0,ROWS($G$2:G82),"r")) ->  | D82: =IF($A$1=F82,COUNTIF($F$2:F82,F82),"") ->  | I82: =IF(G82<>"",VLOOKUP(G82,التكويد!$A$1:$D$201,2,0),"") ->  | J82: =IF(F82<>"",VLOOKUP(F82,الموظفين!$A$2:$B$2006,2,0),"") ->  | K82: =IF(G82<>"",VLOOKUP(G82,التكويد!$A$1:$D$201,4,0)*H82,"") ->  | M82: =IF(G82<>"",VLOOKUP(G82,#REF!,6,0),"") ->  | N82: =IF(G82<>"",VLOOKUP(G82,#REF!,7,0),"") -> 
B83: =IF(F83="","",IF(COUNTIF(F$2:$F83,F83)-1=0,ROWS(F$2:$F83),"r")) ->  | C83: =IF(G83="","",IF(COUNTIF($G$2:G83,G83)-1=0,ROWS($G$2:G83),"r")) ->  | D83: =IF($A$1=F83,COUNTIF($F$2:F83,F83),"") ->  | I83: =IF(G83<>"",VLOOKUP(G83,التكويد!$A$1:$D$201,2,0),"") ->  | J83: =IF(F83<>"",VLOOKUP(F83,الموظفين!$A$2:$B$2006,2,0),"") ->  | K83: =IF(G83<>"",VLOOKUP(G83,التكويد!$A$1:$D$201,4,0)*H83,"") ->  | M83: =IF(G83<>"",VLOOKUP(G83,#REF!,6,0),"") ->  | N83: =IF(G83<>"",VLOOKUP(G83,#REF!,7,0),"") -> 
B84: =IF(F84="","",IF(COUNTIF(F$2:$F84,F84)-1=0,ROWS(F$2:$F84),"r")) ->  | C84: =IF(G84="","",IF(COUNTIF($G$2:G84,G84)-1=0,ROWS($G$2:G84),"r")) ->  | D84: =IF($A$1=F84,COUNTIF($F$2:F84,F84),"") ->  | I84: =IF(G84<>"",VLOOKUP(G84,التكويد!$A$1:$D$201,2,0),"") ->  | J84: =IF(F84<>"",VLOOKUP(F84,الموظفين!$A$2:$B$2006,2,0),"") ->  | K84: =IF(G84<>"",VLOOKUP(G84,التكويد!$A$1:$D$201,4,0)*H84,"") ->  | M84: =IF(G84<>"",VLOOKUP(G84,#REF!,6,0),"") ->  | N84: =IF(G84<>"",VLOOKUP(G84,#REF!,7,0),"") -> 
B85: =IF(F85="","",IF(COUNTIF(F$2:$F85,F85)-1=0,ROWS(F$2:$F85),"r")) ->  | C85: =IF(G85="","",IF(COUNTIF($G$2:G85,G85)-1=0,ROWS($G$2:G85),"r")) ->  | D85: =IF($A$1=F85,COUNTIF($F$2:F85,F85),"") ->  | I85: =IF(G85<>"",VLOOKUP(G85,التكويد!$A$1:$D$201,2,0),"") ->  | J85: =IF(F85<>"",VLOOKUP(F85,الموظفين!$A$2:$B$2006,2,0),"") ->  | K85: =IF(G85<>"",VLOOKUP(G85,التكويد!$A$1:$D$201,4,0)*H85,"") ->  | M85: =IF(G85<>"",VLOOKUP(G85,#REF!,6,0),"") ->  | N85: =IF(G85<>"",VLOOKUP(G85,#REF!,7,0),"") -> 
B86: =IF(F86="","",IF(COUNTIF(F$2:$F86,F86)-1=0,ROWS(F$2:$F86),"r")) ->  | C86: =IF(G86="","",IF(COUNTIF($G$2:G86,G86)-1=0,ROWS($G$2:G86),"r")) ->  | D86: =IF($A$1=F86,COUNTIF($F$2:F86,F86),"") ->  | I86: =IF(G86<>"",VLOOKUP(G86,التكويد!$A$1:$D$201,2,0),"") ->  | J86: =IF(F86<>"",VLOOKUP(F86,الموظفين!$A$2:$B$2006,2,0),"") ->  | K86: =IF(G86<>"",VLOOKUP(G86,التكويد!$A$1:$D$201,4,0)*H86,"") ->  | M86: =IF(G86<>"",VLOOKUP(G86,#REF!,6,0),"") ->  | N86: =IF(G86<>"",VLOOKUP(G86,#REF!,7,0),"") -> 
B87: =IF(F87="","",IF(COUNTIF(F$2:$F87,F87)-1=0,ROWS(F$2:$F87),"r")) ->  | C87: =IF(G87="","",IF(COUNTIF($G$2:G87,G87)-1=0,ROWS($G$2:G87),"r")) ->  | D87: =IF($A$1=F87,COUNTIF($F$2:F87,F87),"") ->  | I87: =IF(G87<>"",VLOOKUP(G87,التكويد!$A$1:$D$201,2,0),"") ->  | J87: =IF(F87<>"",VLOOKUP(F87,الموظفين!$A$2:$B$2006,2,0),"") ->  | K87: =IF(G87<>"",VLOOKUP(G87,التكويد!$A$1:$D$201,4,0)*H87,"") ->  | M87: =IF(G87<>"",VLOOKUP(G87,#REF!,6,0),"") ->  | N87: =IF(G87<>"",VLOOKUP(G87,#REF!,7,0),"") -> 
B88: =IF(F88="","",IF(COUNTIF(F$2:$F88,F88)-1=0,ROWS(F$2:$F88),"r")) ->  | C88: =IF(G88="","",IF(COUNTIF($G$2:G88,G88)-1=0,ROWS($G$2:G88),"r")) ->  | D88: =IF($A$1=F88,COUNTIF($F$2:F88,F88),"") ->  | I88: =IF(G88<>"",VLOOKUP(G88,التكويد!$A$1:$D$201,2,0),"") ->  | J88: =IF(F88<>"",VLOOKUP(F88,الموظفين!$A$2:$B$2006,2,0),"") ->  | K88: =IF(G88<>"",VLOOKUP(G88,التكويد!$A$1:$D$201,4,0)*H88,"") ->  | M88: =IF(G88<>"",VLOOKUP(G88,#REF!,6,0),"") ->  | N88: =IF(G88<>"",VLOOKUP(G88,#REF!,7,0),"") -> 
B89: =IF(F89="","",IF(COUNTIF(F$2:$F89,F89)-1=0,ROWS(F$2:$F89),"r")) ->  | C89: =IF(G89="","",IF(COUNTIF($G$2:G89,G89)-1=0,ROWS($G$2:G89),"r")) ->  | D89: =IF($A$1=F89,COUNTIF($F$2:F89,F89),"") ->  | I89: =IF(G89<>"",VLOOKUP(G89,التكويد!$A$1:$D$201,2,0),"") ->  | J89: =IF(F89<>"",VLOOKUP(F89,الموظفين!$A$2:$B$2006,2,0),"") ->  | K89: =IF(G89<>"",VLOOKUP(G89,التكويد!$A$1:$D$201,4,0)*H89,"") ->  | M89: =IF(G89<>"",VLOOKUP(G89,#REF!,6,0),"") ->  | N89: =IF(G89<>"",VLOOKUP(G89,#REF!,7,0),"") -> 
B90: =IF(F90="","",IF(COUNTIF(F$2:$F90,F90)-1=0,ROWS(F$2:$F90),"r")) ->  | C90: =IF(G90="","",IF(COUNTIF($G$2:G90,G90)-1=0,ROWS($G$2:G90),"r")) ->  | D90: =IF($A$1=F90,COUNTIF($F$2:F90,F90),"") ->  | I90: =IF(G90<>"",VLOOKUP(G90,التكويد!$A$1:$D$201,2,0),"") ->  | J90: =IF(F90<>"",VLOOKUP(F90,الموظفين!$A$2:$B$2006,2,0),"") ->  | K90: =IF(G90<>"",VLOOKUP(G90,التكويد!$A$1:$D$201,4,0)*H90,"") ->  | M90: =IF(G90<>"",VLOOKUP(G90,#REF!,6,0),"") ->  | N90: =IF(G90<>"",VLOOKUP(G90,#REF!,7,0),"") -> 
B91: =IF(F91="","",IF(COUNTIF(F$2:$F91,F91)-1=0,ROWS(F$2:$F91),"r")) ->  | C91: =IF(G91="","",IF(COUNTIF($G$2:G91,G91)-1=0,ROWS($G$2:G91),"r")) ->  | D91: =IF($A$1=F91,COUNTIF($F$2:F91,F91),"") ->  | I91: =IF(G91<>"",VLOOKUP(G91,التكويد!$A$1:$D$201,2,0),"") ->  | J91: =IF(F91<>"",VLOOKUP(F91,الموظفين!$A$2:$B$2006,2,0),"") ->  | K91: =IF(G91<>"",VLOOKUP(G91,التكويد!$A$1:$D$201,4,0)*H91,"") ->  | M91: =IF(G91<>"",VLOOKUP(G91,#REF!,6,0),"") ->  | N91: =IF(G91<>"",VLOOKUP(G91,#REF!,7,0),"") -> 
B92: =IF(F92="","",IF(COUNTIF(F$2:$F92,F92)-1=0,ROWS(F$2:$F92),"r")) ->  | C92: =IF(G92="","",IF(COUNTIF($G$2:G92,G92)-1=0,ROWS($G$2:G92),"r")) ->  | D92: =IF($A$1=F92,COUNTIF($F$2:F92,F92),"") ->  | I92: =IF(G92<>"",VLOOKUP(G92,التكويد!$A$1:$D$201,2,0),"") ->  | J92: =IF(F92<>"",VLOOKUP(F92,الموظفين!$A$2:$B$2006,2,0),"") ->  | K92: =IF(G92<>"",VLOOKUP(G92,التكويد!$A$1:$D$201,4,0)*H92,"") ->  | M92: =IF(G92<>"",VLOOKUP(G92,#REF!,6,0),"") ->  | N92: =IF(G92<>"",VLOOKUP(G92,#REF!,7,0),"") -> 
B93: =IF(F93="","",IF(COUNTIF(F$2:$F93,F93)-1=0,ROWS(F$2:$F93),"r")) ->  | C93: =IF(G93="","",IF(COUNTIF($G$2:G93,G93)-1=0,ROWS($G$2:G93),"r")) ->  | D93: =IF($A$1=F93,COUNTIF($F$2:F93,F93),"") ->  | I93: =IF(G93<>"",VLOOKUP(G93,التكويد!$A$1:$D$201,2,0),"") ->  | J93: =IF(F93<>"",VLOOKUP(F93,الموظفين!$A$2:$B$2006,2,0),"") ->  | K93: =IF(G93<>"",VLOOKUP(G93,التكويد!$A$1:$D$201,4,0)*H93,"") ->  | M93: =IF(G93<>"",VLOOKUP(G93,#REF!,6,0),"") ->  | N93: =IF(G93<>"",VLOOKUP(G93,#REF!,7,0),"") -> 
B94: =IF(F94="","",IF(COUNTIF(F$2:$F94,F94)-1=0,ROWS(F$2:$F94),"r")) ->  | C94: =IF(G94="","",IF(COUNTIF($G$2:G94,G94)-1=0,ROWS($G$2:G94),"r")) ->  | D94: =IF($A$1=F94,COUNTIF($F$2:F94,F94),"") ->  | I94: =IF(G94<>"",VLOOKUP(G94,التكويد!$A$1:$D$201,2,0),"") ->  | J94: =IF(F94<>"",VLOOKUP(F94,الموظفين!$A$2:$B$2006,2,0),"") ->  | K94: =IF(G94<>"",VLOOKUP(G94,التكويد!$A$1:$D$201,4,0)*H94,"") ->  | M94: =IF(G94<>"",VLOOKUP(G94,#REF!,6,0),"") ->  | N94: =IF(G94<>"",VLOOKUP(G94,#REF!,7,0),"") -> 
B95: =IF(F95="","",IF(COUNTIF(F$2:$F95,F95)-1=0,ROWS(F$2:$F95),"r")) ->  | C95: =IF(G95="","",IF(COUNTIF($G$2:G95,G95)-1=0,ROWS($G$2:G95),"r")) ->  | D95: =IF($A$1=F95,COUNTIF($F$2:F95,F95),"") ->  | I95: =IF(G95<>"",VLOOKUP(G95,التكويد!$A$1:$D$201,2,0),"") ->  | J95: =IF(F95<>"",VLOOKUP(F95,الموظفين!$A$2:$B$2006,2,0),"") ->  | K95: =IF(G95<>"",VLOOKUP(G95,التكويد!$A$1:$D$201,4,0)*H95,"") ->  | M95: =IF(G95<>"",VLOOKUP(G95,#REF!,6,0),"") ->  | N95: =IF(G95<>"",VLOOKUP(G95,#REF!,7,0),"") -> 
B96: =IF(F96="","",IF(COUNTIF(F$2:$F96,F96)-1=0,ROWS(F$2:$F96),"r")) ->  | C96: =IF(G96="","",IF(COUNTIF($G$2:G96,G96)-1=0,ROWS($G$2:G96),"r")) ->  | D96: =IF($A$1=F96,COUNTIF($F$2:F96,F96),"") ->  | I96: =IF(G96<>"",VLOOKUP(G96,التكويد!$A$1:$D$201,2,0),"") ->  | J96: =IF(F96<>"",VLOOKUP(F96,الموظفين!$A$2:$B$2006,2,0),"") ->  | K96: =IF(G96<>"",VLOOKUP(G96,التكويد!$A$1:$D$201,4,0)*H96,"") ->  | M96: =IF(G96<>"",VLOOKUP(G96,#REF!,6,0),"") ->  | N96: =IF(G96<>"",VLOOKUP(G96,#REF!,7,0),"") -> 
B97: =IF(F97="","",IF(COUNTIF(F$2:$F97,F97)-1=0,ROWS(F$2:$F97),"r")) ->  | C97: =IF(G97="","",IF(COUNTIF($G$2:G97,G97)-1=0,ROWS($G$2:G97),"r")) ->  | D97: =IF($A$1=F97,COUNTIF($F$2:F97,F97),"") ->  | I97: =IF(G97<>"",VLOOKUP(G97,التكويد!$A$1:$D$201,2,0),"") ->  | J97: =IF(F97<>"",VLOOKUP(F97,الموظفين!$A$2:$B$2006,2,0),"") ->  | K97: =IF(G97<>"",VLOOKUP(G97,التكويد!$A$1:$D$201,4,0)*H97,"") ->  | M97: =IF(G97<>"",VLOOKUP(G97,#REF!,6,0),"") ->  | N97: =IF(G97<>"",VLOOKUP(G97,#REF!,7,0),"") -> 
B98: =IF(F98="","",IF(COUNTIF(F$2:$F98,F98)-1=0,ROWS(F$2:$F98),"r")) ->  | C98: =IF(G98="","",IF(COUNTIF($G$2:G98,G98)-1=0,ROWS($G$2:G98),"r")) ->  | D98: =IF($A$1=F98,COUNTIF($F$2:F98,F98),"") ->  | I98: =IF(G98<>"",VLOOKUP(G98,التكويد!$A$1:$D$201,2,0),"") ->  | J98: =IF(F98<>"",VLOOKUP(F98,الموظفين!$A$2:$B$2006,2,0),"") ->  | K98: =IF(G98<>"",VLOOKUP(G98,التكويد!$A$1:$D$201,4,0)*H98,"") ->  | M98: =IF(G98<>"",VLOOKUP(G98,#REF!,6,0),"") ->  | N98: =IF(G98<>"",VLOOKUP(G98,#REF!,7,0),"") -> 
B99: =IF(F99="","",IF(COUNTIF(F$2:$F99,F99)-1=0,ROWS(F$2:$F99),"r")) ->  | C99: =IF(G99="","",IF(COUNTIF($G$2:G99,G99)-1=0,ROWS($G$2:G99),"r")) ->  | D99: =IF($A$1=F99,COUNTIF($F$2:F99,F99),"") ->  | I99: =IF(G99<>"",VLOOKUP(G99,التكويد!$A$1:$D$201,2,0),"") ->  | J99: =IF(F99<>"",VLOOKUP(F99,الموظفين!$A$2:$B$2006,2,0),"") ->  | K99: =IF(G99<>"",VLOOKUP(G99,التكويد!$A$1:$D$201,4,0)*H99,"") ->  | M99: =IF(G99<>"",VLOOKUP(G99,#REF!,6,0),"") ->  | N99: =IF(G99<>"",VLOOKUP(G99,#REF!,7,0),"") -> 
B100: =IF(F100="","",IF(COUNTIF(F$2:$F100,F100)-1=0,ROWS(F$2:$F100),"r")) ->  | C100: =IF(G100="","",IF(COUNTIF($G$2:G100,G100)-1=0,ROWS($G$2:G100),"r")) ->  | D100: =IF($A$1=F100,COUNTIF($F$2:F100,F100),"") ->  | I100: =IF(G100<>"",VLOOKUP(G100,التكويد!$A$1:$D$201,2,0),"") ->  | J100: =IF(F100<>"",VLOOKUP(F100,الموظفين!$A$2:$B$2006,2,0),"") ->  | K100: =IF(G100<>"",VLOOKUP(G100,التكويد!$A$1:$D$201,4,0)*H100,"") ->  | M100: =IF(G100<>"",VLOOKUP(G100,#REF!,6,0),"") ->  | N100: =IF(G100<>"",VLOOKUP(G100,#REF!,7,0),"") -> 
B101: =IF(F101="","",IF(COUNTIF(F$2:$F101,F101)-1=0,ROWS(F$2:$F101),"r")) ->  | C101: =IF(G101="","",IF(COUNTIF($G$2:G101,G101)-1=0,ROWS($G$2:G101),"r")) ->  | D101: =IF($A$1=F101,COUNTIF($F$2:F101,F101),"") ->  | I101: =IF(G101<>"",VLOOKUP(G101,التكويد!$A$1:$D$201,2,0),"") ->  | J101: =IF(F101<>"",VLOOKUP(F101,الموظفين!$A$2:$B$2006,2,0),"") ->  | K101: =IF(G101<>"",VLOOKUP(G101,التكويد!$A$1:$D$201,4,0)*H101,"") ->  | M101: =IF(G101<>"",VLOOKUP(G101,#REF!,6,0),"") ->  | N101: =IF(G101<>"",VLOOKUP(G101,#REF!,7,0),"") -> 
B102: =IF(F102="","",IF(COUNTIF(F$2:$F102,F102)-1=0,ROWS(F$2:$F102),"r")) ->  | C102: =IF(G102="","",IF(COUNTIF($G$2:G102,G102)-1=0,ROWS($G$2:G102),"r")) ->  | D102: =IF($A$1=F102,COUNTIF($F$2:F102,F102),"") ->  | I102: =IF(G102<>"",VLOOKUP(G102,التكويد!$A$1:$D$201,2,0),"") ->  | J102: =IF(F102<>"",VLOOKUP(F102,الموظفين!$A$2:$B$2006,2,0),"") ->  | K102: =IF(G102<>"",VLOOKUP(G102,التكويد!$A$1:$D$201,4,0)*H102,"") ->  | M102: =IF(G102<>"",VLOOKUP(G102,#REF!,6,0),"") ->  | N102: =IF(G102<>"",VLOOKUP(G102,#REF!,7,0),"") -> 
B103: =IF(F103="","",IF(COUNTIF(F$2:$F103,F103)-1=0,ROWS(F$2:$F103),"r")) ->  | C103: =IF(G103="","",IF(COUNTIF($G$2:G103,G103)-1=0,ROWS($G$2:G103),"r")) ->  | D103: =IF($A$1=F103,COUNTIF($F$2:F103,F103),"") ->  | I103: =IF(G103<>"",VLOOKUP(G103,التكويد!$A$1:$D$201,2,0),"") ->  | J103: =IF(F103<>"",VLOOKUP(F103,الموظفين!$A$2:$B$2006,2,0),"") ->  | K103: =IF(G103<>"",VLOOKUP(G103,التكويد!$A$1:$D$201,4,0)*H103,"") ->  | M103: =IF(G103<>"",VLOOKUP(G103,#REF!,6,0),"") ->  | N103: =IF(G103<>"",VLOOKUP(G103,#REF!,7,0),"") -> 
B104: =IF(F104="","",IF(COUNTIF(F$2:$F104,F104)-1=0,ROWS(F$2:$F104),"r")) ->  | C104: =IF(G104="","",IF(COUNTIF($G$2:G104,G104)-1=0,ROWS($G$2:G104),"r")) ->  | D104: =IF($A$1=F104,COUNTIF($F$2:F104,F104),"") ->  | I104: =IF(G104<>"",VLOOKUP(G104,التكويد!$A$1:$D$201,2,0),"") ->  | J104: =IF(F104<>"",VLOOKUP(F104,الموظفين!$A$2:$B$2006,2,0),"") ->  | K104: =IF(G104<>"",VLOOKUP(G104,التكويد!$A$1:$D$201,4,0)*H104,"") ->  | M104: =IF(G104<>"",VLOOKUP(G104,#REF!,6,0),"") ->  | N104: =IF(G104<>"",VLOOKUP(G104,#REF!,7,0),"") -> 
B105: =IF(F105="","",IF(COUNTIF(F$2:$F105,F105)-1=0,ROWS(F$2:$F105),"r")) ->  | C105: =IF(G105="","",IF(COUNTIF($G$2:G105,G105)-1=0,ROWS($G$2:G105),"r")) ->  | D105: =IF($A$1=F105,COUNTIF($F$2:F105,F105),"") ->  | I105: =IF(G105<>"",VLOOKUP(G105,التكويد!$A$1:$D$201,2,0),"") ->  | J105: =IF(F105<>"",VLOOKUP(F105,الموظفين!$A$2:$B$2006,2,0),"") ->  | K105: =IF(G105<>"",VLOOKUP(G105,التكويد!$A$1:$D$201,4,0)*H105,"") ->  | M105: =IF(G105<>"",VLOOKUP(G105,#REF!,6,0),"") ->  | N105: =IF(G105<>"",VLOOKUP(G105,#REF!,7,0),"") -> 
B106: =IF(F106="","",IF(COUNTIF(F$2:$F106,F106)-1=0,ROWS(F$2:$F106),"r")) ->  | C106: =IF(G106="","",IF(COUNTIF($G$2:G106,G106)-1=0,ROWS($G$2:G106),"r")) ->  | D106: =IF($A$1=F106,COUNTIF($F$2:F106,F106),"") ->  | I106: =IF(G106<>"",VLOOKUP(G106,التكويد!$A$1:$D$201,2,0),"") ->  | J106: =IF(F106<>"",VLOOKUP(F106,الموظفين!$A$2:$B$2006,2,0),"") ->  | K106: =IF(G106<>"",VLOOKUP(G106,التكويد!$A$1:$D$201,4,0)*H106,"") ->  | M106: =IF(G106<>"",VLOOKUP(G106,#REF!,6,0),"") ->  | N106: =IF(G106<>"",VLOOKUP(G106,#REF!,7,0),"") -> 
B107: =IF(F107="","",IF(COUNTIF(F$2:$F107,F107)-1=0,ROWS(F$2:$F107),"r")) ->  | C107: =IF(G107="","",IF(COUNTIF($G$2:G107,G107)-1=0,ROWS($G$2:G107),"r")) ->  | D107: =IF($A$1=F107,COUNTIF($F$2:F107,F107),"") ->  | I107: =IF(G107<>"",VLOOKUP(G107,التكويد!$A$1:$D$201,2,0),"") ->  | J107: =IF(F107<>"",VLOOKUP(F107,الموظفين!$A$2:$B$2006,2,0),"") ->  | K107: =IF(G107<>"",VLOOKUP(G107,التكويد!$A$1:$D$201,4,0)*H107,"") ->  | M107: =IF(G107<>"",VLOOKUP(G107,#REF!,6,0),"") ->  | N107: =IF(G107<>"",VLOOKUP(G107,#REF!,7,0),"") -> 
B108: =IF(F108="","",IF(COUNTIF(F$2:$F108,F108)-1=0,ROWS(F$2:$F108),"r")) ->  | C108: =IF(G108="","",IF(COUNTIF($G$2:G108,G108)-1=0,ROWS($G$2:G108),"r")) ->  | D108: =IF($A$1=F108,COUNTIF($F$2:F108,F108),"") ->  | I108: =IF(G108<>"",VLOOKUP(G108,التكويد!$A$1:$D$201,2,0),"") ->  | J108: =IF(F108<>"",VLOOKUP(F108,الموظفين!$A$2:$B$2006,2,0),"") ->  | K108: =IF(G108<>"",VLOOKUP(G108,التكويد!$A$1:$D$201,4,0)*H108,"") ->  | M108: =IF(G108<>"",VLOOKUP(G108,#REF!,6,0),"") ->  | N108: =IF(G108<>"",VLOOKUP(G108,#REF!,7,0),"") -> 
B109: =IF(F109="","",IF(COUNTIF(F$2:$F109,F109)-1=0,ROWS(F$2:$F109),"r")) ->  | C109: =IF(G109="","",IF(COUNTIF($G$2:G109,G109)-1=0,ROWS($G$2:G109),"r")) ->  | D109: =IF($A$1=F109,COUNTIF($F$2:F109,F109),"") ->  | I109: =IF(G109<>"",VLOOKUP(G109,التكويد!$A$1:$D$201,2,0),"") ->  | J109: =IF(F109<>"",VLOOKUP(F109,الموظفين!$A$2:$B$2006,2,0),"") ->  | K109: =IF(G109<>"",VLOOKUP(G109,التكويد!$A$1:$D$201,4,0)*H109,"") ->  | M109: =IF(G109<>"",VLOOKUP(G109,#REF!,6,0),"") ->  | N109: =IF(G109<>"",VLOOKUP(G109,#REF!,7,0),"") -> 
B110: =IF(F110="","",IF(COUNTIF(F$2:$F110,F110)-1=0,ROWS(F$2:$F110),"r")) ->  | C110: =IF(G110="","",IF(COUNTIF($G$2:G110,G110)-1=0,ROWS($G$2:G110),"r")) ->  | D110: =IF($A$1=F110,COUNTIF($F$2:F110,F110),"") ->  | I110: =IF(G110<>"",VLOOKUP(G110,التكويد!$A$1:$D$201,2,0),"") ->  | J110: =IF(F110<>"",VLOOKUP(F110,الموظفين!$A$2:$B$2006,2,0),"") ->  | K110: =IF(G110<>"",VLOOKUP(G110,التكويد!$A$1:$D$201,4,0)*H110,"") ->  | M110: =IF(G110<>"",VLOOKUP(G110,#REF!,6,0),"") ->  | N110: =IF(G110<>"",VLOOKUP(G110,#REF!,7,0),"") -> 
B111: =IF(F111="","",IF(COUNTIF(F$2:$F111,F111)-1=0,ROWS(F$2:$F111),"r")) ->  | C111: =IF(G111="","",IF(COUNTIF($G$2:G111,G111)-1=0,ROWS($G$2:G111),"r")) ->  | D111: =IF($A$1=F111,COUNTIF($F$2:F111,F111),"") ->  | I111: =IF(G111<>"",VLOOKUP(G111,التكويد!$A$1:$D$201,2,0),"") ->  | J111: =IF(F111<>"",VLOOKUP(F111,الموظفين!$A$2:$B$2006,2,0),"") ->  | K111: =IF(G111<>"",VLOOKUP(G111,التكويد!$A$1:$D$201,4,0)*H111,"") ->  | M111: =IF(G111<>"",VLOOKUP(G111,#REF!,6,0),"") ->  | N111: =IF(G111<>"",VLOOKUP(G111,#REF!,7,0),"") -> 
B112: =IF(F112="","",IF(COUNTIF(F$2:$F112,F112)-1=0,ROWS(F$2:$F112),"r")) ->  | C112: =IF(G112="","",IF(COUNTIF($G$2:G112,G112)-1=0,ROWS($G$2:G112),"r")) ->  | D112: =IF($A$1=F112,COUNTIF($F$2:F112,F112),"") ->  | I112: =IF(G112<>"",VLOOKUP(G112,التكويد!$A$1:$D$201,2,0),"") ->  | J112: =IF(F112<>"",VLOOKUP(F112,الموظفين!$A$2:$B$2006,2,0),"") ->  | K112: =IF(G112<>"",VLOOKUP(G112,التكويد!$A$1:$D$201,4,0)*H112,"") ->  | M112: =IF(G112<>"",VLOOKUP(G112,#REF!,6,0),"") ->  | N112: =IF(G112<>"",VLOOKUP(G112,#REF!,7,0),"") -> 
B113: =IF(F113="","",IF(COUNTIF(F$2:$F113,F113)-1=0,ROWS(F$2:$F113),"r")) ->  | C113: =IF(G113="","",IF(COUNTIF($G$2:G113,G113)-1=0,ROWS($G$2:G113),"r")) ->  | D113: =IF($A$1=F113,COUNTIF($F$2:F113,F113),"") ->  | I113: =IF(G113<>"",VLOOKUP(G113,التكويد!$A$1:$D$201,2,0),"") ->  | J113: =IF(F113<>"",VLOOKUP(F113,الموظفين!$A$2:$B$2006,2,0),"") ->  | K113: =IF(G113<>"",VLOOKUP(G113,التكويد!$A$1:$D$201,4,0)*H113,"") ->  | M113: =IF(G113<>"",VLOOKUP(G113,#REF!,6,0),"") ->  | N113: =IF(G113<>"",VLOOKUP(G113,#REF!,7,0),"") -> 
B114: =IF(F114="","",IF(COUNTIF(F$2:$F114,F114)-1=0,ROWS(F$2:$F114),"r")) ->  | C114: =IF(G114="","",IF(COUNTIF($G$2:G114,G114)-1=0,ROWS($G$2:G114),"r")) ->  | D114: =IF($A$1=F114,COUNTIF($F$2:F114,F114),"") ->  | I114: =IF(G114<>"",VLOOKUP(G114,التكويد!$A$1:$D$201,2,0),"") ->  | J114: =IF(F114<>"",VLOOKUP(F114,الموظفين!$A$2:$B$2006,2,0),"") ->  | K114: =IF(G114<>"",VLOOKUP(G114,التكويد!$A$1:$D$201,4,0)*H114,"") ->  | M114: =IF(G114<>"",VLOOKUP(G114,#REF!,6,0),"") ->  | N114: =IF(G114<>"",VLOOKUP(G114,#REF!,7,0),"") -> 
B115: =IF(F115="","",IF(COUNTIF(F$2:$F115,F115)-1=0,ROWS(F$2:$F115),"r")) ->  | C115: =IF(G115="","",IF(COUNTIF($G$2:G115,G115)-1=0,ROWS($G$2:G115),"r")) ->  | D115: =IF($A$1=F115,COUNTIF($F$2:F115,F115),"") ->  | I115: =IF(G115<>"",VLOOKUP(G115,التكويد!$A$1:$D$201,2,0),"") ->  | J115: =IF(F115<>"",VLOOKUP(F115,الموظفين!$A$2:$B$2006,2,0),"") ->  | K115: =IF(G115<>"",VLOOKUP(G115,التكويد!$A$1:$D$201,4,0)*H115,"") ->  | M115: =IF(G115<>"",VLOOKUP(G115,#REF!,6,0),"") ->  | N115: =IF(G115<>"",VLOOKUP(G115,#REF!,7,0),"") -> 
B116: =IF(F116="","",IF(COUNTIF(F$2:$F116,F116)-1=0,ROWS(F$2:$F116),"r")) ->  | C116: =IF(G116="","",IF(COUNTIF($G$2:G116,G116)-1=0,ROWS($G$2:G116),"r")) ->  | D116: =IF($A$1=F116,COUNTIF($F$2:F116,F116),"") ->  | I116: =IF(G116<>"",VLOOKUP(G116,التكويد!$A$1:$D$201,2,0),"") ->  | J116: =IF(F116<>"",VLOOKUP(F116,الموظفين!$A$2:$B$2006,2,0),"") ->  | K116: =IF(G116<>"",VLOOKUP(G116,التكويد!$A$1:$D$201,4,0)*H116,"") ->  | M116: =IF(G116<>"",VLOOKUP(G116,#REF!,6,0),"") ->  | N116: =IF(G116<>"",VLOOKUP(G116,#REF!,7,0),"") -> 
B117: =IF(F117="","",IF(COUNTIF(F$2:$F117,F117)-1=0,ROWS(F$2:$F117),"r")) ->  | C117: =IF(G117="","",IF(COUNTIF($G$2:G117,G117)-1=0,ROWS($G$2:G117),"r")) ->  | D117: =IF($A$1=F117,COUNTIF($F$2:F117,F117),"") ->  | I117: =IF(G117<>"",VLOOKUP(G117,التكويد!$A$1:$D$201,2,0),"") ->  | J117: =IF(F117<>"",VLOOKUP(F117,الموظفين!$A$2:$B$2006,2,0),"") ->  | K117: =IF(G117<>"",VLOOKUP(G117,التكويد!$A$1:$D$201,4,0)*H117,"") ->  | M117: =IF(G117<>"",VLOOKUP(G117,#REF!,6,0),"") ->  | N117: =IF(G117<>"",VLOOKUP(G117,#REF!,7,0),"") -> 
B118: =IF(F118="","",IF(COUNTIF(F$2:$F118,F118)-1=0,ROWS(F$2:$F118),"r")) ->  | C118: =IF(G118="","",IF(COUNTIF($G$2:G118,G118)-1=0,ROWS($G$2:G118),"r")) ->  | D118: =IF($A$1=F118,COUNTIF($F$2:F118,F118),"") ->  | I118: =IF(G118<>"",VLOOKUP(G118,التكويد!$A$1:$D$201,2,0),"") ->  | J118: =IF(F118<>"",VLOOKUP(F118,الموظفين!$A$2:$B$2006,2,0),"") ->  | K118: =IF(G118<>"",VLOOKUP(G118,التكويد!$A$1:$D$201,4,0)*H118,"") ->  | M118: =IF(G118<>"",VLOOKUP(G118,#REF!,6,0),"") ->  | N118: =IF(G118<>"",VLOOKUP(G118,#REF!,7,0),"") -> 
B119: =IF(F119="","",IF(COUNTIF(F$2:$F119,F119)-1=0,ROWS(F$2:$F119),"r")) ->  | C119: =IF(G119="","",IF(COUNTIF($G$2:G119,G119)-1=0,ROWS($G$2:G119),"r")) ->  | D119: =IF($A$1=F119,COUNTIF($F$2:F119,F119),"") ->  | I119: =IF(G119<>"",VLOOKUP(G119,التكويد!$A$1:$D$201,2,0),"") ->  | J119: =IF(F119<>"",VLOOKUP(F119,الموظفين!$A$2:$B$2006,2,0),"") ->  | K119: =IF(G119<>"",VLOOKUP(G119,التكويد!$A$1:$D$201,4,0)*H119,"") ->  | M119: =IF(G119<>"",VLOOKUP(G119,#REF!,6,0),"") ->  | N119: =IF(G119<>"",VLOOKUP(G119,#REF!,7,0),"") -> 
B120: =IF(F120="","",IF(COUNTIF(F$2:$F120,F120)-1=0,ROWS(F$2:$F120),"r")) ->  | C120: =IF(G120="","",IF(COUNTIF($G$2:G120,G120)-1=0,ROWS($G$2:G120),"r")) ->  | D120: =IF($A$1=F120,COUNTIF($F$2:F120,F120),"") ->  | I120: =IF(G120<>"",VLOOKUP(G120,التكويد!$A$1:$D$201,2,0),"") ->  | J120: =IF(F120<>"",VLOOKUP(F120,الموظفين!$A$2:$B$2006,2,0),"") ->  | K120: =IF(G120<>"",VLOOKUP(G120,التكويد!$A$1:$D$201,4,0)*H120,"") ->  | M120: =IF(G120<>"",VLOOKUP(G120,#REF!,6,0),"") ->  | N120: =IF(G120<>"",VLOOKUP(G120,#REF!,7,0),"") -> 
B121: =IF(F121="","",IF(COUNTIF(F$2:$F121,F121)-1=0,ROWS(F$2:$F121),"r")) ->  | C121: =IF(G121="","",IF(COUNTIF($G$2:G121,G121)-1=0,ROWS($G$2:G121),"r")) ->  | D121: =IF($A$1=F121,COUNTIF($F$2:F121,F121),"") ->  | I121: =IF(G121<>"",VLOOKUP(G121,التكويد!$A$1:$D$201,2,0),"") ->  | J121: =IF(F121<>"",VLOOKUP(F121,الموظفين!$A$2:$B$2006,2,0),"") ->  | K121: =IF(G121<>"",VLOOKUP(G121,التكويد!$A$1:$D$201,4,0)*H121,"") ->  | M121: =IF(G121<>"",VLOOKUP(G121,#REF!,6,0),"") ->  | N121: =IF(G121<>"",VLOOKUP(G121,#REF!,7,0),"") -> 
B122: =IF(F122="","",IF(COUNTIF(F$2:$F122,F122)-1=0,ROWS(F$2:$F122),"r")) ->  | C122: =IF(G122="","",IF(COUNTIF($G$2:G122,G122)-1=0,ROWS($G$2:G122),"r")) ->  | D122: =IF($A$1=F122,COUNTIF($F$2:F122,F122),"") ->  | I122: =IF(G122<>"",VLOOKUP(G122,التكويد!$A$1:$D$201,2,0),"") ->  | J122: =IF(F122<>"",VLOOKUP(F122,الموظفين!$A$2:$B$2006,2,0),"") ->  | K122: =IF(G122<>"",VLOOKUP(G122,التكويد!$A$1:$D$201,4,0)*H122,"") ->  | M122: =IF(G122<>"",VLOOKUP(G122,#REF!,6,0),"") ->  | N122: =IF(G122<>"",VLOOKUP(G122,#REF!,7,0),"") -> 
B123: =IF(F123="","",IF(COUNTIF(F$2:$F123,F123)-1=0,ROWS(F$2:$F123),"r")) ->  | C123: =IF(G123="","",IF(COUNTIF($G$2:G123,G123)-1=0,ROWS($G$2:G123),"r")) ->  | D123: =IF($A$1=F123,COUNTIF($F$2:F123,F123),"") ->  | I123: =IF(G123<>"",VLOOKUP(G123,التكويد!$A$1:$D$201,2,0),"") ->  | J123: =IF(F123<>"",VLOOKUP(F123,الموظفين!$A$2:$B$2006,2,0),"") ->  | K123: =IF(G123<>"",VLOOKUP(G123,التكويد!$A$1:$D$201,4,0)*H123,"") ->  | M123: =IF(G123<>"",VLOOKUP(G123,#REF!,6,0),"") ->  | N123: =IF(G123<>"",VLOOKUP(G123,#REF!,7,0),"") -> 
B124: =IF(F124="","",IF(COUNTIF(F$2:$F124,F124)-1=0,ROWS(F$2:$F124),"r")) ->  | C124: =IF(G124="","",IF(COUNTIF($G$2:G124,G124)-1=0,ROWS($G$2:G124),"r")) ->  | D124: =IF($A$1=F124,COUNTIF($F$2:F124,F124),"") ->  | I124: =IF(G124<>"",VLOOKUP(G124,التكويد!$A$1:$D$201,2,0),"") ->  | J124: =IF(F124<>"",VLOOKUP(F124,الموظفين!$A$2:$B$2006,2,0),"") ->  | K124: =IF(G124<>"",VLOOKUP(G124,التكويد!$A$1:$D$201,4,0)*H124,"") ->  | M124: =IF(G124<>"",VLOOKUP(G124,#REF!,6,0),"") ->  | N124: =IF(G124<>"",VLOOKUP(G124,#REF!,7,0),"") -> 
B125: =IF(F125="","",IF(COUNTIF(F$2:$F125,F125)-1=0,ROWS(F$2:$F125),"r")) ->  | C125: =IF(G125="","",IF(COUNTIF($G$2:G125,G125)-1=0,ROWS($G$2:G125),"r")) ->  | D125: =IF($A$1=F125,COUNTIF($F$2:F125,F125),"") ->  | I125: =IF(G125<>"",VLOOKUP(G125,التكويد!$A$1:$D$201,2,0),"") ->  | J125: =IF(F125<>"",VLOOKUP(F125,الموظفين!$A$2:$B$2006,2,0),"") ->  | K125: =IF(G125<>"",VLOOKUP(G125,التكويد!$A$1:$D$201,4,0)*H125,"") ->  | M125: =IF(G125<>"",VLOOKUP(G125,#REF!,6,0),"") ->  | N125: =IF(G125<>"",VLOOKUP(G125,#REF!,7,0),"") -> 
B126: =IF(F126="","",IF(COUNTIF(F$2:$F126,F126)-1=0,ROWS(F$2:$F126),"r")) ->  | C126: =IF(G126="","",IF(COUNTIF($G$2:G126,G126)-1=0,ROWS($G$2:G126),"r")) ->  | D126: =IF($A$1=F126,COUNTIF($F$2:F126,F126),"") ->  | I126: =IF(G126<>"",VLOOKUP(G126,التكويد!$A$1:$D$201,2,0),"") ->  | J126: =IF(F126<>"",VLOOKUP(F126,الموظفين!$A$2:$B$2006,2,0),"") ->  | K126: =IF(G126<>"",VLOOKUP(G126,التكويد!$A$1:$D$201,4,0)*H126,"") ->  | M126: =IF(G126<>"",VLOOKUP(G126,#REF!,6,0),"") ->  | N126: =IF(G126<>"",VLOOKUP(G126,#REF!,7,0),"") -> 
B127: =IF(F127="","",IF(COUNTIF(F$2:$F127,F127)-1=0,ROWS(F$2:$F127),"r")) ->  | C127: =IF(G127="","",IF(COUNTIF($G$2:G127,G127)-1=0,ROWS($G$2:G127),"r")) ->  | D127: =IF($A$1=F127,COUNTIF($F$2:F127,F127),"") ->  | I127: =IF(G127<>"",VLOOKUP(G127,التكويد!$A$1:$D$201,2,0),"") ->  | J127: =IF(F127<>"",VLOOKUP(F127,الموظفين!$A$2:$B$2006,2,0),"") ->  | K127: =IF(G127<>"",VLOOKUP(G127,التكويد!$A$1:$D$201,4,0)*H127,"") ->  | M127: =IF(G127<>"",VLOOKUP(G127,#REF!,6,0),"") ->  | N127: =IF(G127<>"",VLOOKUP(G127,#REF!,7,0),"") -> 
B128: =IF(F128="","",IF(COUNTIF(F$2:$F128,F128)-1=0,ROWS(F$2:$F128),"r")) ->  | C128: =IF(G128="","",IF(COUNTIF($G$2:G128,G128)-1=0,ROWS($G$2:G128),"r")) ->  | D128: =IF($A$1=F128,COUNTIF($F$2:F128,F128),"") ->  | I128: =IF(G128<>"",VLOOKUP(G128,التكويد!$A$1:$D$201,2,0),"") ->  | J128: =IF(F128<>"",VLOOKUP(F128,الموظفين!$A$2:$B$2006,2,0),"") ->  | K128: =IF(G128<>"",VLOOKUP(G128,التكويد!$A$1:$D$201,4,0)*H128,"") ->  | M128: =IF(G128<>"",VLOOKUP(G128,#REF!,6,0),"") ->  | N128: =IF(G128<>"",VLOOKUP(G128,#REF!,7,0),"") -> 
B129: =IF(F129="","",IF(COUNTIF(F$2:$F129,F129)-1=0,ROWS(F$2:$F129),"r")) ->  | C129: =IF(G129="","",IF(COUNTIF($G$2:G129,G129)-1=0,ROWS($G$2:G129),"r")) ->  | D129: =IF($A$1=F129,COUNTIF($F$2:F129,F129),"") ->  | I129: =IF(G129<>"",VLOOKUP(G129,التكويد!$A$1:$D$201,2,0),"") ->  | J129: =IF(F129<>"",VLOOKUP(F129,الموظفين!$A$2:$B$2006,2,0),"") ->  | K129: =IF(G129<>"",VLOOKUP(G129,التكويد!$A$1:$D$201,4,0)*H129,"") ->  | M129: =IF(G129<>"",VLOOKUP(G129,#REF!,6,0),"") ->  | N129: =IF(G129<>"",VLOOKUP(G129,#REF!,7,0),"") -> 
B130: =IF(F130="","",IF(COUNTIF(F$2:$F130,F130)-1=0,ROWS(F$2:$F130),"r")) ->  | C130: =IF(G130="","",IF(COUNTIF($G$2:G130,G130)-1=0,ROWS($G$2:G130),"r")) ->  | D130: =IF($A$1=F130,COUNTIF($F$2:F130,F130),"") ->  | I130: =IF(G130<>"",VLOOKUP(G130,التكويد!$A$1:$D$201,2,0),"") ->  | J130: =IF(F130<>"",VLOOKUP(F130,الموظفين!$A$2:$B$2006,2,0),"") ->  | K130: =IF(G130<>"",VLOOKUP(G130,التكويد!$A$1:$D$201,4,0)*H130,"") ->  | M130: =IF(G130<>"",VLOOKUP(G130,#REF!,6,0),"") ->  | N130: =IF(G130<>"",VLOOKUP(G130,#REF!,7,0),"") -> 
B131: =IF(F131="","",IF(COUNTIF(F$2:$F131,F131)-1=0,ROWS(F$2:$F131),"r")) ->  | C131: =IF(G131="","",IF(COUNTIF($G$2:G131,G131)-1=0,ROWS($G$2:G131),"r")) ->  | D131: =IF($A$1=F131,COUNTIF($F$2:F131,F131),"") ->  | I131: =IF(G131<>"",VLOOKUP(G131,التكويد!$A$1:$D$201,2,0),"") ->  | J131: =IF(F131<>"",VLOOKUP(F131,الموظفين!$A$2:$B$2006,2,0),"") ->  | K131: =IF(G131<>"",VLOOKUP(G131,التكويد!$A$1:$D$201,4,0)*H131,"") ->  | L131: =IF(H131="","",IF(H131<0,"منصرف",IF(H131>0,"بيع"))) ->  | M131: =IF(G131<>"",VLOOKUP(G131,#REF!,6,0),"") ->  | N131: =IF(G131<>"",VLOOKUP(G131,#REF!,7,0),"") -> 
B132: =IF(F132="","",IF(COUNTIF(F$2:$F132,F132)-1=0,ROWS(F$2:$F132),"r")) ->  | C132: =IF(G132="","",IF(COUNTIF($G$2:G132,G132)-1=0,ROWS($G$2:G132),"r")) ->  | D132: =IF($A$1=F132,COUNTIF($F$2:F132,F132),"") ->  | I132: =IF(G132<>"",VLOOKUP(G132,التكويد!$A$1:$D$201,2,0),"") ->  | J132: =IF(F132<>"",VLOOKUP(F132,الموظفين!$A$2:$B$2006,2,0),"") ->  | K132: =IF(G132<>"",VLOOKUP(G132,التكويد!$A$1:$D$201,4,0)*H132,"") ->  | M132: =IF(G132<>"",VLOOKUP(G132,#REF!,6,0),"") ->  | N132: =IF(G132<>"",VLOOKUP(G132,#REF!,7,0),"") -> 
B133: =IF(F133="","",IF(COUNTIF(F$2:$F133,F133)-1=0,ROWS(F$2:$F133),"r")) ->  | C133: =IF(G133="","",IF(COUNTIF($G$2:G133,G133)-1=0,ROWS($G$2:G133),"r")) ->  | D133: =IF($A$1=F133,COUNTIF($F$2:F133,F133),"") ->  | I133: =IF(G133<>"",VLOOKUP(G133,التكويد!$A$1:$D$201,2,0),"") ->  | J133: =IF(F133<>"",VLOOKUP(F133,الموظفين!$A$2:$B$2006,2,0),"") ->  | K133: =IF(G133<>"",VLOOKUP(G133,التكويد!$A$1:$D$201,4,0)*H133,"") ->  | M133: =IF(G133<>"",VLOOKUP(G133,#REF!,6,0),"") ->  | N133: =IF(G133<>"",VLOOKUP(G133,#REF!,7,0),"") -> 
B134: =IF(F134="","",IF(COUNTIF(F$2:$F134,F134)-1=0,ROWS(F$2:$F134),"r")) ->  | C134: =IF(G134="","",IF(COUNTIF($G$2:G134,G134)-1=0,ROWS($G$2:G134),"r")) ->  | D134: =IF($A$1=F134,COUNTIF($F$2:F134,F134),"") ->  | I134: =IF(G134<>"",VLOOKUP(G134,التكويد!$A$1:$D$201,2,0),"") ->  | J134: =IF(F134<>"",VLOOKUP(F134,الموظفين!$A$2:$B$2006,2,0),"") ->  | K134: =IF(G134<>"",VLOOKUP(G134,التكويد!$A$1:$D$201,4,0)*H134,"") ->  | M134: =IF(G134<>"",VLOOKUP(G134,#REF!,6,0),"") ->  | N134: =IF(G134<>"",VLOOKUP(G134,#REF!,7,0),"") -> 
B135: =IF(F135="","",IF(COUNTIF(F$2:$F135,F135)-1=0,ROWS(F$2:$F135),"r")) ->  | C135: =IF(G135="","",IF(COUNTIF($G$2:G135,G135)-1=0,ROWS($G$2:G135),"r")) ->  | D135: =IF($A$1=F135,COUNTIF($F$2:F135,F135),"") ->  | I135: =IF(G135<>"",VLOOKUP(G135,التكويد!$A$1:$D$201,2,0),"") ->  | J135: =IF(F135<>"",VLOOKUP(F135,الموظفين!$A$2:$B$2006,2,0),"") ->  | K135: =IF(G135<>"",VLOOKUP(G135,التكويد!$A$1:$D$201,4,0)*H135,"") ->  | M135: =IF(G135<>"",VLOOKUP(G135,#REF!,6,0),"") ->  | N135: =IF(G135<>"",VLOOKUP(G135,#REF!,7,0),"") -> 
B136: =IF(F136="","",IF(COUNTIF(F$2:$F136,F136)-1=0,ROWS(F$2:$F136),"r")) ->  | C136: =IF(G136="","",IF(COUNTIF($G$2:G136,G136)-1=0,ROWS($G$2:G136),"r")) ->  | D136: =IF($A$1=F136,COUNTIF($F$2:F136,F136),"") ->  | I136: =IF(G136<>"",VLOOKUP(G136,التكويد!$A$1:$D$201,2,0),"") ->  | J136: =IF(F136<>"",VLOOKUP(F136,الموظفين!$A$2:$B$2006,2,0),"") ->  | K136: =IF(G136<>"",VLOOKUP(G136,التكويد!$A$1:$D$201,4,0)*H136,"") ->  | M136: =IF(G136<>"",VLOOKUP(G136,#REF!,6,0),"") ->  | N136: =IF(G136<>"",VLOOKUP(G136,#REF!,7,0),"") -> 
B137: =IF(F137="","",IF(COUNTIF(F$2:$F137,F137)-1=0,ROWS(F$2:$F137),"r")) ->  | C137: =IF(G137="","",IF(COUNTIF($G$2:G137,G137)-1=0,ROWS($G$2:G137),"r")) ->  | D137: =IF($A$1=F137,COUNTIF($F$2:F137,F137),"") ->  | I137: =IF(G137<>"",VLOOKUP(G137,التكويد!$A$1:$D$201,2,0),"") ->  | J137: =IF(F137<>"",VLOOKUP(F137,الموظفين!$A$2:$B$2006,2,0),"") ->  | K137: =IF(G137<>"",VLOOKUP(G137,التكويد!$A$1:$D$201,4,0)*H137,"") ->  | M137: =IF(G137<>"",VLOOKUP(G137,#REF!,6,0),"") ->  | N137: =IF(G137<>"",VLOOKUP(G137,#REF!,7,0),"") -> 
B138: =IF(F138="","",IF(COUNTIF(F$2:$F138,F138)-1=0,ROWS(F$2:$F138),"r")) ->  | C138: =IF(G138="","",IF(COUNTIF($G$2:G138,G138)-1=0,ROWS($G$2:G138),"r")) ->  | D138: =IF($A$1=F138,COUNTIF($F$2:F138,F138),"") ->  | I138: =IF(G138<>"",VLOOKUP(G138,التكويد!$A$1:$D$201,2,0),"") ->  | J138: =IF(F138<>"",VLOOKUP(F138,الموظفين!$A$2:$B$2006,2,0),"") ->  | K138: =IF(G138<>"",VLOOKUP(G138,التكويد!$A$1:$D$201,4,0)*H138,"") ->  | M138: =IF(G138<>"",VLOOKUP(G138,#REF!,6,0),"") ->  | N138: =IF(G138<>"",VLOOKUP(G138,#REF!,7,0),"") -> 
B139: =IF(F139="","",IF(COUNTIF(F$2:$F139,F139)-1=0,ROWS(F$2:$F139),"r")) ->  | C139: =IF(G139="","",IF(COUNTIF($G$2:G139,G139)-1=0,ROWS($G$2:G139),"r")) ->  | D139: =IF($A$1=F139,COUNTIF($F$2:F139,F139),"") ->  | I139: =IF(G139<>"",VLOOKUP(G139,التكويد!$A$1:$D$201,2,0),"") ->  | J139: =IF(F139<>"",VLOOKUP(F139,الموظفين!$A$2:$B$2006,2,0),"") ->  | K139: =IF(G139<>"",VLOOKUP(G139,التكويد!$A$1:$D$201,4,0)*H139,"") ->  | M139: =IF(G139<>"",VLOOKUP(G139,#REF!,6,0),"") ->  | N139: =IF(G139<>"",VLOOKUP(G139,#REF!,7,0),"") -> 
B140: =IF(F140="","",IF(COUNTIF(F$2:$F140,F140)-1=0,ROWS(F$2:$F140),"r")) ->  | C140: =IF(G140="","",IF(COUNTIF($G$2:G140,G140)-1=0,ROWS($G$2:G140),"r")) ->  | D140: =IF($A$1=F140,COUNTIF($F$2:F140,F140),"") ->  | I140: =IF(G140<>"",VLOOKUP(G140,التكويد!$A$1:$D$201,2,0),"") ->  | J140: =IF(F140<>"",VLOOKUP(F140,الموظفين!$A$2:$B$2006,2,0),"") ->  | K140: =IF(G140<>"",VLOOKUP(G140,التكويد!$A$1:$D$201,4,0)*H140,"") ->  | M140: =IF(G140<>"",VLOOKUP(G140,#REF!,6,0),"") ->  | N140: =IF(G140<>"",VLOOKUP(G140,#REF!,7,0),"") -> 
B141: =IF(F141="","",IF(COUNTIF(F$2:$F141,F141)-1=0,ROWS(F$2:$F141),"r")) ->  | C141: =IF(G141="","",IF(COUNTIF($G$2:G141,G141)-1=0,ROWS($G$2:G141),"r")) ->  | D141: =IF($A$1=F141,COUNTIF($F$2:F141,F141),"") ->  | I141: =IF(G141<>"",VLOOKUP(G141,التكويد!$A$1:$D$201,2,0),"") ->  | J141: =IF(F141<>"",VLOOKUP(F141,الموظفين!$A$2:$B$2006,2,0),"") ->  | K141: =IF(G141<>"",VLOOKUP(G141,التكويد!$A$1:$D$201,4,0)*H141,"") ->  | M141: =IF(G141<>"",VLOOKUP(G141,#REF!,6,0),"") ->  | N141: =IF(G141<>"",VLOOKUP(G141,#REF!,7,0),"") -> 
B142: =IF(F142="","",IF(COUNTIF(F$2:$F142,F142)-1=0,ROWS(F$2:$F142),"r")) ->  | C142: =IF(G142="","",IF(COUNTIF($G$2:G142,G142)-1=0,ROWS($G$2:G142),"r")) ->  | D142: =IF($A$1=F142,COUNTIF($F$2:F142,F142),"") ->  | I142: =IF(G142<>"",VLOOKUP(G142,التكويد!$A$1:$D$201,2,0),"") ->  | J142: =IF(F142<>"",VLOOKUP(F142,الموظفين!$A$2:$B$2006,2,0),"") ->  | K142: =IF(G142<>"",VLOOKUP(G142,التكويد!$A$1:$D$201,4,0)*H142,"") ->  | M142: =IF(G142<>"",VLOOKUP(G142,#REF!,6,0),"") ->  | N142: =IF(G142<>"",VLOOKUP(G142,#REF!,7,0),"") -> 
B143: =IF(F143="","",IF(COUNTIF(F$2:$F143,F143)-1=0,ROWS(F$2:$F143),"r")) ->  | C143: =IF(G143="","",IF(COUNTIF($G$2:G143,G143)-1=0,ROWS($G$2:G143),"r")) ->  | D143: =IF($A$1=F143,COUNTIF($F$2:F143,F143),"") ->  | I143: =IF(G143<>"",VLOOKUP(G143,التكويد!$A$1:$D$201,2,0),"") ->  | J143: =IF(F143<>"",VLOOKUP(F143,الموظفين!$A$2:$B$2006,2,0),"") ->  | K143: =IF(G143<>"",VLOOKUP(G143,التكويد!$A$1:$D$201,4,0)*H143,"") ->  | M143: =IF(G143<>"",VLOOKUP(G143,#REF!,6,0),"") ->  | N143: =IF(G143<>"",VLOOKUP(G143,#REF!,7,0),"") -> 
B144: =IF(F144="","",IF(COUNTIF(F$2:$F144,F144)-1=0,ROWS(F$2:$F144),"r")) ->  | C144: =IF(G144="","",IF(COUNTIF($G$2:G144,G144)-1=0,ROWS($G$2:G144),"r")) ->  | D144: =IF($A$1=F144,COUNTIF($F$2:F144,F144),"") ->  | I144: =IF(G144<>"",VLOOKUP(G144,التكويد!$A$1:$D$201,2,0),"") ->  | J144: =IF(F144<>"",VLOOKUP(F144,الموظفين!$A$2:$B$2006,2,0),"") ->  | K144: =IF(G144<>"",VLOOKUP(G144,التكويد!$A$1:$D$201,4,0)*H144,"") ->  | M144: =IF(G144<>"",VLOOKUP(G144,#REF!,6,0),"") ->  | N144: =IF(G144<>"",VLOOKUP(G144,#REF!,7,0),"") -> 
B145: =IF(F145="","",IF(COUNTIF(F$2:$F145,F145)-1=0,ROWS(F$2:$F145),"r")) ->  | C145: =IF(G145="","",IF(COUNTIF($G$2:G145,G145)-1=0,ROWS($G$2:G145),"r")) ->  | D145: =IF($A$1=F145,COUNTIF($F$2:F145,F145),"") ->  | I145: =IF(G145<>"",VLOOKUP(G145,التكويد!$A$1:$D$201,2,0),"") ->  | J145: =IF(F145<>"",VLOOKUP(F145,الموظفين!$A$2:$B$2006,2,0),"") ->  | K145: =IF(G145<>"",VLOOKUP(G145,التكويد!$A$1:$D$201,4,0)*H145,"") ->  | M145: =IF(G145<>"",VLOOKUP(G145,#REF!,6,0),"") ->  | N145: =IF(G145<>"",VLOOKUP(G145,#REF!,7,0),"") -> 
B146: =IF(F146="","",IF(COUNTIF(F$2:$F146,F146)-1=0,ROWS(F$2:$F146),"r")) ->  | C146: =IF(G146="","",IF(COUNTIF($G$2:G146,G146)-1=0,ROWS($G$2:G146),"r")) ->  | D146: =IF($A$1=F146,COUNTIF($F$2:F146,F146),"") ->  | I146: =IF(G146<>"",VLOOKUP(G146,التكويد!$A$1:$D$201,2,0),"") ->  | J146: =IF(F146<>"",VLOOKUP(F146,الموظفين!$A$2:$B$2006,2,0),"") ->  | K146: =IF(G146<>"",VLOOKUP(G146,التكويد!$A$1:$D$201,4,0)*H146,"") ->  | M146: =IF(G146<>"",VLOOKUP(G146,#REF!,6,0),"") ->  | N146: =IF(G146<>"",VLOOKUP(G146,#REF!,7,0),"") -> 
B147: =IF(F147="","",IF(COUNTIF(F$2:$F147,F147)-1=0,ROWS(F$2:$F147),"r")) ->  | C147: =IF(G147="","",IF(COUNTIF($G$2:G147,G147)-1=0,ROWS($G$2:G147),"r")) ->  | D147: =IF($A$1=F147,COUNTIF($F$2:F147,F147),"") ->  | I147: =IF(G147<>"",VLOOKUP(G147,التكويد!$A$1:$D$201,2,0),"") ->  | J147: =IF(F147<>"",VLOOKUP(F147,الموظفين!$A$2:$B$2006,2,0),"") ->  | K147: =IF(G147<>"",VLOOKUP(G147,التكويد!$A$1:$D$201,4,0)*H147,"") ->  | M147: =IF(G147<>"",VLOOKUP(G147,#REF!,6,0),"") ->  | N147: =IF(G147<>"",VLOOKUP(G147,#REF!,7,0),"") -> 
B148: =IF(F148="","",IF(COUNTIF(F$2:$F148,F148)-1=0,ROWS(F$2:$F148),"r")) ->  | C148: =IF(G148="","",IF(COUNTIF($G$2:G148,G148)-1=0,ROWS($G$2:G148),"r")) ->  | D148: =IF($A$1=F148,COUNTIF($F$2:F148,F148),"") ->  | I148: =IF(G148<>"",VLOOKUP(G148,التكويد!$A$1:$D$201,2,0),"") ->  | J148: =IF(F148<>"",VLOOKUP(F148,الموظفين!$A$2:$B$2006,2,0),"") ->  | K148: =IF(G148<>"",VLOOKUP(G148,التكويد!$A$1:$D$201,4,0)*H148,"") ->  | M148: =IF(G148<>"",VLOOKUP(G148,#REF!,6,0),"") ->  | N148: =IF(G148<>"",VLOOKUP(G148,#REF!,7,0),"") -> 
B149: =IF(F149="","",IF(COUNTIF(F$2:$F149,F149)-1=0,ROWS(F$2:$F149),"r")) ->  | C149: =IF(G149="","",IF(COUNTIF($G$2:G149,G149)-1=0,ROWS($G$2:G149),"r")) ->  | D149: =IF($A$1=F149,COUNTIF($F$2:F149,F149),"") ->  | I149: =IF(G149<>"",VLOOKUP(G149,التكويد!$A$1:$D$201,2,0),"") ->  | J149: =IF(F149<>"",VLOOKUP(F149,الموظفين!$A$2:$B$2006,2,0),"") ->  | K149: =IF(G149<>"",VLOOKUP(G149,التكويد!$A$1:$D$201,4,0)*H149,"") ->  | M149: =IF(G149<>"",VLOOKUP(G149,#REF!,6,0),"") ->  | N149: =IF(G149<>"",VLOOKUP(G149,#REF!,7,0),"") -> 
B150: =IF(F150="","",IF(COUNTIF(F$2:$F150,F150)-1=0,ROWS(F$2:$F150),"r")) ->  | C150: =IF(G150="","",IF(COUNTIF($G$2:G150,G150)-1=0,ROWS($G$2:G150),"r")) ->  | D150: =IF($A$1=F150,COUNTIF($F$2:F150,F150),"") ->  | I150: =IF(G150<>"",VLOOKUP(G150,التكويد!$A$1:$D$201,2,0),"") ->  | J150: =IF(F150<>"",VLOOKUP(F150,الموظفين!$A$2:$B$2006,2,0),"") ->  | K150: =IF(G150<>"",VLOOKUP(G150,التكويد!$A$1:$D$201,4,0)*H150,"") ->  | M150: =IF(G150<>"",VLOOKUP(G150,#REF!,6,0),"") ->  | N150: =IF(G150<>"",VLOOKUP(G150,#REF!,7,0),"") -> 
B151: =IF(F151="","",IF(COUNTIF(F$2:$F151,F151)-1=0,ROWS(F$2:$F151),"r")) ->  | C151: =IF(G151="","",IF(COUNTIF($G$2:G151,G151)-1=0,ROWS($G$2:G151),"r")) ->  | D151: =IF($A$1=F151,COUNTIF($F$2:F151,F151),"") ->  | I151: =IF(G151<>"",VLOOKUP(G151,التكويد!$A$1:$D$201,2,0),"") ->  | J151: =IF(F151<>"",VLOOKUP(F151,الموظفين!$A$2:$B$2006,2,0),"") ->  | K151: =IF(G151<>"",VLOOKUP(G151,التكويد!$A$1:$D$201,4,0)*H151,"") ->  | M151: =IF(G151<>"",VLOOKUP(G151,#REF!,6,0),"") ->  | N151: =IF(G151<>"",VLOOKUP(G151,#REF!,7,0),"") -> 
B152: =IF(F152="","",IF(COUNTIF(F$2:$F152,F152)-1=0,ROWS(F$2:$F152),"r")) ->  | C152: =IF(G152="","",IF(COUNTIF($G$2:G152,G152)-1=0,ROWS($G$2:G152),"r")) ->  | D152: =IF($A$1=F152,COUNTIF($F$2:F152,F152),"") ->  | I152: =IF(G152<>"",VLOOKUP(G152,التكويد!$A$1:$D$201,2,0),"") ->  | J152: =IF(F152<>"",VLOOKUP(F152,الموظفين!$A$2:$B$2006,2,0),"") ->  | K152: =IF(G152<>"",VLOOKUP(G152,التكويد!$A$1:$D$201,4,0)*H152,"") ->  | M152: =IF(G152<>"",VLOOKUP(G152,#REF!,6,0),"") ->  | N152: =IF(G152<>"",VLOOKUP(G152,#REF!,7,0),"") -> 
B153: =IF(F153="","",IF(COUNTIF(F$2:$F153,F153)-1=0,ROWS(F$2:$F153),"r")) ->  | C153: =IF(G153="","",IF(COUNTIF($G$2:G153,G153)-1=0,ROWS($G$2:G153),"r")) ->  | D153: =IF($A$1=F153,COUNTIF($F$2:F153,F153),"") ->  | I153: =IF(G153<>"",VLOOKUP(G153,التكويد!$A$1:$D$201,2,0),"") ->  | J153: =IF(F153<>"",VLOOKUP(F153,الموظفين!$A$2:$B$2006,2,0),"") ->  | K153: =IF(G153<>"",VLOOKUP(G153,التكويد!$A$1:$D$201,4,0)*H153,"") ->  | M153: =IF(G153<>"",VLOOKUP(G153,#REF!,6,0),"") ->  | N153: =IF(G153<>"",VLOOKUP(G153,#REF!,7,0),"") -> 
B154: =IF(F154="","",IF(COUNTIF(F$2:$F154,F154)-1=0,ROWS(F$2:$F154),"r")) ->  | C154: =IF(G154="","",IF(COUNTIF($G$2:G154,G154)-1=0,ROWS($G$2:G154),"r")) ->  | D154: =IF($A$1=F154,COUNTIF($F$2:F154,F154),"") ->  | I154: =IF(G154<>"",VLOOKUP(G154,التكويد!$A$1:$D$201,2,0),"") ->  | J154: =IF(F154<>"",VLOOKUP(F154,الموظفين!$A$2:$B$2006,2,0),"") ->  | K154: =IF(G154<>"",VLOOKUP(G154,التكويد!$A$1:$D$201,4,0)*H154,"") ->  | M154: =IF(G154<>"",VLOOKUP(G154,#REF!,6,0),"") ->  | N154: =IF(G154<>"",VLOOKUP(G154,#REF!,7,0),"") -> 
B155: =IF(F155="","",IF(COUNTIF(F$2:$F155,F155)-1=0,ROWS(F$2:$F155),"r")) ->  | C155: =IF(G155="","",IF(COUNTIF($G$2:G155,G155)-1=0,ROWS($G$2:G155),"r")) ->  | D155: =IF($A$1=F155,COUNTIF($F$2:F155,F155),"") ->  | I155: =IF(G155<>"",VLOOKUP(G155,التكويد!$A$1:$D$201,2,0),"") ->  | J155: =IF(F155<>"",VLOOKUP(F155,الموظفين!$A$2:$B$2006,2,0),"") ->  | K155: =IF(G155<>"",VLOOKUP(G155,التكويد!$A$1:$D$201,4,0)*H155,"") ->  | M155: =IF(G155<>"",VLOOKUP(G155,#REF!,6,0),"") ->  | N155: =IF(G155<>"",VLOOKUP(G155,#REF!,7,0),"") -> 
B156: =IF(F156="","",IF(COUNTIF(F$2:$F156,F156)-1=0,ROWS(F$2:$F156),"r")) ->  | C156: =IF(G156="","",IF(COUNTIF($G$2:G156,G156)-1=0,ROWS($G$2:G156),"r")) ->  | D156: =IF($A$1=F156,COUNTIF($F$2:F156,F156),"") ->  | I156: =IF(G156<>"",VLOOKUP(G156,التكويد!$A$1:$D$201,2,0),"") ->  | J156: =IF(F156<>"",VLOOKUP(F156,الموظفين!$A$2:$B$2006,2,0),"") ->  | K156: =IF(G156<>"",VLOOKUP(G156,التكويد!$A$1:$D$201,4,0)*H156,"") ->  | M156: =IF(G156<>"",VLOOKUP(G156,#REF!,6,0),"") ->  | N156: =IF(G156<>"",VLOOKUP(G156,#REF!,7,0),"") -> 
B157: =IF(F157="","",IF(COUNTIF(F$2:$F157,F157)-1=0,ROWS(F$2:$F157),"r")) ->  | C157: =IF(G157="","",IF(COUNTIF($G$2:G157,G157)-1=0,ROWS($G$2:G157),"r")) ->  | D157: =IF($A$1=F157,COUNTIF($F$2:F157,F157),"") ->  | I157: =IF(G157<>"",VLOOKUP(G157,التكويد!$A$1:$D$201,2,0),"") ->  | J157: =IF(F157<>"",VLOOKUP(F157,الموظفين!$A$2:$B$2006,2,0),"") ->  | K157: =IF(G157<>"",VLOOKUP(G157,التكويد!$A$1:$D$201,4,0)*H157,"") ->  | M157: =IF(G157<>"",VLOOKUP(G157,#REF!,6,0),"") ->  | N157: =IF(G157<>"",VLOOKUP(G157,#REF!,7,0),"") -> 
B158: =IF(F158="","",IF(COUNTIF(F$2:$F158,F158)-1=0,ROWS(F$2:$F158),"r")) ->  | C158: =IF(G158="","",IF(COUNTIF($G$2:G158,G158)-1=0,ROWS($G$2:G158),"r")) ->  | D158: =IF($A$1=F158,COUNTIF($F$2:F158,F158),"") ->  | I158: =IF(G158<>"",VLOOKUP(G158,التكويد!$A$1:$D$201,2,0),"") ->  | J158: =IF(F158<>"",VLOOKUP(F158,الموظفين!$A$2:$B$2006,2,0),"") ->  | K158: =IF(G158<>"",VLOOKUP(G158,التكويد!$A$1:$D$201,4,0)*H158,"") ->  | M158: =IF(G158<>"",VLOOKUP(G158,#REF!,6,0),"") ->  | N158: =IF(G158<>"",VLOOKUP(G158,#REF!,7,0),"") -> 
B159: =IF(F159="","",IF(COUNTIF(F$2:$F159,F159)-1=0,ROWS(F$2:$F159),"r")) ->  | C159: =IF(G159="","",IF(COUNTIF($G$2:G159,G159)-1=0,ROWS($G$2:G159),"r")) ->  | D159: =IF($A$1=F159,COUNTIF($F$2:F159,F159),"") ->  | I159: =IF(G159<>"",VLOOKUP(G159,التكويد!$A$1:$D$201,2,0),"") ->  | J159: =IF(F159<>"",VLOOKUP(F159,الموظفين!$A$2:$B$2006,2,0),"") ->  | K159: =IF(G159<>"",VLOOKUP(G159,التكويد!$A$1:$D$201,4,0)*H159,"") ->  | M159: =IF(G159<>"",VLOOKUP(G159,#REF!,6,0),"") ->  | N159: =IF(G159<>"",VLOOKUP(G159,#REF!,7,0),"") -> 
B160: =IF(F160="","",IF(COUNTIF(F$2:$F160,F160)-1=0,ROWS(F$2:$F160),"r")) ->  | C160: =IF(G160="","",IF(COUNTIF($G$2:G160,G160)-1=0,ROWS($G$2:G160),"r")) ->  | D160: =IF($A$1=F160,COUNTIF($F$2:F160,F160),"") ->  | I160: =IF(G160<>"",VLOOKUP(G160,التكويد!$A$1:$D$201,2,0),"") ->  | J160: =IF(F160<>"",VLOOKUP(F160,الموظفين!$A$2:$B$2006,2,0),"") ->  | K160: =IF(G160<>"",VLOOKUP(G160,التكويد!$A$1:$D$201,4,0)*H160,"") ->  | M160: =IF(G160<>"",VLOOKUP(G160,#REF!,6,0),"") ->  | N160: =IF(G160<>"",VLOOKUP(G160,#REF!,7,0),"") -> 
B161: =IF(F161="","",IF(COUNTIF(F$2:$F161,F161)-1=0,ROWS(F$2:$F161),"r")) ->  | C161: =IF(G161="","",IF(COUNTIF($G$2:G161,G161)-1=0,ROWS($G$2:G161),"r")) ->  | D161: =IF($A$1=F161,COUNTIF($F$2:F161,F161),"") ->  | I161: =IF(G161<>"",VLOOKUP(G161,التكويد!$A$1:$D$201,2,0),"") ->  | J161: =IF(F161<>"",VLOOKUP(F161,الموظفين!$A$2:$B$2006,2,0),"") ->  | K161: =IF(G161<>"",VLOOKUP(G161,التكويد!$A$1:$D$201,4,0)*H161,"") ->  | M161: =IF(G161<>"",VLOOKUP(G161,#REF!,6,0),"") ->  | N161: =IF(G161<>"",VLOOKUP(G161,#REF!,7,0),"") -> 
B162: =IF(F162="","",IF(COUNTIF(F$2:$F162,F162)-1=0,ROWS(F$2:$F162),"r")) ->  | C162: =IF(G162="","",IF(COUNTIF($G$2:G162,G162)-1=0,ROWS($G$2:G162),"r")) ->  | D162: =IF($A$1=F162,COUNTIF($F$2:F162,F162),"") ->  | I162: =IF(G162<>"",VLOOKUP(G162,التكويد!$A$1:$D$201,2,0),"") ->  | J162: =IF(F162<>"",VLOOKUP(F162,الموظفين!$A$2:$B$2006,2,0),"") ->  | K162: =IF(G162<>"",VLOOKUP(G162,التكويد!$A$1:$D$201,4,0)*H162,"") ->  | M162: =IF(G162<>"",VLOOKUP(G162,#REF!,6,0),"") ->  | N162: =IF(G162<>"",VLOOKUP(G162,#REF!,7,0),"") -> 
B163: =IF(F163="","",IF(COUNTIF(F$2:$F163,F163)-1=0,ROWS(F$2:$F163),"r")) ->  | C163: =IF(G163="","",IF(COUNTIF($G$2:G163,G163)-1=0,ROWS($G$2:G163),"r")) ->  | D163: =IF($A$1=F163,COUNTIF($F$2:F163,F163),"") ->  | I163: =IF(G163<>"",VLOOKUP(G163,التكويد!$A$1:$D$201,2,0),"") ->  | J163: =IF(F163<>"",VLOOKUP(F163,الموظفين!$A$2:$B$2006,2,0),"") ->  | K163: =IF(G163<>"",VLOOKUP(G163,التكويد!$A$1:$D$201,4,0)*H163,"") ->  | M163: =IF(G163<>"",VLOOKUP(G163,#REF!,6,0),"") ->  | N163: =IF(G163<>"",VLOOKUP(G163,#REF!,7,0),"") -> 
B164: =IF(F164="","",IF(COUNTIF(F$2:$F164,F164)-1=0,ROWS(F$2:$F164),"r")) ->  | C164: =IF(G164="","",IF(COUNTIF($G$2:G164,G164)-1=0,ROWS($G$2:G164),"r")) ->  | D164: =IF($A$1=F164,COUNTIF($F$2:F164,F164),"") ->  | I164: =IF(G164<>"",VLOOKUP(G164,التكويد!$A$1:$D$201,2,0),"") ->  | J164: =IF(F164<>"",VLOOKUP(F164,الموظفين!$A$2:$B$2006,2,0),"") ->  | K164: =IF(G164<>"",VLOOKUP(G164,التكويد!$A$1:$D$201,4,0)*H164,"") ->  | M164: =IF(G164<>"",VLOOKUP(G164,#REF!,6,0),"") ->  | N164: =IF(G164<>"",VLOOKUP(G164,#REF!,7,0),"") -> 
B165: =IF(F165="","",IF(COUNTIF(F$2:$F165,F165)-1=0,ROWS(F$2:$F165),"r")) ->  | C165: =IF(G165="","",IF(COUNTIF($G$2:G165,G165)-1=0,ROWS($G$2:G165),"r")) ->  | D165: =IF($A$1=F165,COUNTIF($F$2:F165,F165),"") ->  | I165: =IF(G165<>"",VLOOKUP(G165,التكويد!$A$1:$D$201,2,0),"") ->  | J165: =IF(F165<>"",VLOOKUP(F165,الموظفين!$A$2:$B$2006,2,0),"") ->  | K165: =IF(G165<>"",VLOOKUP(G165,التكويد!$A$1:$D$201,4,0)*H165,"") ->  | M165: =IF(G165<>"",VLOOKUP(G165,#REF!,6,0),"") ->  | N165: =IF(G165<>"",VLOOKUP(G165,#REF!,7,0),"") -> 
B166: =IF(F166="","",IF(COUNTIF(F$2:$F166,F166)-1=0,ROWS(F$2:$F166),"r")) ->  | C166: =IF(G166="","",IF(COUNTIF($G$2:G166,G166)-1=0,ROWS($G$2:G166),"r")) ->  | D166: =IF($A$1=F166,COUNTIF($F$2:F166,F166),"") ->  | I166: =IF(G166<>"",VLOOKUP(G166,التكويد!$A$1:$D$201,2,0),"") ->  | J166: =IF(F166<>"",VLOOKUP(F166,الموظفين!$A$2:$B$2006,2,0),"") ->  | K166: =IF(G166<>"",VLOOKUP(G166,التكويد!$A$1:$D$201,4,0)*H166,"") ->  | M166: =IF(G166<>"",VLOOKUP(G166,#REF!,6,0),"") ->  | N166: =IF(G166<>"",VLOOKUP(G166,#REF!,7,0),"") -> 
B167: =IF(F167="","",IF(COUNTIF(F$2:$F167,F167)-1=0,ROWS(F$2:$F167),"r")) ->  | C167: =IF(G167="","",IF(COUNTIF($G$2:G167,G167)-1=0,ROWS($G$2:G167),"r")) ->  | D167: =IF($A$1=F167,COUNTIF($F$2:F167,F167),"") ->  | I167: =IF(G167<>"",VLOOKUP(G167,التكويد!$A$1:$D$201,2,0),"") ->  | J167: =IF(F167<>"",VLOOKUP(F167,الموظفين!$A$2:$B$2006,2,0),"") ->  | K167: =IF(G167<>"",VLOOKUP(G167,التكويد!$A$1:$D$201,4,0)*H167,"") ->  | M167: =IF(G167<>"",VLOOKUP(G167,#REF!,6,0),"") ->  | N167: =IF(G167<>"",VLOOKUP(G167,#REF!,7,0),"") -> 
B168: =IF(F168="","",IF(COUNTIF(F$2:$F168,F168)-1=0,ROWS(F$2:$F168),"r")) ->  | C168: =IF(G168="","",IF(COUNTIF($G$2:G168,G168)-1=0,ROWS($G$2:G168),"r")) ->  | D168: =IF($A$1=F168,COUNTIF($F$2:F168,F168),"") ->  | I168: =IF(G168<>"",VLOOKUP(G168,التكويد!$A$1:$D$201,2,0),"") ->  | J168: =IF(F168<>"",VLOOKUP(F168,الموظفين!$A$2:$B$2006,2,0),"") ->  | K168: =IF(G168<>"",VLOOKUP(G168,التكويد!$A$1:$D$201,4,0)*H168,"") ->  | M168: =IF(G168<>"",VLOOKUP(G168,#REF!,6,0),"") ->  | N168: =IF(G168<>"",VLOOKUP(G168,#REF!,7,0),"") -> 
B169: =IF(F169="","",IF(COUNTIF(F$2:$F169,F169)-1=0,ROWS(F$2:$F169),"r")) ->  | C169: =IF(G169="","",IF(COUNTIF($G$2:G169,G169)-1=0,ROWS($G$2:G169),"r")) ->  | D169: =IF($A$1=F169,COUNTIF($F$2:F169,F169),"") ->  | I169: =IF(G169<>"",VLOOKUP(G169,التكويد!$A$1:$D$201,2,0),"") ->  | J169: =IF(F169<>"",VLOOKUP(F169,الموظفين!$A$2:$B$2006,2,0),"") ->  | K169: =IF(G169<>"",VLOOKUP(G169,التكويد!$A$1:$D$201,4,0)*H169,"") ->  | M169: =IF(G169<>"",VLOOKUP(G169,#REF!,6,0),"") ->  | N169: =IF(G169<>"",VLOOKUP(G169,#REF!,7,0),"") -> 
B170: =IF(F170="","",IF(COUNTIF(F$2:$F170,F170)-1=0,ROWS(F$2:$F170),"r")) ->  | C170: =IF(G170="","",IF(COUNTIF($G$2:G170,G170)-1=0,ROWS($G$2:G170),"r")) ->  | D170: =IF($A$1=F170,COUNTIF($F$2:F170,F170),"") ->  | I170: =IF(G170<>"",VLOOKUP(G170,التكويد!$A$1:$D$201,2,0),"") ->  | J170: =IF(F170<>"",VLOOKUP(F170,الموظفين!$A$2:$B$2006,2,0),"") ->  | K170: =IF(G170<>"",VLOOKUP(G170,التكويد!$A$1:$D$201,4,0)*H170,"") ->  | M170: =IF(G170<>"",VLOOKUP(G170,#REF!,6,0),"") ->  | N170: =IF(G170<>"",VLOOKUP(G170,#REF!,7,0),"") -> 
B171: =IF(F171="","",IF(COUNTIF(F$2:$F171,F171)-1=0,ROWS(F$2:$F171),"r")) ->  | C171: =IF(G171="","",IF(COUNTIF($G$2:G171,G171)-1=0,ROWS($G$2:G171),"r")) ->  | D171: =IF($A$1=F171,COUNTIF($F$2:F171,F171),"") ->  | I171: =IF(G171<>"",VLOOKUP(G171,التكويد!$A$1:$D$201,2,0),"") ->  | J171: =IF(F171<>"",VLOOKUP(F171,الموظفين!$A$2:$B$2006,2,0),"") ->  | K171: =IF(G171<>"",VLOOKUP(G171,التكويد!$A$1:$D$201,4,0)*H171,"") ->  | M171: =IF(G171<>"",VLOOKUP(G171,#REF!,6,0),"") ->  | N171: =IF(G171<>"",VLOOKUP(G171,#REF!,7,0),"") -> 
B172: =IF(F172="","",IF(COUNTIF(F$2:$F172,F172)-1=0,ROWS(F$2:$F172),"r")) ->  | C172: =IF(G172="","",IF(COUNTIF($G$2:G172,G172)-1=0,ROWS($G$2:G172),"r")) ->  | D172: =IF($A$1=F172,COUNTIF($F$2:F172,F172),"") ->  | I172: =IF(G172<>"",VLOOKUP(G172,التكويد!$A$1:$D$201,2,0),"") ->  | J172: =IF(F172<>"",VLOOKUP(F172,الموظفين!$A$2:$B$2006,2,0),"") ->  | K172: =IF(G172<>"",VLOOKUP(G172,التكويد!$A$1:$D$201,4,0)*H172,"") ->  | M172: =IF(G172<>"",VLOOKUP(G172,#REF!,6,0),"") ->  | N172: =IF(G172<>"",VLOOKUP(G172,#REF!,7,0),"") -> 
B173: =IF(F173="","",IF(COUNTIF(F$2:$F173,F173)-1=0,ROWS(F$2:$F173),"r")) ->  | C173: =IF(G173="","",IF(COUNTIF($G$2:G173,G173)-1=0,ROWS($G$2:G173),"r")) ->  | D173: =IF($A$1=F173,COUNTIF($F$2:F173,F173),"") ->  | I173: =IF(G173<>"",VLOOKUP(G173,التكويد!$A$1:$D$201,2,0),"") ->  | J173: =IF(F173<>"",VLOOKUP(F173,الموظفين!$A$2:$B$2006,2,0),"") ->  | K173: =IF(G173<>"",VLOOKUP(G173,التكويد!$A$1:$D$201,4,0)*H173,"") ->  | M173: =IF(G173<>"",VLOOKUP(G173,#REF!,6,0),"") ->  | N173: =IF(G173<>"",VLOOKUP(G173,#REF!,7,0),"") -> 
B174: =IF(F174="","",IF(COUNTIF(F$2:$F174,F174)-1=0,ROWS(F$2:$F174),"r")) ->  | C174: =IF(G174="","",IF(COUNTIF($G$2:G174,G174)-1=0,ROWS($G$2:G174),"r")) ->  | D174: =IF($A$1=F174,COUNTIF($F$2:F174,F174),"") ->  | I174: =IF(G174<>"",VLOOKUP(G174,التكويد!$A$1:$D$201,2,0),"") ->  | J174: =IF(F174<>"",VLOOKUP(F174,الموظفين!$A$2:$B$2006,2,0),"") ->  | K174: =IF(G174<>"",VLOOKUP(G174,التكويد!$A$1:$D$201,4,0)*H174,"") ->  | M174: =IF(G174<>"",VLOOKUP(G174,#REF!,6,0),"") ->  | N174: =IF(G174<>"",VLOOKUP(G174,#REF!,7,0),"") -> 
B175: =IF(F175="","",IF(COUNTIF(F$2:$F175,F175)-1=0,ROWS(F$2:$F175),"r")) ->  | C175: =IF(G175="","",IF(COUNTIF($G$2:G175,G175)-1=0,ROWS($G$2:G175),"r")) ->  | D175: =IF($A$1=F175,COUNTIF($F$2:F175,F175),"") ->  | I175: =IF(G175<>"",VLOOKUP(G175,التكويد!$A$1:$D$201,2,0),"") ->  | J175: =IF(F175<>"",VLOOKUP(F175,الموظفين!$A$2:$B$2006,2,0),"") ->  | K175: =IF(G175<>"",VLOOKUP(G175,التكويد!$A$1:$D$201,4,0)*H175,"") ->  | M175: =IF(G175<>"",VLOOKUP(G175,#REF!,6,0),"") ->  | N175: =IF(G175<>"",VLOOKUP(G175,#REF!,7,0),"") -> 
B176: =IF(F176="","",IF(COUNTIF(F$2:$F176,F176)-1=0,ROWS(F$2:$F176),"r")) ->  | C176: =IF(G176="","",IF(COUNTIF($G$2:G176,G176)-1=0,ROWS($G$2:G176),"r")) ->  | D176: =IF($A$1=F176,COUNTIF($F$2:F176,F176),"") ->  | I176: =IF(G176<>"",VLOOKUP(G176,التكويد!$A$1:$D$201,2,0),"") ->  | J176: =IF(F176<>"",VLOOKUP(F176,الموظفين!$A$2:$B$2006,2,0),"") ->  | K176: =IF(G176<>"",VLOOKUP(G176,التكويد!$A$1:$D$201,4,0)*H176,"") ->  | M176: =IF(G176<>"",VLOOKUP(G176,#REF!,6,0),"") ->  | N176: =IF(G176<>"",VLOOKUP(G176,#REF!,7,0),"") -> 
B177: =IF(F177="","",IF(COUNTIF(F$2:$F177,F177)-1=0,ROWS(F$2:$F177),"r")) ->  | C177: =IF(G177="","",IF(COUNTIF($G$2:G177,G177)-1=0,ROWS($G$2:G177),"r")) ->  | D177: =IF($A$1=F177,COUNTIF($F$2:F177,F177),"") ->  | I177: =IF(G177<>"",VLOOKUP(G177,التكويد!$A$1:$D$201,2,0),"") ->  | J177: =IF(F177<>"",VLOOKUP(F177,الموظفين!$A$2:$B$2006,2,0),"") ->  | K177: =IF(G177<>"",VLOOKUP(G177,التكويد!$A$1:$D$201,4,0)*H177,"") ->  | M177: =IF(G177<>"",VLOOKUP(G177,#REF!,6,0),"") ->  | N177: =IF(G177<>"",VLOOKUP(G177,#REF!,7,0),"") -> 
B178: =IF(F178="","",IF(COUNTIF(F$2:$F178,F178)-1=0,ROWS(F$2:$F178),"r")) ->  | C178: =IF(G178="","",IF(COUNTIF($G$2:G178,G178)-1=0,ROWS($G$2:G178),"r")) ->  | D178: =IF($A$1=F178,COUNTIF($F$2:F178,F178),"") ->  | I178: =IF(G178<>"",VLOOKUP(G178,التكويد!$A$1:$D$201,2,0),"") ->  | J178: =IF(F178<>"",VLOOKUP(F178,الموظفين!$A$2:$B$2006,2,0),"") ->  | K178: =IF(G178<>"",VLOOKUP(G178,التكويد!$A$1:$D$201,4,0)*H178,"") ->  | M178: =IF(G178<>"",VLOOKUP(G178,#REF!,6,0),"") ->  | N178: =IF(G178<>"",VLOOKUP(G178,#REF!,7,0),"") -> 
B179: =IF(F179="","",IF(COUNTIF(F$2:$F179,F179)-1=0,ROWS(F$2:$F179),"r")) ->  | C179: =IF(G179="","",IF(COUNTIF($G$2:G179,G179)-1=0,ROWS($G$2:G179),"r")) ->  | D179: =IF($A$1=F179,COUNTIF($F$2:F179,F179),"") ->  | I179: =IF(G179<>"",VLOOKUP(G179,التكويد!$A$1:$D$201,2,0),"") ->  | J179: =IF(F179<>"",VLOOKUP(F179,الموظفين!$A$2:$B$2006,2,0),"") ->  | K179: =IF(G179<>"",VLOOKUP(G179,التكويد!$A$1:$D$201,4,0)*H179,"") ->  | M179: =IF(G179<>"",VLOOKUP(G179,#REF!,6,0),"") ->  | N179: =IF(G179<>"",VLOOKUP(G179,#REF!,7,0),"") -> 
B180: =IF(F180="","",IF(COUNTIF(F$2:$F180,F180)-1=0,ROWS(F$2:$F180),"r")) ->  | C180: =IF(G180="","",IF(COUNTIF($G$2:G180,G180)-1=0,ROWS($G$2:G180),"r")) ->  | D180: =IF($A$1=F180,COUNTIF($F$2:F180,F180),"") ->  | I180: =IF(G180<>"",VLOOKUP(G180,التكويد!$A$1:$D$201,2,0),"") ->  | J180: =IF(F180<>"",VLOOKUP(F180,الموظفين!$A$2:$B$2006,2,0),"") ->  | K180: =IF(G180<>"",VLOOKUP(G180,التكويد!$A$1:$D$201,4,0)*H180,"") ->  | M180: =IF(G180<>"",VLOOKUP(G180,#REF!,6,0),"") ->  | N180: =IF(G180<>"",VLOOKUP(G180,#REF!,7,0),"") -> 
B181: =IF(F181="","",IF(COUNTIF(F$2:$F181,F181)-1=0,ROWS(F$2:$F181),"r")) ->  | C181: =IF(G181="","",IF(COUNTIF($G$2:G181,G181)-1=0,ROWS($G$2:G181),"r")) ->  | D181: =IF($A$1=F181,COUNTIF($F$2:F181,F181),"") ->  | I181: =IF(G181<>"",VLOOKUP(G181,التكويد!$A$1:$D$201,2,0),"") ->  | J181: =IF(F181<>"",VLOOKUP(F181,الموظفين!$A$2:$B$2006,2,0),"") ->  | K181: =IF(G181<>"",VLOOKUP(G181,التكويد!$A$1:$D$201,4,0)*H181,"") ->  | M181: =IF(G181<>"",VLOOKUP(G181,#REF!,6,0),"") ->  | N181: =IF(G181<>"",VLOOKUP(G181,#REF!,7,0),"") -> 
B182: =IF(F182="","",IF(COUNTIF(F$2:$F182,F182)-1=0,ROWS(F$2:$F182),"r")) ->  | C182: =IF(G182="","",IF(COUNTIF($G$2:G182,G182)-1=0,ROWS($G$2:G182),"r")) ->  | D182: =IF($A$1=F182,COUNTIF($F$2:F182,F182),"") ->  | I182: =IF(G182<>"",VLOOKUP(G182,التكويد!$A$1:$D$201,2,0),"") ->  | J182: =IF(F182<>"",VLOOKUP(F182,الموظفين!$A$2:$B$2006,2,0),"") ->  | K182: =IF(G182<>"",VLOOKUP(G182,التكويد!$A$1:$D$201,4,0)*H182,"") ->  | M182: =IF(G182<>"",VLOOKUP(G182,#REF!,6,0),"") ->  | N182: =IF(G182<>"",VLOOKUP(G182,#REF!,7,0),"") -> 
B183: =IF(F183="","",IF(COUNTIF(F$2:$F183,F183)-1=0,ROWS(F$2:$F183),"r")) ->  | C183: =IF(G183="","",IF(COUNTIF($G$2:G183,G183)-1=0,ROWS($G$2:G183),"r")) ->  | D183: =IF($A$1=F183,COUNTIF($F$2:F183,F183),"") ->  | I183: =IF(G183<>"",VLOOKUP(G183,التكويد!$A$1:$D$201,2,0),"") ->  | J183: =IF(F183<>"",VLOOKUP(F183,الموظفين!$A$2:$B$2006,2,0),"") ->  | K183: =IF(G183<>"",VLOOKUP(G183,التكويد!$A$1:$D$201,4,0)*H183,"") ->  | M183: =IF(G183<>"",VLOOKUP(G183,#REF!,6,0),"") ->  | N183: =IF(G183<>"",VLOOKUP(G183,#REF!,7,0),"") -> 
B184: =IF(F184="","",IF(COUNTIF(F$2:$F184,F184)-1=0,ROWS(F$2:$F184),"r")) ->  | C184: =IF(G184="","",IF(COUNTIF($G$2:G184,G184)-1=0,ROWS($G$2:G184),"r")) ->  | D184: =IF($A$1=F184,COUNTIF($F$2:F184,F184),"") ->  | I184: =IF(G184<>"",VLOOKUP(G184,التكويد!$A$1:$D$201,2,0),"") ->  | J184: =IF(F184<>"",VLOOKUP(F184,الموظفين!$A$2:$B$2006,2,0),"") ->  | K184: =IF(G184<>"",VLOOKUP(G184,التكويد!$A$1:$D$201,4,0)*H184,"") ->  | M184: =IF(G184<>"",VLOOKUP(G184,#REF!,6,0),"") ->  | N184: =IF(G184<>"",VLOOKUP(G184,#REF!,7,0),"") -> 
B185: =IF(F185="","",IF(COUNTIF(F$2:$F185,F185)-1=0,ROWS(F$2:$F185),"r")) ->  | C185: =IF(G185="","",IF(COUNTIF($G$2:G185,G185)-1=0,ROWS($G$2:G185),"r")) ->  | D185: =IF($A$1=F185,COUNTIF($F$2:F185,F185),"") ->  | I185: =IF(G185<>"",VLOOKUP(G185,التكويد!$A$1:$D$201,2,0),"") ->  | J185: =IF(F185<>"",VLOOKUP(F185,الموظفين!$A$2:$B$2006,2,0),"") ->  | K185: =IF(G185<>"",VLOOKUP(G185,التكويد!$A$1:$D$201,4,0)*H185,"") ->  | M185: =IF(G185<>"",VLOOKUP(G185,#REF!,6,0),"") ->  | N185: =IF(G185<>"",VLOOKUP(G185,#REF!,7,0),"") -> 
B186: =IF(F186="","",IF(COUNTIF(F$2:$F186,F186)-1=0,ROWS(F$2:$F186),"r")) ->  | C186: =IF(G186="","",IF(COUNTIF($G$2:G186,G186)-1=0,ROWS($G$2:G186),"r")) ->  | D186: =IF($A$1=F186,COUNTIF($F$2:F186,F186),"") ->  | I186: =IF(G186<>"",VLOOKUP(G186,التكويد!$A$1:$D$201,2,0),"") ->  | J186: =IF(F186<>"",VLOOKUP(F186,الموظفين!$A$2:$B$2006,2,0),"") ->  | K186: =IF(G186<>"",VLOOKUP(G186,التكويد!$A$1:$D$201,4,0)*H186,"") ->  | M186: =IF(G186<>"",VLOOKUP(G186,#REF!,6,0),"") ->  | N186: =IF(G186<>"",VLOOKUP(G186,#REF!,7,0),"") -> 
B187: =IF(F187="","",IF(COUNTIF(F$2:$F187,F187)-1=0,ROWS(F$2:$F187),"r")) ->  | C187: =IF(G187="","",IF(COUNTIF($G$2:G187,G187)-1=0,ROWS($G$2:G187),"r")) ->  | D187: =IF($A$1=F187,COUNTIF($F$2:F187,F187),"") ->  | I187: =IF(G187<>"",VLOOKUP(G187,التكويد!$A$1:$D$201,2,0),"") ->  | J187: =IF(F187<>"",VLOOKUP(F187,الموظفين!$A$2:$B$2006,2,0),"") ->  | K187: =IF(G187<>"",VLOOKUP(G187,التكويد!$A$1:$D$201,4,0)*H187,"") ->  | M187: =IF(G187<>"",VLOOKUP(G187,#REF!,6,0),"") ->  | N187: =IF(G187<>"",VLOOKUP(G187,#REF!,7,0),"") -> 
B188: =IF(F188="","",IF(COUNTIF(F$2:$F188,F188)-1=0,ROWS(F$2:$F188),"r")) ->  | C188: =IF(G188="","",IF(COUNTIF($G$2:G188,G188)-1=0,ROWS($G$2:G188),"r")) ->  | D188: =IF($A$1=F188,COUNTIF($F$2:F188,F188),"") ->  | I188: =IF(G188<>"",VLOOKUP(G188,التكويد!$A$1:$D$201,2,0),"") ->  | J188: =IF(F188<>"",VLOOKUP(F188,الموظفين!$A$2:$B$2006,2,0),"") ->  | K188: =IF(G188<>"",VLOOKUP(G188,التكويد!$A$1:$D$201,4,0)*H188,"") ->  | M188: =IF(G188<>"",VLOOKUP(G188,#REF!,6,0),"") ->  | N188: =IF(G188<>"",VLOOKUP(G188,#REF!,7,0),"") -> 
B189: =IF(F189="","",IF(COUNTIF(F$2:$F189,F189)-1=0,ROWS(F$2:$F189),"r")) ->  | C189: =IF(G189="","",IF(COUNTIF($G$2:G189,G189)-1=0,ROWS($G$2:G189),"r")) ->  | D189: =IF($A$1=F189,COUNTIF($F$2:F189,F189),"") ->  | I189: =IF(G189<>"",VLOOKUP(G189,التكويد!$A$1:$D$201,2,0),"") ->  | J189: =IF(F189<>"",VLOOKUP(F189,الموظفين!$A$2:$B$2006,2,0),"") ->  | K189: =IF(G189<>"",VLOOKUP(G189,التكويد!$A$1:$D$201,4,0)*H189,"") ->  | M189: =IF(G189<>"",VLOOKUP(G189,#REF!,6,0),"") ->  | N189: =IF(G189<>"",VLOOKUP(G189,#REF!,7,0),"") -> 
B190: =IF(F190="","",IF(COUNTIF(F$2:$F190,F190)-1=0,ROWS(F$2:$F190),"r")) ->  | C190: =IF(G190="","",IF(COUNTIF($G$2:G190,G190)-1=0,ROWS($G$2:G190),"r")) ->  | D190: =IF($A$1=F190,COUNTIF($F$2:F190,F190),"") ->  | I190: =IF(G190<>"",VLOOKUP(G190,التكويد!$A$1:$D$201,2,0),"") ->  | J190: =IF(F190<>"",VLOOKUP(F190,الموظفين!$A$2:$B$2006,2,0),"") ->  | K190: =IF(G190<>"",VLOOKUP(G190,التكويد!$A$1:$D$201,4,0)*H190,"") ->  | M190: =IF(G190<>"",VLOOKUP(G190,#REF!,6,0),"") ->  | N190: =IF(G190<>"",VLOOKUP(G190,#REF!,7,0),"") -> 
B191: =IF(F191="","",IF(COUNTIF(F$2:$F191,F191)-1=0,ROWS(F$2:$F191),"r")) ->  | C191: =IF(G191="","",IF(COUNTIF($G$2:G191,G191)-1=0,ROWS($G$2:G191),"r")) ->  | D191: =IF($A$1=F191,COUNTIF($F$2:F191,F191),"") ->  | I191: =IF(G191<>"",VLOOKUP(G191,التكويد!$A$1:$D$201,2,0),"") ->  | J191: =IF(F191<>"",VLOOKUP(F191,الموظفين!$A$2:$B$2006,2,0),"") ->  | K191: =IF(G191<>"",VLOOKUP(G191,التكويد!$A$1:$D$201,4,0)*H191,"") ->  | M191: =IF(G191<>"",VLOOKUP(G191,#REF!,6,0),"") ->  | N191: =IF(G191<>"",VLOOKUP(G191,#REF!,7,0),"") -> 
B192: =IF(F192="","",IF(COUNTIF(F$2:$F192,F192)-1=0,ROWS(F$2:$F192),"r")) ->  | C192: =IF(G192="","",IF(COUNTIF($G$2:G192,G192)-1=0,ROWS($G$2:G192),"r")) ->  | D192: =IF($A$1=F192,COUNTIF($F$2:F192,F192),"") ->  | I192: =IF(G192<>"",VLOOKUP(G192,التكويد!$A$1:$D$201,2,0),"") ->  | J192: =IF(F192<>"",VLOOKUP(F192,الموظفين!$A$2:$B$2006,2,0),"") ->  | K192: =IF(G192<>"",VLOOKUP(G192,التكويد!$A$1:$D$201,4,0)*H192,"") ->  | M192: =IF(G192<>"",VLOOKUP(G192,#REF!,6,0),"") ->  | N192: =IF(G192<>"",VLOOKUP(G192,#REF!,7,0),"") -> 
B193: =IF(F193="","",IF(COUNTIF(F$2:$F193,F193)-1=0,ROWS(F$2:$F193),"r")) ->  | C193: =IF(G193="","",IF(COUNTIF($G$2:G193,G193)-1=0,ROWS($G$2:G193),"r")) ->  | D193: =IF($A$1=F193,COUNTIF($F$2:F193,F193),"") ->  | I193: =IF(G193<>"",VLOOKUP(G193,التكويد!$A$1:$D$201,2,0),"") ->  | J193: =IF(F193<>"",VLOOKUP(F193,الموظفين!$A$2:$B$2006,2,0),"") ->  | K193: =IF(G193<>"",VLOOKUP(G193,التكويد!$A$1:$D$201,4,0)*H193,"") ->  | M193: =IF(G193<>"",VLOOKUP(G193,#REF!,6,0),"") ->  | N193: =IF(G193<>"",VLOOKUP(G193,#REF!,7,0),"") -> 
B194: =IF(F194="","",IF(COUNTIF(F$2:$F194,F194)-1=0,ROWS(F$2:$F194),"r")) ->  | C194: =IF(G194="","",IF(COUNTIF($G$2:G194,G194)-1=0,ROWS($G$2:G194),"r")) ->  | D194: =IF($A$1=F194,COUNTIF($F$2:F194,F194),"") ->  | I194: =IF(G194<>"",VLOOKUP(G194,التكويد!$A$1:$D$201,2,0),"") ->  | J194: =IF(F194<>"",VLOOKUP(F194,الموظفين!$A$2:$B$2006,2,0),"") ->  | K194: =IF(G194<>"",VLOOKUP(G194,التكويد!$A$1:$D$201,4,0)*H194,"") ->  | M194: =IF(G194<>"",VLOOKUP(G194,#REF!,6,0),"") ->  | N194: =IF(G194<>"",VLOOKUP(G194,#REF!,7,0),"") -> 
B195: =IF(F195="","",IF(COUNTIF(F$2:$F195,F195)-1=0,ROWS(F$2:$F195),"r")) ->  | C195: =IF(G195="","",IF(COUNTIF($G$2:G195,G195)-1=0,ROWS($G$2:G195),"r")) ->  | D195: =IF($A$1=F195,COUNTIF($F$2:F195,F195),"") ->  | I195: =IF(G195<>"",VLOOKUP(G195,التكويد!$A$1:$D$201,2,0),"") ->  | J195: =IF(F195<>"",VLOOKUP(F195,الموظفين!$A$2:$B$2006,2,0),"") ->  | K195: =IF(G195<>"",VLOOKUP(G195,التكويد!$A$1:$D$201,4,0)*H195,"") ->  | L195: =IF(H195="","",IF(H195<0,"منصرف",IF(H195>0,"بيع"))) ->  | M195: =IF(G195<>"",VLOOKUP(G195,#REF!,6,0),"") ->  | N195: =IF(G195<>"",VLOOKUP(G195,#REF!,7,0),"") -> 
B196: =IF(F196="","",IF(COUNTIF(F$2:$F196,F196)-1=0,ROWS(F$2:$F196),"r")) ->  | C196: =IF(G196="","",IF(COUNTIF($G$2:G196,G196)-1=0,ROWS($G$2:G196),"r")) ->  | D196: =IF($A$1=F196,COUNTIF($F$2:F196,F196),"") ->  | I196: =IF(G196<>"",VLOOKUP(G196,التكويد!$A$1:$D$201,2,0),"") ->  | J196: =IF(F196<>"",VLOOKUP(F196,الموظفين!$A$2:$B$2006,2,0),"") ->  | K196: =IF(G196<>"",VLOOKUP(G196,التكويد!$A$1:$D$201,4,0)*H196,"") ->  | M196: =IF(G196<>"",VLOOKUP(G196,#REF!,6,0),"") ->  | N196: =IF(G196<>"",VLOOKUP(G196,#REF!,7,0),"") -> 
B197: =IF(F197="","",IF(COUNTIF(F$2:$F197,F197)-1=0,ROWS(F$2:$F197),"r")) ->  | C197: =IF(G197="","",IF(COUNTIF($G$2:G197,G197)-1=0,ROWS($G$2:G197),"r")) ->  | D197: =IF($A$1=F197,COUNTIF($F$2:F197,F197),"") ->  | I197: =IF(G197<>"",VLOOKUP(G197,التكويد!$A$1:$D$201,2,0),"") ->  | J197: =IF(F197<>"",VLOOKUP(F197,الموظفين!$A$2:$B$2006,2,0),"") ->  | K197: =IF(G197<>"",VLOOKUP(G197,التكويد!$A$1:$D$201,4,0)*H197,"") ->  | M197: =IF(G197<>"",VLOOKUP(G197,#REF!,6,0),"") ->  | N197: =IF(G197<>"",VLOOKUP(G197,#REF!,7,0),"") -> 
B198: =IF(F198="","",IF(COUNTIF(F$2:$F198,F198)-1=0,ROWS(F$2:$F198),"r")) ->  | C198: =IF(G198="","",IF(COUNTIF($G$2:G198,G198)-1=0,ROWS($G$2:G198),"r")) ->  | D198: =IF($A$1=F198,COUNTIF($F$2:F198,F198),"") ->  | I198: =IF(G198<>"",VLOOKUP(G198,التكويد!$A$1:$D$201,2,0),"") ->  | J198: =IF(F198<>"",VLOOKUP(F198,الموظفين!$A$2:$B$2006,2,0),"") ->  | K198: =IF(G198<>"",VLOOKUP(G198,التكويد!$A$1:$D$201,4,0)*H198,"") ->  | M198: =IF(G198<>"",VLOOKUP(G198,#REF!,6,0),"") ->  | N198: =IF(G198<>"",VLOOKUP(G198,#REF!,7,0),"") -> 
B199: =IF(F199="","",IF(COUNTIF(F$2:$F199,F199)-1=0,ROWS(F$2:$F199),"r")) ->  | C199: =IF(G199="","",IF(COUNTIF($G$2:G199,G199)-1=0,ROWS($G$2:G199),"r")) ->  | D199: =IF($A$1=F199,COUNTIF($F$2:F199,F199),"") ->  | I199: =IF(G199<>"",VLOOKUP(G199,التكويد!$A$1:$D$201,2,0),"") ->  | J199: =IF(F199<>"",VLOOKUP(F199,الموظفين!$A$2:$B$2006,2,0),"") ->  | K199: =IF(G199<>"",VLOOKUP(G199,التكويد!$A$1:$D$201,4,0)*H199,"") ->  | M199: =IF(G199<>"",VLOOKUP(G199,#REF!,6,0),"") ->  | N199: =IF(G199<>"",VLOOKUP(G199,#REF!,7,0),"") -> 
B200: =IF(F200="","",IF(COUNTIF(F$2:$F200,F200)-1=0,ROWS(F$2:$F200),"r")) ->  | C200: =IF(G200="","",IF(COUNTIF($G$2:G200,G200)-1=0,ROWS($G$2:G200),"r")) ->  | D200: =IF($A$1=F200,COUNTIF($F$2:F200,F200),"") ->  | I200: =IF(G200<>"",VLOOKUP(G200,التكويد!$A$1:$D$201,2,0),"") ->  | J200: =IF(F200<>"",VLOOKUP(F200,الموظفين!$A$2:$B$2006,2,0),"") ->  | K200: =IF(G200<>"",VLOOKUP(G200,التكويد!$A$1:$D$201,4,0)*H200,"") ->  | M200: =IF(G200<>"",VLOOKUP(G200,#REF!,6,0),"") ->  | N200: =IF(G200<>"",VLOOKUP(G200,#REF!,7,0),"") -> 
... 1453 more rows

Sheet R
A1: PLANT OUT LET POS 25%
A2: =D!P1 -> 1 | B2: =VLOOKUP($A$2,الموظفين!$A$1:$B$2006,2,0) -> عميل1 | D2: total
A3: =D!Q1 -> 2018-12-03 | B3: =VLOOKUP($A$2,#REF!,3,0) ->  | C3: =1000-B3 ->  | D3: =SUM(D5:D16) -> 257.409
A4: الكود | B4: الصنف | C4: الكميه | D4: السعر
A5: =IFERROR(VLOOKUP(ROW()-4,D!$D$2:K1000,4,0),"") -> 101 | B5: =IFERROR(VLOOKUP(A5,التكويد!$A$1:D201,2,0),"") -> صنف1 | C5: =IF(A5<>"",SUMIFS(D!$H$2:$H$1653,D!$E$2:$E$1653,'R'!$A$3,D!$F$2:$F$1653,'R'!$A$2,D!$G$2:$G$1653,'R'!A5),"") -> 6 | D5: =IF(A5<>"",VLOOKUP(A5,التكويد!$A$1:$D$201,4,0)*C5,"") -> 67.5
A6: =IFERROR(VLOOKUP(ROW()-4,D!$D$2:K1001,4,0),"") -> 102 | B6: =IFERROR(VLOOKUP(A6,التكويد!$A$1:D202,2,0),"") -> صنف2 | C6: =IF(A6<>"",SUMIFS(D!$H$2:$H$1653,D!$E$2:$E$1653,'R'!$A$3,D!$F$2:$F$1653,'R'!$A$2,D!$G$2:$G$1653,'R'!A6),"") -> 0 | D6: =IF(A6<>"",VLOOKUP(A6,التكويد!$A$1:$D$201,4,0)*C6,"") -> 0
A7: =IFERROR(VLOOKUP(ROW()-4,D!$D$2:K1002,4,0),"") -> 105 | B7: =IFERROR(VLOOKUP(A7,التكويد!$A$1:D203,2,0),"") -> صنف5 | C7: =IF(A7<>"",SUMIFS(D!$H$2:$H$1653,D!$E$2:$E$1653,'R'!$A$3,D!$F$2:$F$1653,'R'!$A$2,D!$G$2:$G$1653,'R'!A7),"") -> 0 | D7: =IF(A7<>"",VLOOKUP(A7,التكويد!$A$1:$D$201,4,0)*C7,"") -> 0
A8: =IFERROR(VLOOKUP(ROW()-4,D!$D$2:K1003,4,0),"") -> 107 | B8: =IFERROR(VLOOKUP(A8,التكويد!$A$1:D204,2,0),"") -> صنف7 | C8: =IF(A8<>"",SUMIFS(D!$H$2:$H$1653,D!$E$2:$E$1653,'R'!$A$3,D!$F$2:$F$1653,'R'!$A$2,D!$G$2:$G$1653,'R'!A8),"") -> 0 | D8: =IF(A8<>"",VLOOKUP(A8,التكويد!$A$1:$D$201,4,0)*C8,"") -> 0
B9: =IFERROR(VLOOKUP(A9,التكويد!$A$1:D205,2,0),"") ->  | C9: =IF(A9<>"",SUMIFS(D!$H$2:$H$1653,D!$E$2:$E$1653,'R'!$A$3,D!$F$2:$F$1653,'R'!$A$2,D!$G$2:$G$1653,'R'!A9),"") ->  | D9: =IF(A9<>"",VLOOKUP(A9,التكويد!$A$1:$D$201,4,0)*C9,"") ->  | E9: مطلوب ترحيل الدتا من شيت R الي شيت D من اول A4 حتي D16 مع العلم
A10: =IFERROR(VLOOKUP(ROW()-4,D!$D$2:K1005,4,0),"") -> 110 | B10: =IFERROR(VLOOKUP(A10,التكويد!$A$1:D206,2,0),"") -> صنف10 | C10: =IF(A10<>"",SUMIFS(D!$H$2:$H$1653,D!$E$2:$E$1653,'R'!$A$3,D!$F$2:$F$1653,'R'!$A$2,D!$G$2:$G$1653,'R'!A10),"") -> 6 | D10: =IF(A10<>"",VLOOKUP(A10,التكويد!$A$1:$D$201,4,0)*C10,"") -> 19.08 | E10: لم ترحل الخلايا التي ليس بيها داتا والاضافه ترحيل كود العميل والتاريخ
A11: =IFERROR(VLOOKUP(ROW()-4,D!$D$2:K1006,4,0),"") -> 101 | B11: =IFERROR(VLOOKUP(A11,التكويد!$A$1:D207,2,0),"") -> صنف1 | C11: =IF(A11<>"",SUMIFS(D!$H$2:$H$1653,D!$E$2:$E$1653,'R'!$A$3,D!$F$2:$F$1653,'R'!$A$2,D!$G$2:$G$1653,'R'!A11),"") -> 6 | D11: =IF(A11<>"",VLOOKUP(A11,التكويد!$A$1:$D$201,4,0)*C11,"") -> 67.5 | E11: بجوار اكواد المنتج كما في فس شيت D
A12: =IFERROR(VLOOKUP(ROW()-4,D!$D$2:K1007,4,0),"") -> 118 | B12: =IFERROR(VLOOKUP(A12,التكويد!$A$1:D208,2,0),"") -> صنف18 | C12: =IF(A12<>"",SUMIFS(D!$H$2:$H$1653,D!$E$2:$E$1653,'R'!$A$3,D!$F$2:$F$1653,'R'!$A$2,D!$G$2:$G$1653,'R'!A12),"") -> 36 | D12: =IF(A12<>"",VLOOKUP(A12,التكويد!$A$1:$D$201,4,0)*C12,"") -> 59.076
A13: =IFERROR(VLOOKUP(ROW()-4,D!$D$2:K1008,4,0),"") -> 115 | B13: =IFERROR(VLOOKUP(A13,التكويد!$A$1:D209,2,0),"") -> صنف15 | C13: =IF(A13<>"",SUMIFS(D!$H$2:$H$1653,D!$E$2:$E$1653,'R'!$A$3,D!$F$2:$F$1653,'R'!$A$2,D!$G$2:$G$1653,'R'!A13),"") -> 9 | D13: =IF(A13<>"",VLOOKUP(A13,التكويد!$A$1:$D$201,4,0)*C13,"") -> 44.253
B14: =IFERROR(VLOOKUP(A14,التكويد!$A$1:D210,2,0),"") ->  | C14: =IF(A14<>"",SUMIFS(D!$H$2:$H$1653,D!$E$2:$E$1653,'R'!$A$3,D!$F$2:$F$1653,'R'!$A$2,D!$G$2:$G$1653,'R'!A14),"") ->  | D14: =IF(A14<>"",VLOOKUP(A14,التكويد!$A$1:$D$201,4,0)*C14,"") -> 

Sheet التكويد
A1: 101 | B1: صنف1 | C1: 12 | D1: 11.25
A2: 102 | B2: صنف2 | C2: 12 | D2: 11.25
A3: 103 | B3: صنف3 | C3: 12 | D3: 11.25
A4: 104 | B4: صنف4 | C4: 12 | D4: 9
A5: 105 | B5: صنف5 | C5: 12 | D5: 9
A6: 106 | B6: صنف6 | C6: 6 | D6: 15.6
A7: 107 | B7: صنف7 | C7: 27 | D7: 2.985
A8: 108 | B8: صنف8 | C8: 6 | D8: 14.25
A9: 109 | B9: صنف9 | C9: 6 | D9: 9.9
A10: 110 | B10: صنف10 | C10: 27 | D10: 3.18
A11: 111 | B11: صنف11 | C11: 27 | D11: 3.18
A12: 112 | B12: صنف12 | C12: 27 | D12: 3.18
A13: 113 | B13: صنف13 | C13: 12 | D13: 4.917
A14: 114 | B14: صنف14 | C14: 12 | D14: 4.917
A15: 115 | B15: صنف15 | C15: 12 | D15: 4.917
A16: 116 | B16: صنف16 | C16: 12 | D16: 4.917
A17: 117 | B17: صنف17 | C17: 27 | D17: 1.641
A18: 118 | B18: صنف18 | C18: 27 | D18: 1.641
A19: 119 | B19: صنف19 | C19: 27 | D19: 1.666
A20: 120 | B20: صنف20 | C20: 27 | D20: 1.641
A21: 121 | B21: صنف21 | C21: 40 | D21: 1.35
A22: 122 | B22: صنف22 | C22: 40 | D22: 1.35
A23: 123 | B23: صنف23 | C23: 27 | D23: 2.4375
A24: 124 | B24: صنف24 | C24: 27 | D24: 2.4375
A25: 125 | B25: صنف25 | C25: 27 | D25: 2.4375
A26: 126 | B26: صنف26 | C26: 27 | D26: 2.607
A27: 127 | B27: صنف27 | C27: 27 | D27: 2.4375
A28: 128 | B28: صنف28 | C28: 27 | D28: 2.4375
A29: 129 | B29: صنف29 | C29: 27 | D29: 2.4375
A30: 130 | B30: صنف30 | C30: 12 | D30: 7.815
A31: 131 | B31: صنف31 | C31: 12 | D31: 7.815
A32: 132 | B32: صنف32 | C32: 12 | D32: 7.815
A33: 133 | B33: صنف33 | C33: 12 | D33: 8.445
A34: 134 | B34: صنف34 | C34: 12 | D34: 7.815
A35: 135 | B35: صنف35 | C35: 12 | D35: 7.815
A36: 136 | B36: صنف36 | C36: 12 | D36: 7.815
A37: 137 | B37: صنف37 | C37: 48 | D37: 1.35
A38: 138 | B38: صنف38 | C38: 48 | D38: 2.025
A39: 139 | B39: صنف39 | C39: 48 | D39: 2.025
A40: 140 | B40: صنف40 | C40: 60 | D40: 3
A41: 141 | B41: صنف41 | C41: 30 | D41: 5.8125
A42: 142 | B42: صنف42 | C42: 48 | D42: 1.35
A43: 143 | B43: صنف43 | C43: 48 | D43: 1.35
A44: 144 | B44: صنف44 | C44: 48 | D44: 2.025
A45: 145 | B45: صنف45 | C45: 24 | D45: 1.35
A46: 146 | B46: صنف46 | C46: 24 | D46: 2.6925
A47: 147 | B47: صنف47 | C47: 24 | D47: 2.6925
A48: 148 | B48: صنف48 | C48: 24 | D48: 2.6925
A49: 149 | B49: صنف49 | C49: 24 | D49: 2.6925
A50: 150 | B50: صنف50 | C50: 24 | D50: 2.6925
A51: 151 | B51: صنف51 | C51: 24 | D51: 2.6925
A52: 152 | B52: صنف52 | C52: 24 | D52: 10.5
A53: 153 | B53: صنف53 | C53: 24 | D53: 5.865
A54: 154 | B54: صنف54 | C54: 24 | D54: 6.855
A55: 155 | B55: صنف55 | C55: 24 | D55: 6.855
A56: 156 | B56: صنف56 | C56: 24 | D56: 6.855
A57: 157 | B57: صنف57 | C57: 27 | D57: 2.607
A58: 158 | B58: صنف58 | C58: 48 | D58: 1.35
A59: 159 | B59: صنف59 | C59: 60 | D59: 3
A60: 160 | B60: صنف60 | C60: 27 | D60: 2.4435
A61: 161 | B61: صنف61 | C61: 48 | D61: 2.025
A62: 162 | B62: صنف62 | C62: 48 | D62: 1.35
A63: 163 | B63: صنف63 | C63: 6 | D63: 19.5
A64: 164 | B64: صنف64 | C64: 48 | D64: 2.025
A65: 165 | B65: صنف65 | C65: 27 | D65: 1.641
A66: 166 | B66: صنف66 | C66: 12 | D66: 7.815
A67: 167 | B67: صنف67 | C67: 1 | D67: 63
A68: 168 | B68: صنف68 | C68: 12 | D68: 4.917
A69: 169 | B69: صنف69 | C69: 12 | D69: 4.917
A70: 170 | B70: صنف70 | C70: 40 | D70: 1.35
A71: 171 | B71: صنف71 | C71: 27 | D71: 1.9575
A72: 172 | B72: صنف72 | C72: 12 | D72: 8.1
A73: 173 | B73: صنف73 | C73: 27 | D73: 2.98
A74: 174 | B74: صنف74 | C74: 27 | D74: 3.17
A75: 175 | B75: صنف75 | C75: 27 | D75: 2.61
A76: 176 | B76: صنف76 | C76: 27 | D76: 2.61
A77: 177 | B77: صنف77 | C77: 27 | D77: 2.61
A78: 178 | B78: صنف78 | C78: 27 | D78: 3.17

Sheet الموظفين
A1: رقم الموظف | B1: الاسم
A2: 1 | B2: عميل1
A3: 15 | B3: عميل2
A4: 16 | B4: عميل3
A5: 17 | B5: عميل4
A6: 19 | B6: عميل5
A7: 26 | B7: عميل6
A8: 27 | B8: عميل7
A9: 28 | B9: عميل8
A10: 30 | B10: عميل9
A11: 36 | B11: عميل10
A12: 41 | B12: عميل11
A13: 42 | B13: عميل12
A14: 48 | B14: عميل13
A15: 49 | B15: عميل14
A16: 50 | B16: عميل15
A17: 51 | B17: عميل16
A18: 53 | B18: عميل17
A19: 54 | B19: عميل18
A20: 55 | B20: عميل19
A21: 56 | B21: عميل20
A22: 57 | B22: عميل21
A23: 58 | B23: عميل22
A24: 59 | B24: عميل23
A25: 60 | B25: عميل24
A26: 61 | B26: عميل25
A27: 72 | B27: عميل26
A28: 73 | B28: عميل27
A29: 93 | B29: عميل28
A30: 153 | B30: عميل29
A31: 155 | B31: عميل30
A32: 156 | B32: عميل31
A33: 157 | B33: عميل32
A34: 159 | B34: عميل33
A35: 162 | B35: عميل34
A36: 165 | B36: عميل35
A37: 166 | B37: عميل36
A38: 167 | B38: عميل37
A39: 168 | B39: عميل38
A40: 180 | B40: عميل39
A41: 181 | B41: عميل40
A42: 182 | B42: عميل41
A43: 184 | B43: عميل42
A44: 185 | B44: عميل43
A45: 186 | B45: عميل44
A46: 187 | B46: عميل45
A47: 188 | B47: عميل46
A48: 199 | B48: عميل47
A49: 205 | B49: عميل48
A50: 207 | B50: عميل49
A51: 209 | B51: عميل50
A52: 210 | B52: عميل51
A53: 227 | B53: عميل52
A54: 233 | B54: عميل53
A55: 237 | B55: عميل54
A56: 247 | B56: عميل55
A57: 248 | B57: عميل56
A58: 250 | B58: عميل57
A59: 252 | B59: عميل58
A60: 255 | B60: عميل59
A61: 258 | B61: عميل60
A62: 259 | B62: عميل61
A63: 260 | B63: عميل62
A64: 261 | B64: عميل63
A65: 262 | B65: عميل64
A66: 264 | B66: عميل65
A67: 265 | B67: عميل66
A68: 267 | B68: عميل67
A69: 269 | B69: عميل68
A70: 272 | B70: عميل69
A71: 274 | B71: عميل70
A72: 275 | B72: عميل71
A73: 294 | B73: عميل72
A74: 296 | B74: عميل73
A75: 302 | B75: عميل74
A76: 303 | B76: عميل75
A77: 316 | B77: عميل76
A78: 318 | B78: عميل77
A79: 320 | B79: عميل78
A80: 326 | B80: عميل79
A81: 327 | B81: عميل80
A82: 328 | B82: عميل81
A83: 329 | B83: عميل82
A84: 331 | B84: عميل83
A85: 332 | B85: عميل84
A86: 333 | B86: عميل85
A87: 334 | B87: عميل86
A88: 335 | B88: عميل87
A89: 341 | B89: عميل88
A90: 342 | B90: عميل89
A91: 352 | B91: عميل90
A92: 356 | B92: عميل91
A93: 357 | B93: عميل92
A94: 371 | B94: عميل93
A95: 373 | B95: عميل94
A96: 374 | B96: عميل95
A97: 380 | B97: عميل96
A98: 384 | B98: عميل97
A99: 409 | B99: عميل98
A100: 418 | B100: عميل99
A101: 419 | B101: عميل100
A102: 420 | B102: عميل101
A103: 435 | B103: عميل102
A104: 436 | B104: عميل103
A105: 437 | B105: عميل104
A106: 438 | B106: عميل105
A107: 439 | B107: عميل106
A108: 441 | B108: عميل107
A109: 442 | B109: عميل108
A110: 443 | B110: عميل109
A111: 444 | B111: عميل110
A112: 445 | B112: عميل111
A113: 446 | B113: عميل112
A114: 447 | B114: عميل113
A115: 448 | B115: عميل114
A116: 449 | B116: عميل115
A117: 451 | B117: عميل116
A118: 452 | B118: عميل117
A119: 453 | B119: عميل118
A120: 454 | B120: عميل119
A121: 455 | B121: عميل120
A122: 456 | B122: عميل121
A123: 459 | B123: عميل122
A124: 463 | B124: عميل123
A125: 464 | B125: عميل124
A126: 465 | B126: عميل125
A127: 466 | B127: عميل126
A128: 468 | B128: عميل127
A129: 469 | B129: عميل128
A130: 480 | B130: عميل129
A131: 483 | B131: عميل130
A132: 484 | B132: عميل131
A133: 485 | B133: عميل132
A134: 486 | B134: عميل133
A135: 487 | B135: عميل134
A136: 489 | B136: عميل135
A137: 490 | B137: عميل136
A138: 491 | B138: عميل137
A139: 499 | B139: عميل138
A140: 501 | B140: عميل139
A141: 513 | B141: عميل140
A142: 514 | B142: عميل141
A143: 517 | B143: عميل142
A144: 521 | B144: عميل143
A145: 533 | B145: عميل144
A146: 555 | B146: عميل145
A147: 557 | B147: عميل146
A148: 558 | B148: عميل147
A149: 574 | B149: عميل148
A150: 575 | B150: عميل149
A151: 593 | B151: عميل150
A152: 650 | B152: عميل151
A153: 667 | B153: عميل152
A154: 684 | B154: عميل153
A155: 830 | B155: عميل154
A156: 833 | B156: عميل155
A157: 834 | B157: عميل156
A158: 835 | B158: عميل157
A159: 836 | B159: عميل158
A160: 837 | B160: عميل159
A161: 839 | B161: عميل160
A162: 840 | B162: عميل161
A163: 841 | B163: عميل162
A164: 842 | B164: عميل163
A165: 843 | B165: عميل164
A166: 844 | B166: عميل165
A167: 845 | B167: عميل166
A168: 846 | B168: عميل167
A169: 847 | B169: عميل168
A170: 848 | B170: عميل169
A171: 849 | B171: عميل170
A172: 850 | B172: عميل171
A173: 851 | B173: عميل172
A174: 853 | B174: عميل173
A175: 855 | B175: عميل174
A176: 858 | B176: عميل175
A177: 859 | B177: عميل176
A178: 860 | B178: عميل177
A179: 861 | B179: عميل178
A180: 862 | B180: عميل179
A181: 864 | B181: عميل180
A182: 865 | B182: عميل181
A183: 866 | B183: عميل182
A184: 867 | B184: عميل183
A185: 868 | B185: عميل184
A186: 869 | B186: عميل185
A187: 870 | B187: عميل186
A188: 872 | B188: عميل187
A189: 873 | B189: عميل188
A190: 874 | B190: عميل189
A191: 875 | B191: عميل190
A192: 877 | B192: عميل191
A193: 878 | B193: عميل192
A194: 879 | B194: عميل193
A195: 880 | B195: عميل194
A196: 881 | B196: عميل195
A197: 882 | B197: عميل196
A198: 883 | B198: عميل197
A199: 884 | B199: عميل198
A200: 885 | B200: عميل199
... 459 more rows
